﻿Body,Body Name,Clearing Date,Document No,Amount in £,Vendor Name,Vendor No,Expense Area,G/L Account Text,G/L Acc No,
http://statistics.data.gov.uk/doc/lolcal-authority/00CC,BarnsleyMBC,01/03/2023,5100334664,500.94,4IMPRINT,526996,BH,Stationery,422004,
http://statistics.data.gov.uk/doc/lolcal-authority/00CC,BarnsleyMBC,13/01/2023,5100332370,571.31,ABILITY HANDLING LTD,509490,BH,Plant hire,320002,
http://statistics.data.gov.uk/doc/lolcal-authority/00CC,BarnsleyMBC,07/02/2023,5100333614,571.31,ABILITY HANDLING LTD,509490,BH,Plant hire,320002,
http://statistics.data.gov.uk/doc/lolcal-authority/00CC,BarnsleyMBC,07/03/2023,5100335047,571.31,ABILITY HANDLING LTD,509490,BH,Plant hire,320002,
http://statistics.data.gov.uk/doc/lolcal-authority/00CC,BarnsleyMBC,10/01/2023,5100332089,"4,408.13",Absoft Limited,538052,BH,Consultants Fees,424007,
http://statistics.data.gov.uk/doc/lolcal-authority/00CC,BarnsleyMBC,07/02/2023,5100333625,"7,243.49",Absoft Limited,538052,BH,Consultants Fees,424007,
http://statistics.data.gov.uk/doc/lolcal-authority/00CC,BarnsleyMBC,17/01/2023,5100332505,510.22,ADRIAN WELCH GLASS & GLAZING LTD,508511,BH,Direct - Building Items,403013,
http://statistics.data.gov.uk/doc/lolcal-authority/00CC,BarnsleyMBC,24/01/2023,5100332953,513.79,AKW MEDICARE LTD,526870,BH,Direct - Building Items,403013,
http://statistics.data.gov.uk/doc/lolcal-authority/00CC,BarnsleyMBC,08/02/2023,5100333566,708.46,AKW MEDICARE LTD,526870,BH,Direct - Building Items,403013,
http://statistics.data.gov.uk/doc/lolcal-authority/00CC,BarnsleyMBC,21/02/2023,5100334287,702.03,AKW MEDICARE LTD,526870,BH,Direct - Building Items,403013,
http://statistics.data.gov.uk/doc/lolcal-authority/00CC,BarnsleyMBC,28/02/2023,5100334464,584.96,AKW MEDICARE LTD,526870,BH,Direct - Building Items,403013,
http://statistics.data.gov.uk/doc/lolcal-authority/00CC,BarnsleyMBC,07/03/2023,5100334766,736.34,AKW MEDICARE LTD,526870,BH,Direct - Building Items,403013,
http://statistics.data.gov.uk/doc/lolcal-authority/00CC,BarnsleyMBC,25/01/2023,5100333041,"1,734.95",ALGECO UK LIMITED,539651,BH,Plant hire,320002,
http://statistics.data.gov.uk/doc/lolcal-authority/00CC,BarnsleyMBC,07/02/2023,5100333629,"1,734.95",ALGECO UK LIMITED,539651,BH,Plant hire,320002,
http://statistics.data.gov.uk/doc/lolcal-authority/00CC,BarnsleyMBC,17/02/2023,5100334030,"1,734.95",ALGECO UK LIMITED,539651,BH,Plant hire,320002,
http://statistics.data.gov.uk/doc/lolcal-authority/00CC,BarnsleyMBC,23/03/2023,5100335930,"1,734.95",ALGECO UK LIMITED,539651,BH,Plant hire,320002,
http://statistics.data.gov.uk/doc/lolcal-authority/00CC,BarnsleyMBC,27/01/2023,5100333175,"3,628.08",AMP Biomass Fuel Ltd TA AMP Clean E,535019,BH,Energy - Fuel Oil,210003,
http://statistics.data.gov.uk/doc/lolcal-authority/00CC,BarnsleyMBC,27/01/2023,5100333184,"9,767.76",AMP Biomass Fuel Ltd TA AMP Clean E,535019,BH,Energy - Fuel Oil,210003,
http://statistics.data.gov.uk/doc/lolcal-authority/00CC,BarnsleyMBC,27/01/2023,5100333183,"6,272.56",AMP Biomass Fuel Ltd TA AMP Clean E,535019,BH,Energy - Fuel Oil,210003,
http://statistics.data.gov.uk/doc/lolcal-authority/00CC,BarnsleyMBC,27/01/2023,5100333179,"3,060.35",AMP Biomass Fuel Ltd TA AMP Clean E,535019,BH,Energy - Fuel Oil,210003,
http://statistics.data.gov.uk/doc/lolcal-authority/00CC,BarnsleyMBC,27/01/2023,5100333178,"9,076.66",AMP Biomass Fuel Ltd TA AMP Clean E,535019,BH,Energy - Fuel Oil,210003,
http://statistics.data.gov.uk/doc/lolcal-authority/00CC,BarnsleyMBC,27/01/2023,5100333185,"8,334.65",AMP Biomass Fuel Ltd TA AMP Clean E,535019,BH,Energy - Fuel Oil,210003,
http://statistics.data.gov.uk/doc/lolcal-authority/00CC,BarnsleyMBC,27/01/2023,5100333182,"2,510.75",AMP Biomass Fuel Ltd TA AMP Clean E,535019,BH,Energy - Fuel Oil,210003,
http://statistics.data.gov.uk/doc/lolcal-authority/00CC,BarnsleyMBC,27/01/2023,5100333176,"5,297.59",AMP Biomass Fuel Ltd TA AMP Clean E,535019,BH,Energy - Fuel Oil,210003,
http://statistics.data.gov.uk/doc/lolcal-authority/00CC,BarnsleyMBC,27/01/2023,5100333180,"2,864.50",AMP Biomass Fuel Ltd TA AMP Clean E,535019,BH,Energy - Fuel Oil,210003,
http://statistics.data.gov.uk/doc/lolcal-authority/00CC,BarnsleyMBC,27/01/2023,5100333177,"3,692.78",AMP Biomass Fuel Ltd TA AMP Clean E,535019,BH,Energy - Fuel Oil,210003,
http://statistics.data.gov.uk/doc/lolcal-authority/00CC,BarnsleyMBC,06/02/2023,5100333587,"4,141.44",AMP Biomass Fuel Ltd TA AMP Clean E,535019,BH,Energy - Fuel Oil,210003,
http://statistics.data.gov.uk/doc/lolcal-authority/00CC,BarnsleyMBC,06/02/2023,5100333467,"-3,692.78",AMP Biomass Fuel Ltd TA AMP Clean E,535019,BH,Energy - Fuel Oil,210003,
http://statistics.data.gov.uk/doc/lolcal-authority/00CC,BarnsleyMBC,07/02/2023,5100333591,517.68,AMP Biomass Fuel Ltd TA AMP Clean E,535019,BH,Energy - Fuel Oil,210003,
http://statistics.data.gov.uk/doc/lolcal-authority/00CC,BarnsleyMBC,07/02/2023,5100333592,"4,927.45",AMP Biomass Fuel Ltd TA AMP Clean E,535019,BH,Energy - Fuel Oil,210003,
http://statistics.data.gov.uk/doc/lolcal-authority/00CC,BarnsleyMBC,07/02/2023,5100333593,"7,402.82",AMP Biomass Fuel Ltd TA AMP Clean E,535019,BH,Energy - Fuel Oil,210003,
http://statistics.data.gov.uk/doc/lolcal-authority/00CC,BarnsleyMBC,20/03/2023,5100335601,"8,662.51",AMP Biomass Fuel Ltd TA AMP Clean E,535019,BH,Energy - Fuel Oil,210003,
http://statistics.data.gov.uk/doc/lolcal-authority/00CC,BarnsleyMBC,20/03/2023,5100335590,"4,332.98",AMP Biomass Fuel Ltd TA AMP Clean E,535019,BH,Energy - Fuel Oil,210003,
http://statistics.data.gov.uk/doc/lolcal-authority/00CC,BarnsleyMBC,20/03/2023,5100335589,"3,848.09",AMP Biomass Fuel Ltd TA AMP Clean E,535019,BH,Energy - Fuel Oil,210003,
http://statistics.data.gov.uk/doc/lolcal-authority/00CC,BarnsleyMBC,20/03/2023,5100335592,"1,941.30",AMP Biomass Fuel Ltd TA AMP Clean E,535019,BH,Energy - Fuel Oil,210003,
http://statistics.data.gov.uk/doc/lolcal-authority/00CC,BarnsleyMBC,22/03/2023,5100335770,"6,962.80",AMP Biomass Fuel Ltd TA AMP Clean E,535019,BH,Energy - Fuel Oil,210003,
http://statistics.data.gov.uk/doc/lolcal-authority/00CC,BarnsleyMBC,22/03/2023,5100335772,"7,972.27",AMP Biomass Fuel Ltd TA AMP Clean E,535019,BH,Energy - Fuel Oil,210003,
http://statistics.data.gov.uk/doc/lolcal-authority/00CC,BarnsleyMBC,22/03/2023,5100335769,"5,737.62",AMP Biomass Fuel Ltd TA AMP Clean E,535019,BH,Energy - Fuel Oil,210003,
http://statistics.data.gov.uk/doc/lolcal-authority/00CC,BarnsleyMBC,22/03/2023,5100335771,"4,736.77",AMP Biomass Fuel Ltd TA AMP Clean E,535019,BH,Energy - Fuel Oil,210003,
http://statistics.data.gov.uk/doc/lolcal-authority/00CC,BarnsleyMBC,22/03/2023,5100335773,"9,821.26",AMP Biomass Fuel Ltd TA AMP Clean E,535019,BH,Energy - Fuel Oil,210003,
http://statistics.data.gov.uk/doc/lolcal-authority/00CC,BarnsleyMBC,22/03/2023,5100335774,"7,634.06",AMP Biomass Fuel Ltd TA AMP Clean E,535019,BH,Energy - Fuel Oil,210003,
http://statistics.data.gov.uk/doc/lolcal-authority/00CC,BarnsleyMBC,10/01/2023,5100332087,"21,509.77",APPLY SCAFFOLDING SERVICES LTD,551732,BH,Main contractor,506011,
http://statistics.data.gov.uk/doc/lolcal-authority/00CC,BarnsleyMBC,10/01/2023,5100332088,"7,383.60",APPLY SCAFFOLDING SERVICES LTD,551732,BH,Main contractor,506011,
http://statistics.data.gov.uk/doc/lolcal-authority/00CC,BarnsleyMBC,24/01/2023,5100332889,"10,003.68",APPLY SCAFFOLDING SERVICES LTD,551732,BH,Main contractor,506011,
http://statistics.data.gov.uk/doc/lolcal-authority/00CC,BarnsleyMBC,25/01/2023,5100333081,"7,162.14",APPLY SCAFFOLDING SERVICES LTD,551732,BH,Main contractor,506011,
http://statistics.data.gov.uk/doc/lolcal-authority/00CC,BarnsleyMBC,30/01/2023,5100333236,"11,379.42",APPLY SCAFFOLDING SERVICES LTD,551732,BH,Main contractor,506011,
http://statistics.data.gov.uk/doc/lolcal-authority/00CC,BarnsleyMBC,07/02/2023,5100333632,"1,680.84",APPLY SCAFFOLDING SERVICES LTD,551732,BH,Main contractor,506011,
http://statistics.data.gov.uk/doc/lolcal-authority/00CC,BarnsleyMBC,07/02/2023,5100333654,"6,153.84",APPLY SCAFFOLDING SERVICES LTD,551732,BH,Main contractor,506011,
http://statistics.data.gov.uk/doc/lolcal-authority/00CC,BarnsleyMBC,10/02/2023,5100333865,"20,527.46",APPLY SCAFFOLDING SERVICES LTD,551732,BH,Main contractor,506011,
http://statistics.data.gov.uk/doc/lolcal-authority/00CC,BarnsleyMBC,14/02/2023,5100334014,831.6,APPLY SCAFFOLDING SERVICES LTD,551732,BH,Main contractor,506011,
http://statistics.data.gov.uk/doc/lolcal-authority/00CC,BarnsleyMBC,02/03/2023,5100334716,"9,281.16",APPLY SCAFFOLDING SERVICES LTD,551732,BH,Main contractor,506011,
http://statistics.data.gov.uk/doc/lolcal-authority/00CC,BarnsleyMBC,02/03/2023,5100334717,"6,232.61",APPLY SCAFFOLDING SERVICES LTD,551732,BH,Main contractor,506011,
http://statistics.data.gov.uk/doc/lolcal-authority/00CC,BarnsleyMBC,07/03/2023,5100334962,945,APPLY SCAFFOLDING SERVICES LTD,551732,BH,Main contractor,506011,
http://statistics.data.gov.uk/doc/lolcal-authority/00CC,BarnsleyMBC,07/03/2023,5100334961,"4,014.36",APPLY SCAFFOLDING SERVICES LTD,551732,BH,Main contractor,506011,
http://statistics.data.gov.uk/doc/lolcal-authority/00CC,BarnsleyMBC,08/03/2023,5100335060,"9,740.28",APPLY SCAFFOLDING SERVICES LTD,551732,BH,Main contractor,506011,
http://statistics.data.gov.uk/doc/lolcal-authority/00CC,BarnsleyMBC,08/03/2023,5100335059,"2,269.78",APPLY SCAFFOLDING SERVICES LTD,551732,BH,Main contractor,506011,
http://statistics.data.gov.uk/doc/lolcal-authority/00CC,BarnsleyMBC,08/03/2023,5100335058,"5,281.92",APPLY SCAFFOLDING SERVICES LTD,551732,BH,Main contractor,506011,
http://statistics.data.gov.uk/doc/lolcal-authority/00CC,BarnsleyMBC,13/03/2023,5100335306,"6,514.67",APPLY SCAFFOLDING SERVICES LTD,551732,BH,Main contractor,506011,
http://statistics.data.gov.uk/doc/lolcal-authority/00CC,BarnsleyMBC,13/03/2023,5100335305,"18,493.92",APPLY SCAFFOLDING SERVICES LTD,551732,BH,Main contractor,506011,
http://statistics.data.gov.uk/doc/lolcal-authority/00CC,BarnsleyMBC,13/03/2023,5100335313,"1,247.40",APPLY SCAFFOLDING SERVICES LTD,551732,BH,Main contractor,506011,
http://statistics.data.gov.uk/doc/lolcal-authority/00CC,BarnsleyMBC,22/03/2023,5100335821,"7,337.04",APPLY SCAFFOLDING SERVICES LTD,551732,BH,Main contractor,506011,
http://statistics.data.gov.uk/doc/lolcal-authority/00CC,BarnsleyMBC,22/03/2023,5100335822,"4,042.01",APPLY SCAFFOLDING SERVICES LTD,551732,BH,Main contractor,506011,
http://statistics.data.gov.uk/doc/lolcal-authority/00CC,BarnsleyMBC,22/03/2023,5100335820,"8,201.34",APPLY SCAFFOLDING SERVICES LTD,551732,BH,Main contractor,506011,
http://statistics.data.gov.uk/doc/lolcal-authority/00CC,BarnsleyMBC,23/03/2023,5100335898,"14,516.71",APPLY SCAFFOLDING SERVICES LTD,551732,BH,Main contractor,506011,
http://statistics.data.gov.uk/doc/lolcal-authority/00CC,BarnsleyMBC,23/03/2023,5100335927,"7,494.67",APPLY SCAFFOLDING SERVICES LTD,551732,BH,Main contractor,506011,
http://statistics.data.gov.uk/doc/lolcal-authority/00CC,BarnsleyMBC,31/03/2023,5100336039,"4,198.44",APPLY SCAFFOLDING SERVICES LTD,551732,BH,Main contractor,506011,
http://statistics.data.gov.uk/doc/lolcal-authority/00CC,BarnsleyMBC,12/01/2023,5100332317,"8,834.65",ARCUS CONSULTING LLP,511642,BH,Main contractor,506011,
http://statistics.data.gov.uk/doc/lolcal-authority/00CC,BarnsleyMBC,15/02/2023,5100334068,"9,206.34",ARCUS CONSULTING LLP,511642,BH,Main contractor,506011,
http://statistics.data.gov.uk/doc/lolcal-authority/00CC,BarnsleyMBC,09/03/2023,5100335210,"7,320.29",ARCUS CONSULTING LLP,511642,BH,Main contractor,506011,
http://statistics.data.gov.uk/doc/lolcal-authority/00CC,BarnsleyMBC,20/03/2023,5100335588,"1,620.00",ARCUS CONSULTING LLP,511642,BH,Quantity Surveying & Building Regulation,424021,
http://statistics.data.gov.uk/doc/lolcal-authority/00CC,BarnsleyMBC,08/03/2023,5100335061,"3,349.80",ARP Research Ltd,532218,BH,Miscellaneous Materials,402009,
http://statistics.data.gov.uk/doc/lolcal-authority/00CC,BarnsleyMBC,12/01/2023,5100332058,"3,948.00",ASCP GROUP LIMITED,539626,BH,Subscriptions & Contributions,430002,
http://statistics.data.gov.uk/doc/lolcal-authority/00CC,BarnsleyMBC,29/03/2023,5100336125,720,Azesta Ltd,534805,BH,Training Courses,112001,
http://statistics.data.gov.uk/doc/lolcal-authority/00CC,BarnsleyMBC,31/03/2023,5100336229,"3,057.24",Azesta Ltd,534805,BH,Training Courses,112001,
http://statistics.data.gov.uk/doc/lolcal-authority/00CC,BarnsleyMBC,24/02/2023,5100334341,"1,594.60",BAAS CONSTRUCTION LIMITED,552099,BH,Main contractor,506011,
http://statistics.data.gov.uk/doc/lolcal-authority/00CC,BarnsleyMBC,23/03/2023,5100335825,"15,359.29",BAAS CONSTRUCTION LIMITED,552099,BH,Main contractor,506011,
http://statistics.data.gov.uk/doc/lolcal-authority/00CC,BarnsleyMBC,23/03/2023,5100335826,"10,768.80",BAAS CONSTRUCTION LIMITED,552099,BH,Main contractor,506011,
http://statistics.data.gov.uk/doc/lolcal-authority/00CC,BarnsleyMBC,28/03/2023,5100335900,"18,048.72",BAAS CONSTRUCTION LIMITED,552099,BH,Main contractor,506011,
http://statistics.data.gov.uk/doc/lolcal-authority/00CC,BarnsleyMBC,29/03/2023,5100335901,"14,922.83",BAAS CONSTRUCTION LIMITED,552099,BH,Main contractor,506011,
http://statistics.data.gov.uk/doc/lolcal-authority/00CC,BarnsleyMBC,29/03/2023,5100335959,"35,721.97",BAAS CONSTRUCTION LIMITED,552099,BH,Main contractor,506011,
http://statistics.data.gov.uk/doc/lolcal-authority/00CC,BarnsleyMBC,31/03/2023,5100336027,"18,323.96",BAAS CONSTRUCTION LIMITED,552099,BH,Main contractor,506011,
http://statistics.data.gov.uk/doc/lolcal-authority/00CC,BarnsleyMBC,08/02/2023,5100332141,510.1,BARNSLEY HOSPITAL NHS TRUST,500520,BH,Employee Welfare - Medical Care,115001,
http://statistics.data.gov.uk/doc/lolcal-authority/00CC,BarnsleyMBC,21/02/2023,5100333815,612.12,BARNSLEY HOSPITAL NHS TRUST,500520,BH,Employee Welfare - Medical Care,115001,
http://statistics.data.gov.uk/doc/lolcal-authority/00CC,BarnsleyMBC,19/01/2023,5100332578,766.8,BARNSLEY LOCK & SAFE CO LTD,500411,BH,Direct - Tools & Parts,403019,
http://statistics.data.gov.uk/doc/lolcal-authority/00CC,BarnsleyMBC,17/02/2023,5100334086,"1,533.60",BARNSLEY LOCK & SAFE CO LTD,500411,BH,Building Security,200013,
http://statistics.data.gov.uk/doc/lolcal-authority/00CC,BarnsleyMBC,17/01/2023,5100332473,624,BARNSLEY REFRIGERATION SERVS LTD,551173,BH,Main contractor,506011,
http://statistics.data.gov.uk/doc/lolcal-authority/00CC,BarnsleyMBC,17/01/2023,5100332472,624,BARNSLEY REFRIGERATION SERVS LTD,551173,BH,Main contractor,506011,
http://statistics.data.gov.uk/doc/lolcal-authority/00CC,BarnsleyMBC,17/01/2023,5100332471,940.5,BARNSLEY REFRIGERATION SERVS LTD,551173,BH,Main contractor,506011,
http://statistics.data.gov.uk/doc/lolcal-authority/00CC,BarnsleyMBC,17/01/2023,5100332474,624,BARNSLEY REFRIGERATION SERVS LTD,551173,BH,Main contractor,506011,
http://statistics.data.gov.uk/doc/lolcal-authority/00CC,BarnsleyMBC,19/01/2023,5100332624,720,BARNSLEY REFRIGERATION SERVS LTD,551173,BH,Main contractor,506011,
http://statistics.data.gov.uk/doc/lolcal-authority/00CC,BarnsleyMBC,14/02/2023,5100334028,565.44,BARNSLEY REFRIGERATION SERVS LTD,551173,BH,Main contractor,506011,
http://statistics.data.gov.uk/doc/lolcal-authority/00CC,BarnsleyMBC,14/02/2023,5100334011,991.2,BARNSLEY REFRIGERATION SERVS LTD,551173,BH,Main contractor,506011,
http://statistics.data.gov.uk/doc/lolcal-authority/00CC,BarnsleyMBC,14/02/2023,5100334010,561.6,BARNSLEY REFRIGERATION SERVS LTD,551173,BH,Main contractor,506011,
http://statistics.data.gov.uk/doc/lolcal-authority/00CC,BarnsleyMBC,14/02/2023,5100334013,956.4,BARNSLEY REFRIGERATION SERVS LTD,551173,BH,Main contractor,506011,
http://statistics.data.gov.uk/doc/lolcal-authority/00CC,BarnsleyMBC,27/01/2023,5100332886,"8,499.99",BCB TRADING LTD,550198,BH,Training Courses,112001,
http://statistics.data.gov.uk/doc/lolcal-authority/00CC,BarnsleyMBC,02/03/2023,5100334624,"8,499.99",BCB TRADING LTD,550198,BH,Training Courses,112001,
http://statistics.data.gov.uk/doc/lolcal-authority/00CC,BarnsleyMBC,28/02/2023,5100334538,"1,500.00",BDO LLP,526720,BH,Audit Fee,424018,
http://statistics.data.gov.uk/doc/lolcal-authority/00CC,BarnsleyMBC,28/02/2023,5100334534,"1,200.00",BDO LLP,526720,BH,Audit Fee,424018,
http://statistics.data.gov.uk/doc/lolcal-authority/00CC,BarnsleyMBC,06/01/2023,5100332046,700.99,BMBC - INCOME A/C,510654,BH,Vehicle Hire,300006,
http://statistics.data.gov.uk/doc/lolcal-authority/00CC,BarnsleyMBC,06/01/2023,5100332048,841.66,BMBC - INCOME A/C,510654,BH,Vehicle Hire,300006,
http://statistics.data.gov.uk/doc/lolcal-authority/00CC,BarnsleyMBC,06/01/2023,5100332049,937.39,BMBC - INCOME A/C,510654,BH,Vehicle Hire,300006,
http://statistics.data.gov.uk/doc/lolcal-authority/00CC,BarnsleyMBC,06/01/2023,5100332047,669,BMBC - INCOME A/C,510654,BH,Vehicle Hire,300006,
http://statistics.data.gov.uk/doc/lolcal-authority/00CC,BarnsleyMBC,11/01/2023,5100332192,"114,189.00",BMBC - INCOME A/C,510654,BH,Transport Leasing - Long term agreements,320001,
http://statistics.data.gov.uk/doc/lolcal-authority/00CC,BarnsleyMBC,13/01/2023,5100332372,"24,900.00",BMBC - INCOME A/C,510654,BH,National Non Domestic Rates,212003,
http://statistics.data.gov.uk/doc/lolcal-authority/00CC,BarnsleyMBC,13/01/2023,5100332371,"16,217.40",BMBC - INCOME A/C,510654,BH,Transport Leasing - Long term agreements,320001,
http://statistics.data.gov.uk/doc/lolcal-authority/00CC,BarnsleyMBC,16/01/2023,5100332456,"93,238.66",BMBC - INCOME A/C,510654,BH,Property Rents,211002,
http://statistics.data.gov.uk/doc/lolcal-authority/00CC,BarnsleyMBC,24/01/2023,5100332958,"24,216.84",BMBC - INCOME A/C,510654,BH,Data Communications,426012,
http://statistics.data.gov.uk/doc/lolcal-authority/00CC,BarnsleyMBC,24/01/2023,5100332960,"3,458.57",BMBC - INCOME A/C,510654,BH,Computer Hardware - Maintenance,426007,
http://statistics.data.gov.uk/doc/lolcal-authority/00CC,BarnsleyMBC,24/01/2023,5100332962,"1,200.00",BMBC - INCOME A/C,510654,BH,ICT Services and Support,426014,
http://statistics.data.gov.uk/doc/lolcal-authority/00CC,BarnsleyMBC,24/01/2023,5100332961,"10,381.20",BMBC - INCOME A/C,510654,BH,Training Courses,112001,
http://statistics.data.gov.uk/doc/lolcal-authority/00CC,BarnsleyMBC,24/01/2023,5100332963,"1,200.00",BMBC - INCOME A/C,510654,BH,ICT Services and Support,426014,
http://statistics.data.gov.uk/doc/lolcal-authority/00CC,BarnsleyMBC,24/01/2023,5100332959,"6,641.45",BMBC - INCOME A/C,510654,BH,Data Communications,426012,
http://statistics.data.gov.uk/doc/lolcal-authority/00CC,BarnsleyMBC,25/01/2023,5100333019,"17,007.60",BMBC - INCOME A/C,510654,BH,Transport Leasing - Long term agreements,320001,
http://statistics.data.gov.uk/doc/lolcal-authority/00CC,BarnsleyMBC,25/01/2023,5100333021,650,BMBC - INCOME A/C,510654,BH,National Non Domestic Rates,212003,
http://statistics.data.gov.uk/doc/lolcal-authority/00CC,BarnsleyMBC,25/01/2023,5100333022,650,BMBC - INCOME A/C,510654,BH,National Non Domestic Rates,212003,
http://statistics.data.gov.uk/doc/lolcal-authority/00CC,BarnsleyMBC,25/01/2023,5100333023,650,BMBC - INCOME A/C,510654,BH,National Non Domestic Rates,212003,
http://statistics.data.gov.uk/doc/lolcal-authority/00CC,BarnsleyMBC,26/01/2023,5100333086,"113,583.40",BMBC - INCOME A/C,510654,BH,Transport Leasing - Long term agreements,320001,
http://statistics.data.gov.uk/doc/lolcal-authority/00CC,BarnsleyMBC,26/01/2023,5100333085,"122,976.65",BMBC - INCOME A/C,510654,BH,ICT Services and Support,426014,
http://statistics.data.gov.uk/doc/lolcal-authority/00CC,BarnsleyMBC,31/01/2023,5100333272,"7,428.43",BMBC - INCOME A/C,510654,BH,Miscellaneous Insurances,460016,
http://statistics.data.gov.uk/doc/lolcal-authority/00CC,BarnsleyMBC,01/02/2023,5100333358,"1,325.20",BMBC - INCOME A/C,510654,BH,Property Rents,211002,
http://statistics.data.gov.uk/doc/lolcal-authority/00CC,BarnsleyMBC,01/02/2023,5100333308,799.5,BMBC - INCOME A/C,510654,BH,Computer Software -  Licenses,426010,
http://statistics.data.gov.uk/doc/lolcal-authority/00CC,BarnsleyMBC,01/02/2023,5100333313,959.4,BMBC - INCOME A/C,510654,BH,Computer Software -  Licenses,426010,
http://statistics.data.gov.uk/doc/lolcal-authority/00CC,BarnsleyMBC,01/02/2023,5100333360,"5,564.10",BMBC - INCOME A/C,510654,BH,Transport Leasing - Long term agreements,320001,
http://statistics.data.gov.uk/doc/lolcal-authority/00CC,BarnsleyMBC,02/02/2023,5100333479,"3,500.89",BMBC - INCOME A/C,510654,BH,Energy - Electricity,210001,
http://statistics.data.gov.uk/doc/lolcal-authority/00CC,BarnsleyMBC,03/02/2023,5100333565,"55,435.44",BMBC - INCOME A/C,510654,BH,Property Management,200014,
http://statistics.data.gov.uk/doc/lolcal-authority/00CC,BarnsleyMBC,13/02/2023,5100333981,669,BMBC - INCOME A/C,510654,BH,Vehicle Hire,300006,
http://statistics.data.gov.uk/doc/lolcal-authority/00CC,BarnsleyMBC,13/02/2023,5100333979,937.39,BMBC - INCOME A/C,510654,BH,Vehicle Hire,300006,
http://statistics.data.gov.uk/doc/lolcal-authority/00CC,BarnsleyMBC,13/02/2023,5100333980,841.66,BMBC - INCOME A/C,510654,BH,Vehicle Hire,300006,
http://statistics.data.gov.uk/doc/lolcal-authority/00CC,BarnsleyMBC,13/02/2023,5100333982,700.99,BMBC - INCOME A/C,510654,BH,Vehicle Hire,300006,
http://statistics.data.gov.uk/doc/lolcal-authority/00CC,BarnsleyMBC,14/02/2023,5100334017,"3,108.48",BMBC - INCOME A/C,510654,BH,Computer Software -  Licenses,426010,
http://statistics.data.gov.uk/doc/lolcal-authority/00CC,BarnsleyMBC,14/02/2023,5100333994,"17,140.66",BMBC - INCOME A/C,510654,BH,Transport Leasing - Long term agreements,320001,
http://statistics.data.gov.uk/doc/lolcal-authority/00CC,BarnsleyMBC,01/03/2023,5100334684,"113,583.40",BMBC - INCOME A/C,510654,BH,Transport Leasing - Long term agreements,320001,
http://statistics.data.gov.uk/doc/lolcal-authority/00CC,BarnsleyMBC,01/03/2023,5100334682,"562,695.00",BMBC - INCOME A/C,510654,BH,Miscellaneous Insurances,460016,
http://statistics.data.gov.uk/doc/lolcal-authority/00CC,BarnsleyMBC,01/03/2023,5100334681,"1,215,728.40",BMBC - INCOME A/C,510654,BH,Miscellaneous Materials,402009,
http://statistics.data.gov.uk/doc/lolcal-authority/00CC,BarnsleyMBC,06/03/2023,5100334936,700.99,BMBC - INCOME A/C,510654,BH,Vehicle Hire,300006,
http://statistics.data.gov.uk/doc/lolcal-authority/00CC,BarnsleyMBC,06/03/2023,5100334943,841.66,BMBC - INCOME A/C,510654,BH,Vehicle Hire,300006,
http://statistics.data.gov.uk/doc/lolcal-authority/00CC,BarnsleyMBC,06/03/2023,5100334941,595,BMBC - INCOME A/C,510654,BH,Training Courses,112001,
http://statistics.data.gov.uk/doc/lolcal-authority/00CC,BarnsleyMBC,06/03/2023,5100334942,937.39,BMBC - INCOME A/C,510654,BH,Vehicle Hire,300006,
http://statistics.data.gov.uk/doc/lolcal-authority/00CC,BarnsleyMBC,06/03/2023,5100334944,669,BMBC - INCOME A/C,510654,BH,Vehicle Hire,300006,
http://statistics.data.gov.uk/doc/lolcal-authority/00CC,BarnsleyMBC,09/03/2023,5100335184,"1,325.20",BMBC - INCOME A/C,510654,BH,Property Rents,211002,
http://statistics.data.gov.uk/doc/lolcal-authority/00CC,BarnsleyMBC,09/03/2023,5100335185,"2,421.54",BMBC - INCOME A/C,510654,BH,Transport Leasing - Long term agreements,320001,
http://statistics.data.gov.uk/doc/lolcal-authority/00CC,BarnsleyMBC,09/03/2023,5100335183,"12,369.60",BMBC - INCOME A/C,510654,BH,Transport Leasing - Long term agreements,320001,
http://statistics.data.gov.uk/doc/lolcal-authority/00CC,BarnsleyMBC,09/03/2023,5100335182,"34,487.10",BMBC - INCOME A/C,510654,BH,Transport Leasing - Long term agreements,320001,
http://statistics.data.gov.uk/doc/lolcal-authority/00CC,BarnsleyMBC,09/03/2023,5100335186,"11,334.18",BMBC - INCOME A/C,510654,BH,Transport Leasing - Long term agreements,320001,
http://statistics.data.gov.uk/doc/lolcal-authority/00CC,BarnsleyMBC,10/03/2023,5100335245,"721,676.00",BMBC - INCOME A/C,510654,BH,Miscellaneous Materials,402009,
http://statistics.data.gov.uk/doc/lolcal-authority/00CC,BarnsleyMBC,13/03/2023,5100335320,932.09,BMBC - INCOME A/C,510654,BH,Computer Hardware - Purchase,426006,
http://statistics.data.gov.uk/doc/lolcal-authority/00CC,BarnsleyMBC,13/03/2023,5100335322,"13,673.40",BMBC - INCOME A/C,510654,BH,Computer Hardware - Purchase,426006,
http://statistics.data.gov.uk/doc/lolcal-authority/00CC,BarnsleyMBC,14/03/2023,5100335413,700.93,BMBC - INCOME A/C,510654,BH,Vehicle Hire,300006,
http://statistics.data.gov.uk/doc/lolcal-authority/00CC,BarnsleyMBC,14/03/2023,5100335411,841.68,BMBC - INCOME A/C,510654,BH,Vehicle Hire,300006,
http://statistics.data.gov.uk/doc/lolcal-authority/00CC,BarnsleyMBC,14/03/2023,5100335412,669,BMBC - INCOME A/C,510654,BH,Vehicle Hire,300006,
http://statistics.data.gov.uk/doc/lolcal-authority/00CC,BarnsleyMBC,14/03/2023,5100335410,937.49,BMBC - INCOME A/C,510654,BH,Vehicle Hire,300006,
http://statistics.data.gov.uk/doc/lolcal-authority/00CC,BarnsleyMBC,15/03/2023,5100335450,"2,000.00",BMBC - INCOME A/C,510654,BH,Consultants Fees,424007,
http://statistics.data.gov.uk/doc/lolcal-authority/00CC,BarnsleyMBC,17/03/2023,5100335578,525,BMBC - INCOME A/C,510654,BH,Miscellaneous Insurances,460016,
http://statistics.data.gov.uk/doc/lolcal-authority/00CC,BarnsleyMBC,20/03/2023,5100335595,"18,478.49",BMBC - INCOME A/C,510654,BH,Property Management,200014,
http://statistics.data.gov.uk/doc/lolcal-authority/00CC,BarnsleyMBC,20/03/2023,5100335630,"-2,421.54",BMBC - INCOME A/C,510654,BH,Transport Leasing - Long term agreements,320001,
http://statistics.data.gov.uk/doc/lolcal-authority/00CC,BarnsleyMBC,20/03/2023,5100335631,"-2,421.54",BMBC - INCOME A/C,510654,BH,Transport Leasing - Long term agreements,320001,
http://statistics.data.gov.uk/doc/lolcal-authority/00CC,BarnsleyMBC,21/03/2023,5100335683,"45,705.00",BMBC - INCOME A/C,510654,BH,Computer Hardware - Purchase,426006,
http://statistics.data.gov.uk/doc/lolcal-authority/00CC,BarnsleyMBC,22/03/2023,5100335745,"113,581.34",BMBC - INCOME A/C,510654,BH,Transport Leasing - Long term agreements,320001,
http://statistics.data.gov.uk/doc/lolcal-authority/00CC,BarnsleyMBC,22/03/2023,5100335744,"113,583.40",BMBC - INCOME A/C,510654,BH,Transport Leasing - Long term agreements,320001,
http://statistics.data.gov.uk/doc/lolcal-authority/00CC,BarnsleyMBC,22/03/2023,5100335864,"1,185.25",BMBC - INCOME A/C,510654,BH,Postage,426005,
http://statistics.data.gov.uk/doc/lolcal-authority/00CC,BarnsleyMBC,22/03/2023,5100335762,"13,506.38",BMBC - INCOME A/C,510654,BH,Telephones - Other,426003,
http://statistics.data.gov.uk/doc/lolcal-authority/00CC,BarnsleyMBC,22/03/2023,5100335761,"11,416.63",BMBC - INCOME A/C,510654,BH,Telephones - Other,426003,
http://statistics.data.gov.uk/doc/lolcal-authority/00CC,BarnsleyMBC,22/03/2023,5100335738,"2,000.00",BMBC - INCOME A/C,510654,BH,Consultants Fees,424007,
http://statistics.data.gov.uk/doc/lolcal-authority/00CC,BarnsleyMBC,23/03/2023,5100335917,"1,325.20",BMBC - INCOME A/C,510654,BH,Property Rents,211002,
http://statistics.data.gov.uk/doc/lolcal-authority/00CC,BarnsleyMBC,23/03/2023,5100335918,696.98,BMBC - INCOME A/C,510654,BH,Postage,426005,
http://statistics.data.gov.uk/doc/lolcal-authority/00CC,BarnsleyMBC,24/03/2023,5100335941,"26,328.82",BMBC - INCOME A/C,510654,BH,Transport Leasing - Long term agreements,320001,
http://statistics.data.gov.uk/doc/lolcal-authority/00CC,BarnsleyMBC,29/03/2023,5100336068,"6,129.18",BMBC - INCOME A/C,510654,BH,Equipment - Electrical Goods,400007,
http://statistics.data.gov.uk/doc/lolcal-authority/00CC,BarnsleyMBC,29/03/2023,5100336082,"77,150.84",BMBC - INCOME A/C,510654,BH,Printing - External Provider,422001,
http://statistics.data.gov.uk/doc/lolcal-authority/00CC,BarnsleyMBC,30/03/2023,5100336171,"30,136.57",BMBC - INCOME A/C,510654,BH,Transport Leasing - Long term agreements,320001,
http://statistics.data.gov.uk/doc/lolcal-authority/00CC,BarnsleyMBC,31/03/2023,5100336239,"11,366.57",BMBC - INCOME A/C,510654,BH,Computer Software -  Licenses,426010,
http://statistics.data.gov.uk/doc/lolcal-authority/00CC,BarnsleyMBC,31/03/2023,5100336238,"39,397.68",BMBC - INCOME A/C,510654,BH,Computer Software -  Licenses,426010,
http://statistics.data.gov.uk/doc/lolcal-authority/00CC,BarnsleyMBC,31/03/2023,5100336240,"49,474.51",BMBC - INCOME A/C,510654,BH,Direct - Building Items,403013,
http://statistics.data.gov.uk/doc/lolcal-authority/00CC,BarnsleyMBC,31/03/2023,5100336203,"3,220.27",BMBC - INCOME A/C,510654,BH,Energy - Electricity,210001,
http://statistics.data.gov.uk/doc/lolcal-authority/00CC,BarnsleyMBC,28/03/2023,5100335866,"2,397.28",BMBC - PRINTING,511957,BH,Printing - External Provider,422001,
http://statistics.data.gov.uk/doc/lolcal-authority/00CC,BarnsleyMBC,21/02/2023,5100334083,"4,590.00",BOS OFFICE SUPPLIES GROUP LTD,526135,BH,Furniture,404001,
http://statistics.data.gov.uk/doc/lolcal-authority/00CC,BarnsleyMBC,01/03/2023,5100334685,"5,016.86",BOS OFFICE SUPPLIES GROUP LTD,526135,BH,Furniture,404001,
http://statistics.data.gov.uk/doc/lolcal-authority/00CC,BarnsleyMBC,19/01/2023,5100331387,748.8,BRIAN TOTTY SIGNS & DESIGN LTD,510048,BH,Direct - General Materials,403011,
http://statistics.data.gov.uk/doc/lolcal-authority/00CC,BarnsleyMBC,06/02/2023,5100331386,754.8,BRIAN TOTTY SIGNS & DESIGN LTD,510048,BH,Printing - External Provider,422001,
http://statistics.data.gov.uk/doc/lolcal-authority/00CC,BarnsleyMBC,02/02/2023,1900026485,"1,026.00",BRITISH TELECOMMUNICATIONS PLC,585058,BH,Main contractor,506011,
http://statistics.data.gov.uk/doc/lolcal-authority/00CC,BarnsleyMBC,14/03/2023,1900026651,"2,667.60",BRITISH TELECOMMUNICATIONS PLC,585058,BH,Main contractor,506011,
http://statistics.data.gov.uk/doc/lolcal-authority/00CC,BarnsleyMBC,15/03/2023,1900026659,"5,643.00",BRITISH TELECOMMUNICATIONS PLC,585058,BH,Main contractor,506011,
http://statistics.data.gov.uk/doc/lolcal-authority/00CC,BarnsleyMBC,05/01/2023,5200078895,589.25,BUSINESS STREAM,585193,BH,Water Rates,213001,
http://statistics.data.gov.uk/doc/lolcal-authority/00CC,BarnsleyMBC,05/01/2023,5200078902,611.68,BUSINESS STREAM,585193,BH,Water Rates,213001,
http://statistics.data.gov.uk/doc/lolcal-authority/00CC,BarnsleyMBC,05/01/2023,5200078904,770.11,BUSINESS STREAM,585193,BH,Water Rates,213001,
http://statistics.data.gov.uk/doc/lolcal-authority/00CC,BarnsleyMBC,05/01/2023,5200078911,695.12,BUSINESS STREAM,585193,BH,Water Rates,213001,
http://statistics.data.gov.uk/doc/lolcal-authority/00CC,BarnsleyMBC,05/01/2023,5200078912,737.49,BUSINESS STREAM,585193,BH,Water Rates,213001,
http://statistics.data.gov.uk/doc/lolcal-authority/00CC,BarnsleyMBC,05/01/2023,5200078924,549.71,BUSINESS STREAM,585193,BH,Water Rates,213001,
http://statistics.data.gov.uk/doc/lolcal-authority/00CC,BarnsleyMBC,05/01/2023,5200078925,624.72,BUSINESS STREAM,585193,BH,Water Rates,213001,
http://statistics.data.gov.uk/doc/lolcal-authority/00CC,BarnsleyMBC,05/01/2023,5200078914,"-2,350.60",BUSINESS STREAM,585193,BH,Water Rates,213001,
http://statistics.data.gov.uk/doc/lolcal-authority/00CC,BarnsleyMBC,20/01/2023,5200079037,"3,115.80",BUSINESS STREAM,585193,BH,Water Rates,213001,
http://statistics.data.gov.uk/doc/lolcal-authority/00CC,BarnsleyMBC,27/02/2023,5200080562,"1,061.77",BUSINESS STREAM,585193,BH,Water Rates,213001,
http://statistics.data.gov.uk/doc/lolcal-authority/00CC,BarnsleyMBC,27/02/2023,5200080506,551.28,BUSINESS STREAM,585193,BH,Water Rates,213001,
http://statistics.data.gov.uk/doc/lolcal-authority/00CC,BarnsleyMBC,27/02/2023,5200080507,"1,344.00",BUSINESS STREAM,585193,BH,Water Rates,213001,
http://statistics.data.gov.uk/doc/lolcal-authority/00CC,BarnsleyMBC,27/02/2023,5200080510,687.29,BUSINESS STREAM,585193,BH,Water Rates,213001,
http://statistics.data.gov.uk/doc/lolcal-authority/00CC,BarnsleyMBC,27/02/2023,5200080511,755.94,BUSINESS STREAM,585193,BH,Water Rates,213001,
http://statistics.data.gov.uk/doc/lolcal-authority/00CC,BarnsleyMBC,27/02/2023,5200080539,"1,432.62",BUSINESS STREAM,585193,BH,Water Rates,213001,
http://statistics.data.gov.uk/doc/lolcal-authority/00CC,BarnsleyMBC,27/02/2023,5200080540,606.91,BUSINESS STREAM,585193,BH,Water Rates,213001,
http://statistics.data.gov.uk/doc/lolcal-authority/00CC,BarnsleyMBC,27/02/2023,5200080541,715.81,BUSINESS STREAM,585193,BH,Water Rates,213001,
http://statistics.data.gov.uk/doc/lolcal-authority/00CC,BarnsleyMBC,27/02/2023,5200080542,650.45,BUSINESS STREAM,585193,BH,Water Rates,213001,
http://statistics.data.gov.uk/doc/lolcal-authority/00CC,BarnsleyMBC,27/02/2023,5200080555,920.68,BUSINESS STREAM,585193,BH,Water Rates,213001,
http://statistics.data.gov.uk/doc/lolcal-authority/00CC,BarnsleyMBC,27/02/2023,5200080560,644.87,BUSINESS STREAM,585193,BH,Water Rates,213001,
http://statistics.data.gov.uk/doc/lolcal-authority/00CC,BarnsleyMBC,27/02/2023,5200080561,584.45,BUSINESS STREAM,585193,BH,Water Rates,213001,
http://statistics.data.gov.uk/doc/lolcal-authority/00CC,BarnsleyMBC,23/01/2023,1900026444,748.8,Cadent Gas Limited,532163,BH,Main contractor,506011,
http://statistics.data.gov.uk/doc/lolcal-authority/00CC,BarnsleyMBC,13/01/2023,5100332366,503.94,CASCADE WATER SYSTEMS LTD,504833,BH,Catering - Preliminaries,410009,
http://statistics.data.gov.uk/doc/lolcal-authority/00CC,BarnsleyMBC,13/01/2023,5100332367,503.94,CASCADE WATER SYSTEMS LTD,504833,BH,Catering - Preliminaries,410009,
http://statistics.data.gov.uk/doc/lolcal-authority/00CC,BarnsleyMBC,09/01/2023,1900026376,"15,000.00",Charis Grants Ltd,540662,BH,Miscellaneous Services,424001,
http://statistics.data.gov.uk/doc/lolcal-authority/00CC,BarnsleyMBC,20/01/2023,1900026436,"15,000.00",Charis Grants Ltd,540662,BH,Miscellaneous Services,424001,
http://statistics.data.gov.uk/doc/lolcal-authority/00CC,BarnsleyMBC,26/01/2023,1900026464,"15,000.00",Charis Grants Ltd,540662,BH,Miscellaneous Services,424001,
http://statistics.data.gov.uk/doc/lolcal-authority/00CC,BarnsleyMBC,31/01/2023,1900026474,"30,000.00",Charis Grants Ltd,540662,BH,Miscellaneous Services,424001,
http://statistics.data.gov.uk/doc/lolcal-authority/00CC,BarnsleyMBC,03/02/2023,1900026507,"28,600.00",Charis Grants Ltd,540662,BH,Unascertained Material Group,400008,
http://statistics.data.gov.uk/doc/lolcal-authority/00CC,BarnsleyMBC,07/02/2023,1900026500,"20,000.00",Charis Grants Ltd,540662,BH,Miscellaneous Services,424001,
http://statistics.data.gov.uk/doc/lolcal-authority/00CC,BarnsleyMBC,17/02/2023,1900026561,"41,400.00",Charis Grants Ltd,540662,BH,Unascertained Material Group,400008,
http://statistics.data.gov.uk/doc/lolcal-authority/00CC,BarnsleyMBC,02/03/2023,1900026623,"20,000.00",Charis Grants Ltd,540662,BH,Miscellaneous Services,424001,
http://statistics.data.gov.uk/doc/lolcal-authority/00CC,BarnsleyMBC,03/03/2023,1900026622,"20,000.00",Charis Grants Ltd,540662,BH,Miscellaneous Services,424001,
http://statistics.data.gov.uk/doc/lolcal-authority/00CC,BarnsleyMBC,09/03/2023,1900026647,"30,000.00",Charis Grants Ltd,540662,BH,Miscellaneous Services,424001,
http://statistics.data.gov.uk/doc/lolcal-authority/00CC,BarnsleyMBC,22/03/2023,1900026683,"50,000.00",Charis Grants Ltd,540662,BH,Miscellaneous Services,424001,
http://statistics.data.gov.uk/doc/lolcal-authority/00CC,BarnsleyMBC,12/01/2023,1900026394,"12,729.00",CHEVIN HOUSING ASSOCIATION LTD,501017,BH,Tied Accommodation Allowance,212004,
http://statistics.data.gov.uk/doc/lolcal-authority/00CC,BarnsleyMBC,15/02/2023,1900026549,"27,369.52",CHEVIN HOUSING ASSOCIATION LTD,501017,BH,Property Rents,211002,
http://statistics.data.gov.uk/doc/lolcal-authority/00CC,BarnsleyMBC,08/03/2023,1900026648,"17,705.83",CHEVIN HOUSING ASSOCIATION LTD,501017,BH,Tied Accommodation Allowance,212004,
http://statistics.data.gov.uk/doc/lolcal-authority/00CC,BarnsleyMBC,24/01/2023,5100332888,"1,214.40",CHRIS CLARKE LYNDALE,550223,BH,Plant hire,320002,
http://statistics.data.gov.uk/doc/lolcal-authority/00CC,BarnsleyMBC,26/01/2023,5100333089,"3,060.00",CHRIS CLARKE LYNDALE,550223,BH,Plant hire,320002,
http://statistics.data.gov.uk/doc/lolcal-authority/00CC,BarnsleyMBC,17/03/2023,5100335408,518.4,CIRRUS RESEARCH PLC,526372,BH,Direct - Tools & Parts,403019,
http://statistics.data.gov.uk/doc/lolcal-authority/00CC,BarnsleyMBC,10/01/2023,5100331920,"3,233.58",CITIZENS ADVICE BUREAU,514939,BH,Professional fees,424006,
http://statistics.data.gov.uk/doc/lolcal-authority/00CC,BarnsleyMBC,23/01/2023,5100332833,"6,467.16",CITIZENS ADVICE BUREAU,514939,BH,Professional fees,424006,
http://statistics.data.gov.uk/doc/lolcal-authority/00CC,BarnsleyMBC,23/01/2023,5100332265,"-3,233.58",CITIZENS ADVICE BUREAU,514939,BH,Professional fees,424006,
http://statistics.data.gov.uk/doc/lolcal-authority/00CC,BarnsleyMBC,09/02/2023,5100333579,"3,233.58",CITIZENS ADVICE BUREAU,514939,BH,Professional fees,424006,
http://statistics.data.gov.uk/doc/lolcal-authority/00CC,BarnsleyMBC,09/03/2023,5100334977,"3,233.58",CITIZENS ADVICE BUREAU,514939,BH,Professional fees,424006,
http://statistics.data.gov.uk/doc/lolcal-authority/00CC,BarnsleyMBC,06/01/2023,5100331931,"1,175.40",Citrus Training Ltd,539103,BH,Training Courses,112001,
http://statistics.data.gov.uk/doc/lolcal-authority/00CC,BarnsleyMBC,17/01/2023,5100332526,654,Citrus Training Ltd,539103,BH,Training Courses,112001,
http://statistics.data.gov.uk/doc/lolcal-authority/00CC,BarnsleyMBC,23/03/2023,5100335907,813.42,CITY ELECTRICAL FACTORS LTD,500705,BH,Equipment - Electrical Goods,400007,
http://statistics.data.gov.uk/doc/lolcal-authority/00CC,BarnsleyMBC,05/01/2023,5100331951,"1,305.62",CITY PLUMBING SUPPLIES,530034,BH,Direct - Building Items,403013,
http://statistics.data.gov.uk/doc/lolcal-authority/00CC,BarnsleyMBC,06/01/2023,5100331964,763.79,CITY PLUMBING SUPPLIES,530034,BH,Direct - Building Items,403013,
http://statistics.data.gov.uk/doc/lolcal-authority/00CC,BarnsleyMBC,10/01/2023,5100332000,"1,590.34",CITY PLUMBING SUPPLIES,530034,BH,,
http://statistics.data.gov.uk/doc/lolcal-authority/00CC,BarnsleyMBC,10/01/2023,5100331946,752.76,CITY PLUMBING SUPPLIES,530034,BH,,
http://statistics.data.gov.uk/doc/lolcal-authority/00CC,BarnsleyMBC,10/01/2023,5100331943,"1,009.26",CITY PLUMBING SUPPLIES,530034,BH,,
http://statistics.data.gov.uk/doc/lolcal-authority/00CC,BarnsleyMBC,10/01/2023,5100331999,"3,923.75",CITY PLUMBING SUPPLIES,530034,BH,,
http://statistics.data.gov.uk/doc/lolcal-authority/00CC,BarnsleyMBC,10/01/2023,5100332007,"1,086.81",CITY PLUMBING SUPPLIES,530034,BH,Equipment - Repair and Maintenance,400003,
http://statistics.data.gov.uk/doc/lolcal-authority/00CC,BarnsleyMBC,11/01/2023,5100332040,"1,853.12",CITY PLUMBING SUPPLIES,530034,BH,,
http://statistics.data.gov.uk/doc/lolcal-authority/00CC,BarnsleyMBC,12/01/2023,5100332208,977.78,CITY PLUMBING SUPPLIES,530034,BH,Direct - Building Items,403013,
http://statistics.data.gov.uk/doc/lolcal-authority/00CC,BarnsleyMBC,12/01/2023,5100332237,"4,044.83",CITY PLUMBING SUPPLIES,530034,BH,,
http://statistics.data.gov.uk/doc/lolcal-authority/00CC,BarnsleyMBC,12/01/2023,5100332207,"1,758.35",CITY PLUMBING SUPPLIES,530034,BH,Direct - Building Items,403013,
http://statistics.data.gov.uk/doc/lolcal-authority/00CC,BarnsleyMBC,12/01/2023,5100332233,908.77,CITY PLUMBING SUPPLIES,530034,BH,,
http://statistics.data.gov.uk/doc/lolcal-authority/00CC,BarnsleyMBC,12/01/2023,5100332232,"2,111.48",CITY PLUMBING SUPPLIES,530034,BH,,
http://statistics.data.gov.uk/doc/lolcal-authority/00CC,BarnsleyMBC,12/01/2023,5100332235,"1,724.88",CITY PLUMBING SUPPLIES,530034,BH,,
http://statistics.data.gov.uk/doc/lolcal-authority/00CC,BarnsleyMBC,12/01/2023,5100332236,981.6,CITY PLUMBING SUPPLIES,530034,BH,,
http://statistics.data.gov.uk/doc/lolcal-authority/00CC,BarnsleyMBC,12/01/2023,5100332223,"1,211.52",CITY PLUMBING SUPPLIES,530034,BH,,
http://statistics.data.gov.uk/doc/lolcal-authority/00CC,BarnsleyMBC,12/01/2023,5100332205,"1,182.93",CITY PLUMBING SUPPLIES,530034,BH,Direct - Building Items,403013,
http://statistics.data.gov.uk/doc/lolcal-authority/00CC,BarnsleyMBC,12/01/2023,5100332215,"1,001.02",CITY PLUMBING SUPPLIES,530034,BH,Direct - Building Items,403013,
http://statistics.data.gov.uk/doc/lolcal-authority/00CC,BarnsleyMBC,12/01/2023,5100332213,"1,001.02",CITY PLUMBING SUPPLIES,530034,BH,Direct - Building Items,403013,
http://statistics.data.gov.uk/doc/lolcal-authority/00CC,BarnsleyMBC,12/01/2023,5100332212,"1,299.04",CITY PLUMBING SUPPLIES,530034,BH,Direct - Building Items,403013,
http://statistics.data.gov.uk/doc/lolcal-authority/00CC,BarnsleyMBC,12/01/2023,5100332211,882.9,CITY PLUMBING SUPPLIES,530034,BH,Direct - Building Items,403013,
http://statistics.data.gov.uk/doc/lolcal-authority/00CC,BarnsleyMBC,12/01/2023,5100332216,814.32,CITY PLUMBING SUPPLIES,530034,BH,Direct - Building Items,403013,
http://statistics.data.gov.uk/doc/lolcal-authority/00CC,BarnsleyMBC,12/01/2023,5100332210,786.5,CITY PLUMBING SUPPLIES,530034,BH,Direct - Building Items,403013,
http://statistics.data.gov.uk/doc/lolcal-authority/00CC,BarnsleyMBC,12/01/2023,5100332226,923.57,CITY PLUMBING SUPPLIES,530034,BH,,
http://statistics.data.gov.uk/doc/lolcal-authority/00CC,BarnsleyMBC,12/01/2023,5100332220,"1,001.19",CITY PLUMBING SUPPLIES,530034,BH,Direct - Building Items,403013,
http://statistics.data.gov.uk/doc/lolcal-authority/00CC,BarnsleyMBC,12/01/2023,5100332204,"1,315.20",CITY PLUMBING SUPPLIES,530034,BH,Direct - Building Items,403013,
http://statistics.data.gov.uk/doc/lolcal-authority/00CC,BarnsleyMBC,13/01/2023,5100332386,813.31,CITY PLUMBING SUPPLIES,530034,BH,Direct - Building Items,403013,
http://statistics.data.gov.uk/doc/lolcal-authority/00CC,BarnsleyMBC,16/01/2023,5100332418,761.78,CITY PLUMBING SUPPLIES,530034,BH,Direct - Building Items,403013,
http://statistics.data.gov.uk/doc/lolcal-authority/00CC,BarnsleyMBC,16/01/2023,5100332420,"40,772.57",CITY PLUMBING SUPPLIES,530034,BH,Direct - Building Items,403013,
http://statistics.data.gov.uk/doc/lolcal-authority/00CC,BarnsleyMBC,16/01/2023,5100332222,931.16,CITY PLUMBING SUPPLIES,530034,BH,Direct - Building Items,403013,
http://statistics.data.gov.uk/doc/lolcal-authority/00CC,BarnsleyMBC,16/01/2023,5100332419,"8,870.52",CITY PLUMBING SUPPLIES,530034,BH,Direct - Building Items,403013,
http://statistics.data.gov.uk/doc/lolcal-authority/00CC,BarnsleyMBC,16/01/2023,5100332221,"1,419.75",CITY PLUMBING SUPPLIES,530034,BH,Direct - Building Items,403013,
http://statistics.data.gov.uk/doc/lolcal-authority/00CC,BarnsleyMBC,16/01/2023,5100332417,"1,366.40",CITY PLUMBING SUPPLIES,530034,BH,Direct - Building Items,403013,
http://statistics.data.gov.uk/doc/lolcal-authority/00CC,BarnsleyMBC,17/01/2023,5100332228,"1,089.72",CITY PLUMBING SUPPLIES,530034,BH,,
http://statistics.data.gov.uk/doc/lolcal-authority/00CC,BarnsleyMBC,17/01/2023,5100332231,"8,210.35",CITY PLUMBING SUPPLIES,530034,BH,,
http://statistics.data.gov.uk/doc/lolcal-authority/00CC,BarnsleyMBC,17/01/2023,5100332229,513.36,CITY PLUMBING SUPPLIES,530034,BH,,
http://statistics.data.gov.uk/doc/lolcal-authority/00CC,BarnsleyMBC,17/01/2023,5100332415,"1,419.75",CITY PLUMBING SUPPLIES,530034,BH,Direct - Building Items,403013,
http://statistics.data.gov.uk/doc/lolcal-authority/00CC,BarnsleyMBC,17/01/2023,5100332234,"1,874.34",CITY PLUMBING SUPPLIES,530034,BH,,
http://statistics.data.gov.uk/doc/lolcal-authority/00CC,BarnsleyMBC,17/01/2023,5100332311,"1,579.32",CITY PLUMBING SUPPLIES,530034,BH,,
http://statistics.data.gov.uk/doc/lolcal-authority/00CC,BarnsleyMBC,17/01/2023,5100332230,608.4,CITY PLUMBING SUPPLIES,530034,BH,Equipment - Electrical Goods,400007,
http://statistics.data.gov.uk/doc/lolcal-authority/00CC,BarnsleyMBC,18/01/2023,5100332414,"1,415.22",CITY PLUMBING SUPPLIES,530034,BH,Direct - Building Items,403013,
http://statistics.data.gov.uk/doc/lolcal-authority/00CC,BarnsleyMBC,19/01/2023,5100332592,984.92,CITY PLUMBING SUPPLIES,530034,BH,Direct - Building Items,403013,
http://statistics.data.gov.uk/doc/lolcal-authority/00CC,BarnsleyMBC,19/01/2023,5100332411,801.76,CITY PLUMBING SUPPLIES,530034,BH,Direct - Building Items,403013,
http://statistics.data.gov.uk/doc/lolcal-authority/00CC,BarnsleyMBC,20/01/2023,5100332744,"1,107.67",CITY PLUMBING SUPPLIES,530034,BH,,
http://statistics.data.gov.uk/doc/lolcal-authority/00CC,BarnsleyMBC,20/01/2023,5100332746,"2,115.86",CITY PLUMBING SUPPLIES,530034,BH,,
http://statistics.data.gov.uk/doc/lolcal-authority/00CC,BarnsleyMBC,20/01/2023,5100332781,636.02,CITY PLUMBING SUPPLIES,530034,BH,,
http://statistics.data.gov.uk/doc/lolcal-authority/00CC,BarnsleyMBC,20/01/2023,5100332750,585.12,CITY PLUMBING SUPPLIES,530034,BH,,
http://statistics.data.gov.uk/doc/lolcal-authority/00CC,BarnsleyMBC,20/01/2023,5100332745,755.39,CITY PLUMBING SUPPLIES,530034,BH,,
http://statistics.data.gov.uk/doc/lolcal-authority/00CC,BarnsleyMBC,20/01/2023,5100332749,524.15,CITY PLUMBING SUPPLIES,530034,BH,,
http://statistics.data.gov.uk/doc/lolcal-authority/00CC,BarnsleyMBC,20/01/2023,5100332747,584.88,CITY PLUMBING SUPPLIES,530034,BH,,
http://statistics.data.gov.uk/doc/lolcal-authority/00CC,BarnsleyMBC,20/01/2023,5100332756,"2,131.42",CITY PLUMBING SUPPLIES,530034,BH,,
http://statistics.data.gov.uk/doc/lolcal-authority/00CC,BarnsleyMBC,20/01/2023,5100332782,883.97,CITY PLUMBING SUPPLIES,530034,BH,,
http://statistics.data.gov.uk/doc/lolcal-authority/00CC,BarnsleyMBC,20/01/2023,5100332736,986.66,CITY PLUMBING SUPPLIES,530034,BH,,
http://statistics.data.gov.uk/doc/lolcal-authority/00CC,BarnsleyMBC,20/01/2023,5100332737,715.2,CITY PLUMBING SUPPLIES,530034,BH,Equipment - Repair and Maintenance,400003,
http://statistics.data.gov.uk/doc/lolcal-authority/00CC,BarnsleyMBC,23/01/2023,5100332569,712.26,CITY PLUMBING SUPPLIES,530034,BH,,
http://statistics.data.gov.uk/doc/lolcal-authority/00CC,BarnsleyMBC,23/01/2023,5100332573,"2,430.72",CITY PLUMBING SUPPLIES,530034,BH,,
http://statistics.data.gov.uk/doc/lolcal-authority/00CC,BarnsleyMBC,23/01/2023,5100332863,"1,714.72",CITY PLUMBING SUPPLIES,530034,BH,Direct - Building Items,403013,
http://statistics.data.gov.uk/doc/lolcal-authority/00CC,BarnsleyMBC,23/01/2023,5100332864,"1,350.07",CITY PLUMBING SUPPLIES,530034,BH,Direct - Building Items,403013,
http://statistics.data.gov.uk/doc/lolcal-authority/00CC,BarnsleyMBC,23/01/2023,5100332811,784.2,CITY PLUMBING SUPPLIES,530034,BH,,
http://statistics.data.gov.uk/doc/lolcal-authority/00CC,BarnsleyMBC,23/01/2023,5100332809,"1,864.37",CITY PLUMBING SUPPLIES,530034,BH,,
http://statistics.data.gov.uk/doc/lolcal-authority/00CC,BarnsleyMBC,23/01/2023,5100332842,"1,171.28",CITY PLUMBING SUPPLIES,530034,BH,,
http://statistics.data.gov.uk/doc/lolcal-authority/00CC,BarnsleyMBC,23/01/2023,5100332801,909.6,CITY PLUMBING SUPPLIES,530034,BH,,
http://statistics.data.gov.uk/doc/lolcal-authority/00CC,BarnsleyMBC,23/01/2023,5100332575,"1,092.00",CITY PLUMBING SUPPLIES,530034,BH,,
http://statistics.data.gov.uk/doc/lolcal-authority/00CC,BarnsleyMBC,24/01/2023,5100332873,"9,208.43",CITY PLUMBING SUPPLIES,530034,BH,,
http://statistics.data.gov.uk/doc/lolcal-authority/00CC,BarnsleyMBC,24/01/2023,5100332656,691.06,CITY PLUMBING SUPPLIES,530034,BH,Direct - Building Items,403013,
http://statistics.data.gov.uk/doc/lolcal-authority/00CC,BarnsleyMBC,24/01/2023,5100332872,"1,008.10",CITY PLUMBING SUPPLIES,530034,BH,Direct - Building Items,403013,
http://statistics.data.gov.uk/doc/lolcal-authority/00CC,BarnsleyMBC,25/01/2023,5100332692,"6,584.68",CITY PLUMBING SUPPLIES,530034,BH,Direct - Building Items,403013,
http://statistics.data.gov.uk/doc/lolcal-authority/00CC,BarnsleyMBC,25/01/2023,5100333054,"3,186.00",CITY PLUMBING SUPPLIES,530034,BH,,
http://statistics.data.gov.uk/doc/lolcal-authority/00CC,BarnsleyMBC,25/01/2023,5100333039,"1,215.96",CITY PLUMBING SUPPLIES,530034,BH,Direct - Building Items,403013,
http://statistics.data.gov.uk/doc/lolcal-authority/00CC,BarnsleyMBC,25/01/2023,5100333053,649.76,CITY PLUMBING SUPPLIES,530034,BH,,
http://statistics.data.gov.uk/doc/lolcal-authority/00CC,BarnsleyMBC,25/01/2023,5100332684,791.38,CITY PLUMBING SUPPLIES,530034,BH,Equipment - Electrical Goods,400007,
http://statistics.data.gov.uk/doc/lolcal-authority/00CC,BarnsleyMBC,25/01/2023,5100333038,910.8,CITY PLUMBING SUPPLIES,530034,BH,,
http://statistics.data.gov.uk/doc/lolcal-authority/00CC,BarnsleyMBC,25/01/2023,5100333052,"3,068.83",CITY PLUMBING SUPPLIES,530034,BH,,
http://statistics.data.gov.uk/doc/lolcal-authority/00CC,BarnsleyMBC,25/01/2023,5100333051,520.92,CITY PLUMBING SUPPLIES,530034,BH,,
http://statistics.data.gov.uk/doc/lolcal-authority/00CC,BarnsleyMBC,25/01/2023,5100333037,"1,224.09",CITY PLUMBING SUPPLIES,530034,BH,Direct - Building Items,403013,
http://statistics.data.gov.uk/doc/lolcal-authority/00CC,BarnsleyMBC,25/01/2023,5100332688,"2,937.75",CITY PLUMBING SUPPLIES,530034,BH,,
http://statistics.data.gov.uk/doc/lolcal-authority/00CC,BarnsleyMBC,25/01/2023,5100333049,"1,372.45",CITY PLUMBING SUPPLIES,530034,BH,Direct - Building Items,403013,
http://statistics.data.gov.uk/doc/lolcal-authority/00CC,BarnsleyMBC,25/01/2023,5100333036,"6,158.85",CITY PLUMBING SUPPLIES,530034,BH,,
http://statistics.data.gov.uk/doc/lolcal-authority/00CC,BarnsleyMBC,25/01/2023,5100332836,"1,353.46",CITY PLUMBING SUPPLIES,530034,BH,,
http://statistics.data.gov.uk/doc/lolcal-authority/00CC,BarnsleyMBC,25/01/2023,5100332689,"2,878.39",CITY PLUMBING SUPPLIES,530034,BH,,
http://statistics.data.gov.uk/doc/lolcal-authority/00CC,BarnsleyMBC,26/01/2023,5100332850,"1,464.70",CITY PLUMBING SUPPLIES,530034,BH,,
http://statistics.data.gov.uk/doc/lolcal-authority/00CC,BarnsleyMBC,26/01/2023,5100332846,"2,184.17",CITY PLUMBING SUPPLIES,530034,BH,,
http://statistics.data.gov.uk/doc/lolcal-authority/00CC,BarnsleyMBC,26/01/2023,5100332851,"1,314.72",CITY PLUMBING SUPPLIES,530034,BH,,
http://statistics.data.gov.uk/doc/lolcal-authority/00CC,BarnsleyMBC,27/01/2023,5100332971,502.8,CITY PLUMBING SUPPLIES,530034,BH,Direct - Tools & Parts,403019,
http://statistics.data.gov.uk/doc/lolcal-authority/00CC,BarnsleyMBC,27/01/2023,5100333056,"1,081.07",CITY PLUMBING SUPPLIES,530034,BH,Direct - Building Items,403013,
http://statistics.data.gov.uk/doc/lolcal-authority/00CC,BarnsleyMBC,27/01/2023,5100333057,"1,398.26",CITY PLUMBING SUPPLIES,530034,BH,Direct - Building Items,403013,
http://statistics.data.gov.uk/doc/lolcal-authority/00CC,BarnsleyMBC,30/01/2023,5100333075,"1,464.70",CITY PLUMBING SUPPLIES,530034,BH,,
http://statistics.data.gov.uk/doc/lolcal-authority/00CC,BarnsleyMBC,30/01/2023,5100333068,815.69,CITY PLUMBING SUPPLIES,530034,BH,,
http://statistics.data.gov.uk/doc/lolcal-authority/00CC,BarnsleyMBC,30/01/2023,5100333239,"1,324.79",CITY PLUMBING SUPPLIES,530034,BH,Direct - Building Items,403013,
http://statistics.data.gov.uk/doc/lolcal-authority/00CC,BarnsleyMBC,30/01/2023,5100333070,"6,112.91",CITY PLUMBING SUPPLIES,530034,BH,,
http://statistics.data.gov.uk/doc/lolcal-authority/00CC,BarnsleyMBC,01/02/2023,5100333238,"1,102.83",CITY PLUMBING SUPPLIES,530034,BH,Direct - Building Items,403013,
http://statistics.data.gov.uk/doc/lolcal-authority/00CC,BarnsleyMBC,01/02/2023,5100333246,"6,701.17",CITY PLUMBING SUPPLIES,530034,BH,,
http://statistics.data.gov.uk/doc/lolcal-authority/00CC,BarnsleyMBC,01/02/2023,5100333396,"1,369.36",CITY PLUMBING SUPPLIES,530034,BH,Direct - Building Items,403013,
http://statistics.data.gov.uk/doc/lolcal-authority/00CC,BarnsleyMBC,01/02/2023,5100333398,"2,244.36",CITY PLUMBING SUPPLIES,530034,BH,,
http://statistics.data.gov.uk/doc/lolcal-authority/00CC,BarnsleyMBC,01/02/2023,5100333393,"1,018.60",CITY PLUMBING SUPPLIES,530034,BH,Direct - Building Items,403013,
http://statistics.data.gov.uk/doc/lolcal-authority/00CC,BarnsleyMBC,01/02/2023,5100333390,764.13,CITY PLUMBING SUPPLIES,530034,BH,Direct - Building Items,403013,
http://statistics.data.gov.uk/doc/lolcal-authority/00CC,BarnsleyMBC,01/02/2023,5100333247,"4,262.40",CITY PLUMBING SUPPLIES,530034,BH,,
http://statistics.data.gov.uk/doc/lolcal-authority/00CC,BarnsleyMBC,02/02/2023,5100333388,"1,029.82",CITY PLUMBING SUPPLIES,530034,BH,Direct - Building Items,403013,
http://statistics.data.gov.uk/doc/lolcal-authority/00CC,BarnsleyMBC,02/02/2023,5100333439,"1,085.08",CITY PLUMBING SUPPLIES,530034,BH,Direct - Building Items,403013,
http://statistics.data.gov.uk/doc/lolcal-authority/00CC,BarnsleyMBC,02/02/2023,5100333441,"1,269.44",CITY PLUMBING SUPPLIES,530034,BH,Direct - Building Items,403013,
http://statistics.data.gov.uk/doc/lolcal-authority/00CC,BarnsleyMBC,02/02/2023,5100333438,"1,463.98",CITY PLUMBING SUPPLIES,530034,BH,Direct - Building Items,403013,
http://statistics.data.gov.uk/doc/lolcal-authority/00CC,BarnsleyMBC,02/02/2023,5100333395,654.71,CITY PLUMBING SUPPLIES,530034,BH,Direct - Building Items,403013,
http://statistics.data.gov.uk/doc/lolcal-authority/00CC,BarnsleyMBC,02/02/2023,5100333254,555.42,CITY PLUMBING SUPPLIES,530034,BH,Direct - Tools & Parts,403019,
http://statistics.data.gov.uk/doc/lolcal-authority/00CC,BarnsleyMBC,02/02/2023,5100333437,621.63,CITY PLUMBING SUPPLIES,530034,BH,,
http://statistics.data.gov.uk/doc/lolcal-authority/00CC,BarnsleyMBC,03/02/2023,5100333440,"1,042.77",CITY PLUMBING SUPPLIES,530034,BH,Direct - Building Items,403013,
http://statistics.data.gov.uk/doc/lolcal-authority/00CC,BarnsleyMBC,03/02/2023,5100333442,"2,481.40",CITY PLUMBING SUPPLIES,530034,BH,Direct - Building Items,403013,
http://statistics.data.gov.uk/doc/lolcal-authority/00CC,BarnsleyMBC,06/02/2023,5100333323,"1,273.22",CITY PLUMBING SUPPLIES,530034,BH,,
http://statistics.data.gov.uk/doc/lolcal-authority/00CC,BarnsleyMBC,06/02/2023,5100333362,"4,665.60",CITY PLUMBING SUPPLIES,530034,BH,,
http://statistics.data.gov.uk/doc/lolcal-authority/00CC,BarnsleyMBC,06/02/2023,5100333361,"2,564.74",CITY PLUMBING SUPPLIES,530034,BH,,
http://statistics.data.gov.uk/doc/lolcal-authority/00CC,BarnsleyMBC,06/02/2023,5100333443,"1,247.94",CITY PLUMBING SUPPLIES,530034,BH,,
http://statistics.data.gov.uk/doc/lolcal-authority/00CC,BarnsleyMBC,06/02/2023,5100333524,886.18,CITY PLUMBING SUPPLIES,530034,BH,,
http://statistics.data.gov.uk/doc/lolcal-authority/00CC,BarnsleyMBC,07/02/2023,5100333522,"1,421.48",CITY PLUMBING SUPPLIES,530034,BH,Direct - Building Items,403013,
http://statistics.data.gov.uk/doc/lolcal-authority/00CC,BarnsleyMBC,07/02/2023,5100333526,"1,307.14",CITY PLUMBING SUPPLIES,530034,BH,Direct - Building Items,403013,
http://statistics.data.gov.uk/doc/lolcal-authority/00CC,BarnsleyMBC,07/02/2023,5100333523,969.54,CITY PLUMBING SUPPLIES,530034,BH,Direct - Building Items,403013,
http://statistics.data.gov.uk/doc/lolcal-authority/00CC,BarnsleyMBC,08/02/2023,5100333622,"1,209.51",CITY PLUMBING SUPPLIES,530034,BH,Direct - Building Items,403013,
http://statistics.data.gov.uk/doc/lolcal-authority/00CC,BarnsleyMBC,09/02/2023,5100333728,616.32,CITY PLUMBING SUPPLIES,530034,BH,,
http://statistics.data.gov.uk/doc/lolcal-authority/00CC,BarnsleyMBC,09/02/2023,5100333724,616.32,CITY PLUMBING SUPPLIES,530034,BH,,
http://statistics.data.gov.uk/doc/lolcal-authority/00CC,BarnsleyMBC,09/02/2023,5100333727,"1,349.28",CITY PLUMBING SUPPLIES,530034,BH,,
http://statistics.data.gov.uk/doc/lolcal-authority/00CC,BarnsleyMBC,09/02/2023,5100333732,753.7,CITY PLUMBING SUPPLIES,530034,BH,,
http://statistics.data.gov.uk/doc/lolcal-authority/00CC,BarnsleyMBC,09/02/2023,5100333735,"4,824.72",CITY PLUMBING SUPPLIES,530034,BH,,
http://statistics.data.gov.uk/doc/lolcal-authority/00CC,BarnsleyMBC,09/02/2023,5100333720,"1,150.62",CITY PLUMBING SUPPLIES,530034,BH,,
http://statistics.data.gov.uk/doc/lolcal-authority/00CC,BarnsleyMBC,09/02/2023,5100333726,"2,084.76",CITY PLUMBING SUPPLIES,530034,BH,,
http://statistics.data.gov.uk/doc/lolcal-authority/00CC,BarnsleyMBC,09/02/2023,5100333623,"1,426.79",CITY PLUMBING SUPPLIES,530034,BH,Direct - Building Items,403013,
http://statistics.data.gov.uk/doc/lolcal-authority/00CC,BarnsleyMBC,09/02/2023,5100333725,"1,777.63",CITY PLUMBING SUPPLIES,530034,BH,,
http://statistics.data.gov.uk/doc/lolcal-authority/00CC,BarnsleyMBC,09/02/2023,5100333731,"3,619.34",CITY PLUMBING SUPPLIES,530034,BH,,
http://statistics.data.gov.uk/doc/lolcal-authority/00CC,BarnsleyMBC,09/02/2023,5100333624,"1,212.26",CITY PLUMBING SUPPLIES,530034,BH,Direct - Building Items,403013,
http://statistics.data.gov.uk/doc/lolcal-authority/00CC,BarnsleyMBC,10/02/2023,5100333858,894.49,CITY PLUMBING SUPPLIES,530034,BH,Direct - Building Items,403013,
http://statistics.data.gov.uk/doc/lolcal-authority/00CC,BarnsleyMBC,10/02/2023,5100333855,"1,070.59",CITY PLUMBING SUPPLIES,530034,BH,Direct - Building Items,403013,
http://statistics.data.gov.uk/doc/lolcal-authority/00CC,BarnsleyMBC,10/02/2023,5100333857,956.74,CITY PLUMBING SUPPLIES,530034,BH,Direct - Building Items,403013,
http://statistics.data.gov.uk/doc/lolcal-authority/00CC,BarnsleyMBC,10/02/2023,5100333854,585.74,CITY PLUMBING SUPPLIES,530034,BH,Direct - Building Items,403013,
http://statistics.data.gov.uk/doc/lolcal-authority/00CC,BarnsleyMBC,10/02/2023,5100333856,"1,204.25",CITY PLUMBING SUPPLIES,530034,BH,Direct - Building Items,403013,
http://statistics.data.gov.uk/doc/lolcal-authority/00CC,BarnsleyMBC,10/02/2023,5100333862,"1,038.37",CITY PLUMBING SUPPLIES,530034,BH,Direct - Building Items,403013,
http://statistics.data.gov.uk/doc/lolcal-authority/00CC,BarnsleyMBC,13/02/2023,5100333864,"1,432.20",CITY PLUMBING SUPPLIES,530034,BH,Direct - Building Items,403013,
http://statistics.data.gov.uk/doc/lolcal-authority/00CC,BarnsleyMBC,13/02/2023,5100333742,"1,430.40",CITY PLUMBING SUPPLIES,530034,BH,,
http://statistics.data.gov.uk/doc/lolcal-authority/00CC,BarnsleyMBC,13/02/2023,5100333786,"1,241.16",CITY PLUMBING SUPPLIES,530034,BH,,
http://statistics.data.gov.uk/doc/lolcal-authority/00CC,BarnsleyMBC,13/02/2023,5100333860,"1,258.01",CITY PLUMBING SUPPLIES,530034,BH,Direct - Building Items,403013,
http://statistics.data.gov.uk/doc/lolcal-authority/00CC,BarnsleyMBC,13/02/2023,5100333722,637.73,CITY PLUMBING SUPPLIES,530034,BH,,
http://statistics.data.gov.uk/doc/lolcal-authority/00CC,BarnsleyMBC,14/02/2023,5100333828,654.49,CITY PLUMBING SUPPLIES,530034,BH,,
http://statistics.data.gov.uk/doc/lolcal-authority/00CC,BarnsleyMBC,14/02/2023,5100333816,561.6,CITY PLUMBING SUPPLIES,530034,BH,,
http://statistics.data.gov.uk/doc/lolcal-authority/00CC,BarnsleyMBC,14/02/2023,5100333863,"1,216.96",CITY PLUMBING SUPPLIES,530034,BH,Direct - Building Items,403013,
http://statistics.data.gov.uk/doc/lolcal-authority/00CC,BarnsleyMBC,15/02/2023,5100333914,"1,177.34",CITY PLUMBING SUPPLIES,530034,BH,Equipment - Electrical Goods,400007,
http://statistics.data.gov.uk/doc/lolcal-authority/00CC,BarnsleyMBC,15/02/2023,5100333918,"1,727.28",CITY PLUMBING SUPPLIES,530034,BH,,
http://statistics.data.gov.uk/doc/lolcal-authority/00CC,BarnsleyMBC,15/02/2023,5100333963,"1,271.68",CITY PLUMBING SUPPLIES,530034,BH,Direct - Building Items,403013,
http://statistics.data.gov.uk/doc/lolcal-authority/00CC,BarnsleyMBC,15/02/2023,5100334058,"1,987.34",CITY PLUMBING SUPPLIES,530034,BH,,
http://statistics.data.gov.uk/doc/lolcal-authority/00CC,BarnsleyMBC,15/02/2023,5100333903,880.32,CITY PLUMBING SUPPLIES,530034,BH,,
http://statistics.data.gov.uk/doc/lolcal-authority/00CC,BarnsleyMBC,15/02/2023,5100333945,786.5,CITY PLUMBING SUPPLIES,530034,BH,Direct - Building Items,403013,
http://statistics.data.gov.uk/doc/lolcal-authority/00CC,BarnsleyMBC,16/02/2023,5100334177,551.64,CITY PLUMBING SUPPLIES,530034,BH,,
http://statistics.data.gov.uk/doc/lolcal-authority/00CC,BarnsleyMBC,16/02/2023,5100334060,994.68,CITY PLUMBING SUPPLIES,530034,BH,Direct - Building Items,403013,
http://statistics.data.gov.uk/doc/lolcal-authority/00CC,BarnsleyMBC,16/02/2023,5100334163,859.74,CITY PLUMBING SUPPLIES,530034,BH,Equipment - Repair and Maintenance,400003,
http://statistics.data.gov.uk/doc/lolcal-authority/00CC,BarnsleyMBC,20/02/2023,5100334111,"1,128.60",CITY PLUMBING SUPPLIES,530034,BH,Direct - Building Items,403013,
http://statistics.data.gov.uk/doc/lolcal-authority/00CC,BarnsleyMBC,20/02/2023,5100334087,"1,434.12",CITY PLUMBING SUPPLIES,530034,BH,,
http://statistics.data.gov.uk/doc/lolcal-authority/00CC,BarnsleyMBC,20/02/2023,5100334152,"1,949.21",CITY PLUMBING SUPPLIES,530034,BH,,
http://statistics.data.gov.uk/doc/lolcal-authority/00CC,BarnsleyMBC,20/02/2023,5100334089,974.27,CITY PLUMBING SUPPLIES,530034,BH,,
http://statistics.data.gov.uk/doc/lolcal-authority/00CC,BarnsleyMBC,20/02/2023,5100334088,"1,209.88",CITY PLUMBING SUPPLIES,530034,BH,,
http://statistics.data.gov.uk/doc/lolcal-authority/00CC,BarnsleyMBC,20/02/2023,5100334113,"1,376.82",CITY PLUMBING SUPPLIES,530034,BH,,
http://statistics.data.gov.uk/doc/lolcal-authority/00CC,BarnsleyMBC,20/02/2023,5100334109,"1,235.49",CITY PLUMBING SUPPLIES,530034,BH,Direct - Building Items,403013,
http://statistics.data.gov.uk/doc/lolcal-authority/00CC,BarnsleyMBC,20/02/2023,5100334110,"1,205.08",CITY PLUMBING SUPPLIES,530034,BH,Direct - Building Items,403013,
http://statistics.data.gov.uk/doc/lolcal-authority/00CC,BarnsleyMBC,20/02/2023,5100334158,"1,214.09",CITY PLUMBING SUPPLIES,530034,BH,Direct - Building Items,403013,
http://statistics.data.gov.uk/doc/lolcal-authority/00CC,BarnsleyMBC,20/02/2023,5100334097,"4,589.46",CITY PLUMBING SUPPLIES,530034,BH,,
http://statistics.data.gov.uk/doc/lolcal-authority/00CC,BarnsleyMBC,22/02/2023,5100334196,816.84,CITY PLUMBING SUPPLIES,530034,BH,,
http://statistics.data.gov.uk/doc/lolcal-authority/00CC,BarnsleyMBC,22/02/2023,5100334189,"3,693.41",CITY PLUMBING SUPPLIES,530034,BH,,
http://statistics.data.gov.uk/doc/lolcal-authority/00CC,BarnsleyMBC,22/02/2023,5100334209,704.98,CITY PLUMBING SUPPLIES,530034,BH,,
http://statistics.data.gov.uk/doc/lolcal-authority/00CC,BarnsleyMBC,22/02/2023,5100334423,"3,555.54",CITY PLUMBING SUPPLIES,530034,BH,,
http://statistics.data.gov.uk/doc/lolcal-authority/00CC,BarnsleyMBC,22/02/2023,5100334207,655.56,CITY PLUMBING SUPPLIES,530034,BH,,
http://statistics.data.gov.uk/doc/lolcal-authority/00CC,BarnsleyMBC,22/02/2023,5100334193,"2,131.69",CITY PLUMBING SUPPLIES,530034,BH,,
http://statistics.data.gov.uk/doc/lolcal-authority/00CC,BarnsleyMBC,22/02/2023,5100334206,"1,592.82",CITY PLUMBING SUPPLIES,530034,BH,,
http://statistics.data.gov.uk/doc/lolcal-authority/00CC,BarnsleyMBC,22/02/2023,5100334225,"3,175.90",CITY PLUMBING SUPPLIES,530034,BH,Equipment - Electrical Goods,400007,
http://statistics.data.gov.uk/doc/lolcal-authority/00CC,BarnsleyMBC,22/02/2023,5100334288,703.01,CITY PLUMBING SUPPLIES,530034,BH,,
http://statistics.data.gov.uk/doc/lolcal-authority/00CC,BarnsleyMBC,27/02/2023,5100334361,"1,615.20",CITY PLUMBING SUPPLIES,530034,BH,,
http://statistics.data.gov.uk/doc/lolcal-authority/00CC,BarnsleyMBC,27/02/2023,5100334363,849.42,CITY PLUMBING SUPPLIES,530034,BH,,
http://statistics.data.gov.uk/doc/lolcal-authority/00CC,BarnsleyMBC,27/02/2023,5100334364,737.1,CITY PLUMBING SUPPLIES,530034,BH,,
http://statistics.data.gov.uk/doc/lolcal-authority/00CC,BarnsleyMBC,27/02/2023,5100334360,792.01,CITY PLUMBING SUPPLIES,530034,BH,,
http://statistics.data.gov.uk/doc/lolcal-authority/00CC,BarnsleyMBC,27/02/2023,5100334372,"1,537.56",CITY PLUMBING SUPPLIES,530034,BH,,
http://statistics.data.gov.uk/doc/lolcal-authority/00CC,BarnsleyMBC,27/02/2023,5100334426,"1,293.94",CITY PLUMBING SUPPLIES,530034,BH,Direct - Building Items,403013,
http://statistics.data.gov.uk/doc/lolcal-authority/00CC,BarnsleyMBC,01/03/2023,5100334699,875.16,CITY PLUMBING SUPPLIES,530034,BH,Direct - Building Items,403013,
http://statistics.data.gov.uk/doc/lolcal-authority/00CC,BarnsleyMBC,01/03/2023,5100334505,775,CITY PLUMBING SUPPLIES,530034,BH,,
http://statistics.data.gov.uk/doc/lolcal-authority/00CC,BarnsleyMBC,01/03/2023,5100334582,524.52,CITY PLUMBING SUPPLIES,530034,BH,,
http://statistics.data.gov.uk/doc/lolcal-authority/00CC,BarnsleyMBC,01/03/2023,5100334513,577.98,CITY PLUMBING SUPPLIES,530034,BH,,
http://statistics.data.gov.uk/doc/lolcal-authority/00CC,BarnsleyMBC,01/03/2023,5100334500,"3,197.69",CITY PLUMBING SUPPLIES,530034,BH,,
http://statistics.data.gov.uk/doc/lolcal-authority/00CC,BarnsleyMBC,01/03/2023,5100334510,"1,240.71",CITY PLUMBING SUPPLIES,530034,BH,,
http://statistics.data.gov.uk/doc/lolcal-authority/00CC,BarnsleyMBC,01/03/2023,5100334515,688.32,CITY PLUMBING SUPPLIES,530034,BH,,
http://statistics.data.gov.uk/doc/lolcal-authority/00CC,BarnsleyMBC,01/03/2023,5100334700,"1,523.83",CITY PLUMBING SUPPLIES,530034,BH,Direct - Building Items,403013,
http://statistics.data.gov.uk/doc/lolcal-authority/00CC,BarnsleyMBC,03/03/2023,5100334706,"1,665.00",CITY PLUMBING SUPPLIES,530034,BH,,
http://statistics.data.gov.uk/doc/lolcal-authority/00CC,BarnsleyMBC,03/03/2023,5100334692,"2,884.69",CITY PLUMBING SUPPLIES,530034,BH,,
http://statistics.data.gov.uk/doc/lolcal-authority/00CC,BarnsleyMBC,03/03/2023,5100334705,667.62,CITY PLUMBING SUPPLIES,530034,BH,,
http://statistics.data.gov.uk/doc/lolcal-authority/00CC,BarnsleyMBC,03/03/2023,5100334856,"2,468.31",CITY PLUMBING SUPPLIES,530034,BH,,
http://statistics.data.gov.uk/doc/lolcal-authority/00CC,BarnsleyMBC,03/03/2023,5100334857,"1,516.99",CITY PLUMBING SUPPLIES,530034,BH,Direct - Building Items,403013,
http://statistics.data.gov.uk/doc/lolcal-authority/00CC,BarnsleyMBC,03/03/2023,5100334691,832.14,CITY PLUMBING SUPPLIES,530034,BH,,
http://statistics.data.gov.uk/doc/lolcal-authority/00CC,BarnsleyMBC,07/03/2023,5100334847,588.96,CITY PLUMBING SUPPLIES,530034,BH,,
http://statistics.data.gov.uk/doc/lolcal-authority/00CC,BarnsleyMBC,07/03/2023,5100334859,"1,183.18",CITY PLUMBING SUPPLIES,530034,BH,Direct - Building Items,403013,
http://statistics.data.gov.uk/doc/lolcal-authority/00CC,BarnsleyMBC,07/03/2023,5100334863,"1,386.33",CITY PLUMBING SUPPLIES,530034,BH,Direct - Building Items,403013,
http://statistics.data.gov.uk/doc/lolcal-authority/00CC,BarnsleyMBC,07/03/2023,5100334862,927.9,CITY PLUMBING SUPPLIES,530034,BH,Direct - Building Items,403013,
http://statistics.data.gov.uk/doc/lolcal-authority/00CC,BarnsleyMBC,07/03/2023,5100334958,"1,510.49",CITY PLUMBING SUPPLIES,530034,BH,Direct - Building Items,403013,
http://statistics.data.gov.uk/doc/lolcal-authority/00CC,BarnsleyMBC,08/03/2023,5100334899,626.23,CITY PLUMBING SUPPLIES,530034,BH,,
http://statistics.data.gov.uk/doc/lolcal-authority/00CC,BarnsleyMBC,08/03/2023,5100334903,"1,107.00",CITY PLUMBING SUPPLIES,530034,BH,,
http://statistics.data.gov.uk/doc/lolcal-authority/00CC,BarnsleyMBC,08/03/2023,5100334906,894.94,CITY PLUMBING SUPPLIES,530034,BH,,
http://statistics.data.gov.uk/doc/lolcal-authority/00CC,BarnsleyMBC,08/03/2023,5100334956,"2,560.47",CITY PLUMBING SUPPLIES,530034,BH,,
http://statistics.data.gov.uk/doc/lolcal-authority/00CC,BarnsleyMBC,08/03/2023,5100334934,733.66,CITY PLUMBING SUPPLIES,530034,BH,,
http://statistics.data.gov.uk/doc/lolcal-authority/00CC,BarnsleyMBC,08/03/2023,5100334902,"1,842.72",CITY PLUMBING SUPPLIES,530034,BH,,
http://statistics.data.gov.uk/doc/lolcal-authority/00CC,BarnsleyMBC,08/03/2023,5100334901,"1,466.49",CITY PLUMBING SUPPLIES,530034,BH,,
http://statistics.data.gov.uk/doc/lolcal-authority/00CC,BarnsleyMBC,10/03/2023,5100335133,868,CITY PLUMBING SUPPLIES,530034,BH,,
http://statistics.data.gov.uk/doc/lolcal-authority/00CC,BarnsleyMBC,13/03/2023,5100335292,589.88,CITY PLUMBING SUPPLIES,530034,BH,,
http://statistics.data.gov.uk/doc/lolcal-authority/00CC,BarnsleyMBC,13/03/2023,5100335149,"1,092.00",CITY PLUMBING SUPPLIES,530034,BH,,
http://statistics.data.gov.uk/doc/lolcal-authority/00CC,BarnsleyMBC,13/03/2023,5100335192,780.72,CITY PLUMBING SUPPLIES,530034,BH,,
http://statistics.data.gov.uk/doc/lolcal-authority/00CC,BarnsleyMBC,13/03/2023,5100335129,"1,185.43",CITY PLUMBING SUPPLIES,530034,BH,,
http://statistics.data.gov.uk/doc/lolcal-authority/00CC,BarnsleyMBC,14/03/2023,5100335212,"4,262.40",CITY PLUMBING SUPPLIES,530034,BH,,
http://statistics.data.gov.uk/doc/lolcal-authority/00CC,BarnsleyMBC,14/03/2023,5100335215,"1,022.61",CITY PLUMBING SUPPLIES,530034,BH,,
http://statistics.data.gov.uk/doc/lolcal-authority/00CC,BarnsleyMBC,14/03/2023,5100335294,911.57,CITY PLUMBING SUPPLIES,530034,BH,,
http://statistics.data.gov.uk/doc/lolcal-authority/00CC,BarnsleyMBC,14/03/2023,5100335216,"1,126.83",CITY PLUMBING SUPPLIES,530034,BH,,
http://statistics.data.gov.uk/doc/lolcal-authority/00CC,BarnsleyMBC,14/03/2023,5100335290,"1,265.23",CITY PLUMBING SUPPLIES,530034,BH,,
http://statistics.data.gov.uk/doc/lolcal-authority/00CC,BarnsleyMBC,14/03/2023,5100335213,"1,010.87",CITY PLUMBING SUPPLIES,530034,BH,,
http://statistics.data.gov.uk/doc/lolcal-authority/00CC,BarnsleyMBC,14/03/2023,5100335211,548.88,CITY PLUMBING SUPPLIES,530034,BH,,
http://statistics.data.gov.uk/doc/lolcal-authority/00CC,BarnsleyMBC,15/03/2023,5100335289,"2,240.92",CITY PLUMBING SUPPLIES,530034,BH,,
http://statistics.data.gov.uk/doc/lolcal-authority/00CC,BarnsleyMBC,15/03/2023,5100335397,"1,281.58",CITY PLUMBING SUPPLIES,530034,BH,,
http://statistics.data.gov.uk/doc/lolcal-authority/00CC,BarnsleyMBC,15/03/2023,5100335264,"1,050.77",CITY PLUMBING SUPPLIES,530034,BH,,
http://statistics.data.gov.uk/doc/lolcal-authority/00CC,BarnsleyMBC,16/03/2023,5100335338,824.83,CITY PLUMBING SUPPLIES,530034,BH,,
http://statistics.data.gov.uk/doc/lolcal-authority/00CC,BarnsleyMBC,16/03/2023,5100335337,915.62,CITY PLUMBING SUPPLIES,530034,BH,,
http://statistics.data.gov.uk/doc/lolcal-authority/00CC,BarnsleyMBC,16/03/2023,5100335452,"1,519.12",CITY PLUMBING SUPPLIES,530034,BH,,
http://statistics.data.gov.uk/doc/lolcal-authority/00CC,BarnsleyMBC,20/03/2023,5100335438,"2,323.16",CITY PLUMBING SUPPLIES,530034,BH,,
http://statistics.data.gov.uk/doc/lolcal-authority/00CC,BarnsleyMBC,20/03/2023,5100335439,"3,245.01",CITY PLUMBING SUPPLIES,530034,BH,,
http://statistics.data.gov.uk/doc/lolcal-authority/00CC,BarnsleyMBC,21/03/2023,5100335668,"6,784.88",CITY PLUMBING SUPPLIES,530034,BH,Direct - Building Items,403013,
http://statistics.data.gov.uk/doc/lolcal-authority/00CC,BarnsleyMBC,21/03/2023,5100335676,"1,442.75",CITY PLUMBING SUPPLIES,530034,BH,Direct - Building Items,403013,
http://statistics.data.gov.uk/doc/lolcal-authority/00CC,BarnsleyMBC,21/03/2023,5100335680,"1,466.96",CITY PLUMBING SUPPLIES,530034,BH,Direct - Building Items,403013,
http://statistics.data.gov.uk/doc/lolcal-authority/00CC,BarnsleyMBC,21/03/2023,5100335671,"1,415.60",CITY PLUMBING SUPPLIES,530034,BH,Direct - Building Items,403013,
http://statistics.data.gov.uk/doc/lolcal-authority/00CC,BarnsleyMBC,21/03/2023,5100335679,"1,290.69",CITY PLUMBING SUPPLIES,530034,BH,Direct - Building Items,403013,
http://statistics.data.gov.uk/doc/lolcal-authority/00CC,BarnsleyMBC,21/03/2023,5100335672,"1,417.68",CITY PLUMBING SUPPLIES,530034,BH,Direct - Building Items,403013,
http://statistics.data.gov.uk/doc/lolcal-authority/00CC,BarnsleyMBC,21/03/2023,5100335667,"3,632.87",CITY PLUMBING SUPPLIES,530034,BH,Direct - Building Items,403013,
http://statistics.data.gov.uk/doc/lolcal-authority/00CC,BarnsleyMBC,21/03/2023,5100335669,"10,491.82",CITY PLUMBING SUPPLIES,530034,BH,Direct - Building Items,403013,
http://statistics.data.gov.uk/doc/lolcal-authority/00CC,BarnsleyMBC,21/03/2023,5100335545,929.76,CITY PLUMBING SUPPLIES,530034,BH,,
http://statistics.data.gov.uk/doc/lolcal-authority/00CC,BarnsleyMBC,21/03/2023,5100335670,"11,624.44",CITY PLUMBING SUPPLIES,530034,BH,Direct - Building Items,403013,
http://statistics.data.gov.uk/doc/lolcal-authority/00CC,BarnsleyMBC,21/03/2023,5100335666,"4,653.56",CITY PLUMBING SUPPLIES,530034,BH,Direct - Building Items,403013,
http://statistics.data.gov.uk/doc/lolcal-authority/00CC,BarnsleyMBC,22/03/2023,5100335557,"1,441.80",CITY PLUMBING SUPPLIES,530034,BH,,
http://statistics.data.gov.uk/doc/lolcal-authority/00CC,BarnsleyMBC,22/03/2023,5100335559,"2,233.20",CITY PLUMBING SUPPLIES,530034,BH,,
http://statistics.data.gov.uk/doc/lolcal-authority/00CC,BarnsleyMBC,22/03/2023,5100335581,"1,775.25",CITY PLUMBING SUPPLIES,530034,BH,,
http://statistics.data.gov.uk/doc/lolcal-authority/00CC,BarnsleyMBC,22/03/2023,5100335792,785.49,CITY PLUMBING SUPPLIES,530034,BH,Direct - Building Items,403013,
http://statistics.data.gov.uk/doc/lolcal-authority/00CC,BarnsleyMBC,23/03/2023,5100335605,"8,812.37",CITY PLUMBING SUPPLIES,530034,BH,,
http://statistics.data.gov.uk/doc/lolcal-authority/00CC,BarnsleyMBC,23/03/2023,5100335615,"1,430.40",CITY PLUMBING SUPPLIES,530034,BH,,
http://statistics.data.gov.uk/doc/lolcal-authority/00CC,BarnsleyMBC,23/03/2023,5100335604,"1,295.42",CITY PLUMBING SUPPLIES,530034,BH,,
http://statistics.data.gov.uk/doc/lolcal-authority/00CC,BarnsleyMBC,27/03/2023,5100335924,518.22,CITY PLUMBING SUPPLIES,530034,BH,,
http://statistics.data.gov.uk/doc/lolcal-authority/00CC,BarnsleyMBC,27/03/2023,5100335931,"1,388.08",CITY PLUMBING SUPPLIES,530034,BH,Direct - Building Items,403013,
http://statistics.data.gov.uk/doc/lolcal-authority/00CC,BarnsleyMBC,27/03/2023,5100335848,"7,165.26",CITY PLUMBING SUPPLIES,530034,BH,,
http://statistics.data.gov.uk/doc/lolcal-authority/00CC,BarnsleyMBC,27/03/2023,5100335849,"1,017.29",CITY PLUMBING SUPPLIES,530034,BH,,
http://statistics.data.gov.uk/doc/lolcal-authority/00CC,BarnsleyMBC,27/03/2023,5100335853,"2,249.52",CITY PLUMBING SUPPLIES,530034,BH,,
http://statistics.data.gov.uk/doc/lolcal-authority/00CC,BarnsleyMBC,28/03/2023,5100335879,"1,833.72",CITY PLUMBING SUPPLIES,530034,BH,,
http://statistics.data.gov.uk/doc/lolcal-authority/00CC,BarnsleyMBC,30/03/2023,5100336013,722.16,CITY PLUMBING SUPPLIES,530034,BH,,
http://statistics.data.gov.uk/doc/lolcal-authority/00CC,BarnsleyMBC,30/03/2023,5100336014,"2,186.28",CITY PLUMBING SUPPLIES,530034,BH,,
http://statistics.data.gov.uk/doc/lolcal-authority/00CC,BarnsleyMBC,25/01/2023,5100333071,"2,398.80",CLARION HOUSING GROUP,534313,BH,Subscriptions & Contributions,430002,
http://statistics.data.gov.uk/doc/lolcal-authority/00CC,BarnsleyMBC,23/02/2023,5100334455,523.2,CLOSOMAT LTD,534392,BH,Main contractor,506011,
http://statistics.data.gov.uk/doc/lolcal-authority/00CC,BarnsleyMBC,14/03/2023,5100335406,"3,000.00",Communities That Work Ltd,600196,BH,Subscriptions & Contributions,430002,
http://statistics.data.gov.uk/doc/lolcal-authority/00CC,BarnsleyMBC,03/03/2023,5100334864,943.75,COMPETENT ASPHALT CO LTD,530383,BH,Main contractor,506011,
http://statistics.data.gov.uk/doc/lolcal-authority/00CC,BarnsleyMBC,16/01/2023,5200078999,"10,954.73",CORONA ENERGY,585148,BH,Energy - Gas,210002,
http://statistics.data.gov.uk/doc/lolcal-authority/00CC,BarnsleyMBC,16/01/2023,5200078998,"5,011.17",CORONA ENERGY,585148,BH,Energy - Gas,210002,
http://statistics.data.gov.uk/doc/lolcal-authority/00CC,BarnsleyMBC,16/01/2023,5200079010,"6,524.12",CORONA ENERGY,585148,BH,Energy - Gas,210002,
http://statistics.data.gov.uk/doc/lolcal-authority/00CC,BarnsleyMBC,16/01/2023,5200079012,"1,275.73",CORONA ENERGY,585148,BH,Energy - Gas,210002,
http://statistics.data.gov.uk/doc/lolcal-authority/00CC,BarnsleyMBC,16/01/2023,5200079009,"3,005.39",CORONA ENERGY,585148,BH,Energy - Gas,210002,
http://statistics.data.gov.uk/doc/lolcal-authority/00CC,BarnsleyMBC,16/01/2023,5200079006,"1,199.52",CORONA ENERGY,585148,BH,Energy - Gas,210002,
http://statistics.data.gov.uk/doc/lolcal-authority/00CC,BarnsleyMBC,16/01/2023,5200079005,"13,529.65",CORONA ENERGY,585148,BH,Energy - Gas,210002,
http://statistics.data.gov.uk/doc/lolcal-authority/00CC,BarnsleyMBC,16/01/2023,5200079004,"7,324.80",CORONA ENERGY,585148,BH,Energy - Gas,210002,
http://statistics.data.gov.uk/doc/lolcal-authority/00CC,BarnsleyMBC,16/01/2023,5200079017,"2,103.22",CORONA ENERGY,585148,BH,Energy - Gas,210002,
http://statistics.data.gov.uk/doc/lolcal-authority/00CC,BarnsleyMBC,16/01/2023,5200079019,"1,783.03",CORONA ENERGY,585148,BH,Energy - Gas,210002,
http://statistics.data.gov.uk/doc/lolcal-authority/00CC,BarnsleyMBC,16/01/2023,5200079020,961.61,CORONA ENERGY,585148,BH,Energy - Gas,210002,
http://statistics.data.gov.uk/doc/lolcal-authority/00CC,BarnsleyMBC,16/01/2023,5200079023,"4,955.79",CORONA ENERGY,585148,BH,Energy - Gas,210002,
http://statistics.data.gov.uk/doc/lolcal-authority/00CC,BarnsleyMBC,16/01/2023,5200079000,"1,431.69",CORONA ENERGY,585148,BH,Energy - Gas,210002,
http://statistics.data.gov.uk/doc/lolcal-authority/00CC,BarnsleyMBC,16/01/2023,5200079024,"4,593.71",CORONA ENERGY,585148,BH,Energy - Gas,210002,
http://statistics.data.gov.uk/doc/lolcal-authority/00CC,BarnsleyMBC,16/01/2023,5200079025,692.31,CORONA ENERGY,585148,BH,Energy - Gas,210002,
http://statistics.data.gov.uk/doc/lolcal-authority/00CC,BarnsleyMBC,16/01/2023,5200079029,"5,890.47",CORONA ENERGY,585148,BH,Energy - Gas,210002,
http://statistics.data.gov.uk/doc/lolcal-authority/00CC,BarnsleyMBC,16/01/2023,5200079032,"5,009.80",CORONA ENERGY,585148,BH,Energy - Gas,210002,
http://statistics.data.gov.uk/doc/lolcal-authority/00CC,BarnsleyMBC,16/01/2023,5200079034,"1,363.85",CORONA ENERGY,585148,BH,Energy - Gas,210002,
http://statistics.data.gov.uk/doc/lolcal-authority/00CC,BarnsleyMBC,16/01/2023,5200079035,782.3,CORONA ENERGY,585148,BH,Energy - Gas,210002,
http://statistics.data.gov.uk/doc/lolcal-authority/00CC,BarnsleyMBC,16/01/2023,5200079036,"6,246.26",CORONA ENERGY,585148,BH,Energy - Gas,210002,
http://statistics.data.gov.uk/doc/lolcal-authority/00CC,BarnsleyMBC,16/01/2023,5200078997,"2,699.11",CORONA ENERGY,585148,BH,Energy - Gas,210002,
http://statistics.data.gov.uk/doc/lolcal-authority/00CC,BarnsleyMBC,16/01/2023,5200078993,"2,433.99",CORONA ENERGY,585148,BH,Energy - Gas,210002,
http://statistics.data.gov.uk/doc/lolcal-authority/00CC,BarnsleyMBC,16/01/2023,5200078992,"16,321.59",CORONA ENERGY,585148,BH,Energy - Gas,210002,
http://statistics.data.gov.uk/doc/lolcal-authority/00CC,BarnsleyMBC,17/02/2023,5200080035,"7,803.52",CORONA ENERGY,585148,BH,Energy - Gas,210002,
http://statistics.data.gov.uk/doc/lolcal-authority/00CC,BarnsleyMBC,17/02/2023,5200080034,"1,170.70",CORONA ENERGY,585148,BH,Energy - Gas,210002,
http://statistics.data.gov.uk/doc/lolcal-authority/00CC,BarnsleyMBC,17/02/2023,5200080033,"1,864.52",CORONA ENERGY,585148,BH,Energy - Gas,210002,
http://statistics.data.gov.uk/doc/lolcal-authority/00CC,BarnsleyMBC,17/02/2023,5200080032,736.92,CORONA ENERGY,585148,BH,Energy - Gas,210002,
http://statistics.data.gov.uk/doc/lolcal-authority/00CC,BarnsleyMBC,17/02/2023,5200080031,"6,292.93",CORONA ENERGY,585148,BH,Energy - Gas,210002,
http://statistics.data.gov.uk/doc/lolcal-authority/00CC,BarnsleyMBC,17/02/2023,5200080028,"8,672.97",CORONA ENERGY,585148,BH,Energy - Gas,210002,
http://statistics.data.gov.uk/doc/lolcal-authority/00CC,BarnsleyMBC,17/02/2023,5200080024,767.6,CORONA ENERGY,585148,BH,Energy - Gas,210002,
http://statistics.data.gov.uk/doc/lolcal-authority/00CC,BarnsleyMBC,17/02/2023,5200080023,"5,376.69",CORONA ENERGY,585148,BH,Energy - Gas,210002,
http://statistics.data.gov.uk/doc/lolcal-authority/00CC,BarnsleyMBC,17/02/2023,5200080022,"6,078.32",CORONA ENERGY,585148,BH,Energy - Gas,210002,
http://statistics.data.gov.uk/doc/lolcal-authority/00CC,BarnsleyMBC,17/02/2023,5200080019,"1,212.70",CORONA ENERGY,585148,BH,Energy - Gas,210002,
http://statistics.data.gov.uk/doc/lolcal-authority/00CC,BarnsleyMBC,17/02/2023,5200080018,"2,589.91",CORONA ENERGY,585148,BH,Energy - Gas,210002,
http://statistics.data.gov.uk/doc/lolcal-authority/00CC,BarnsleyMBC,17/02/2023,5200080016,"4,556.57",CORONA ENERGY,585148,BH,Energy - Gas,210002,
http://statistics.data.gov.uk/doc/lolcal-authority/00CC,BarnsleyMBC,17/02/2023,5200080011,"1,704.12",CORONA ENERGY,585148,BH,Energy - Gas,210002,
http://statistics.data.gov.uk/doc/lolcal-authority/00CC,BarnsleyMBC,17/02/2023,5200080009,"5,394.77",CORONA ENERGY,585148,BH,Energy - Gas,210002,
http://statistics.data.gov.uk/doc/lolcal-authority/00CC,BarnsleyMBC,17/02/2023,5200079996,"5,507.53",CORONA ENERGY,585148,BH,Energy - Gas,210002,
http://statistics.data.gov.uk/doc/lolcal-authority/00CC,BarnsleyMBC,17/02/2023,5200079997,"5,752.89",CORONA ENERGY,585148,BH,Energy - Gas,210002,
http://statistics.data.gov.uk/doc/lolcal-authority/00CC,BarnsleyMBC,17/02/2023,5200079992,"3,001.46",CORONA ENERGY,585148,BH,Energy - Gas,210002,
http://statistics.data.gov.uk/doc/lolcal-authority/00CC,BarnsleyMBC,17/02/2023,5200079991,"20,230.39",CORONA ENERGY,585148,BH,Energy - Gas,210002,
http://statistics.data.gov.uk/doc/lolcal-authority/00CC,BarnsleyMBC,17/02/2023,5200079990,"2,812.97",CORONA ENERGY,585148,BH,Energy - Gas,210002,
http://statistics.data.gov.uk/doc/lolcal-authority/00CC,BarnsleyMBC,17/02/2023,5200079998,"14,835.80",CORONA ENERGY,585148,BH,Energy - Gas,210002,
http://statistics.data.gov.uk/doc/lolcal-authority/00CC,BarnsleyMBC,17/02/2023,5200079999,"3,055.94",CORONA ENERGY,585148,BH,Energy - Gas,210002,
http://statistics.data.gov.uk/doc/lolcal-authority/00CC,BarnsleyMBC,17/02/2023,5200080003,"8,513.25",CORONA ENERGY,585148,BH,Energy - Gas,210002,
http://statistics.data.gov.uk/doc/lolcal-authority/00CC,BarnsleyMBC,17/02/2023,5200080004,"19,877.51",CORONA ENERGY,585148,BH,Energy - Gas,210002,
http://statistics.data.gov.uk/doc/lolcal-authority/00CC,BarnsleyMBC,17/02/2023,5200080005,"1,495.68",CORONA ENERGY,585148,BH,Energy - Gas,210002,
http://statistics.data.gov.uk/doc/lolcal-authority/00CC,BarnsleyMBC,17/02/2023,5200080008,"3,963.28",CORONA ENERGY,585148,BH,Energy - Gas,210002,
http://statistics.data.gov.uk/doc/lolcal-authority/00CC,BarnsleyMBC,13/03/2023,5200080929,"23,879.96",CORONA ENERGY,585148,BH,Energy - Gas,210002,
http://statistics.data.gov.uk/doc/lolcal-authority/00CC,BarnsleyMBC,13/03/2023,5200080928,"9,851.16",CORONA ENERGY,585148,BH,Energy - Gas,210002,
http://statistics.data.gov.uk/doc/lolcal-authority/00CC,BarnsleyMBC,13/03/2023,5200080930,"1,659.72",CORONA ENERGY,585148,BH,Energy - Gas,210002,
http://statistics.data.gov.uk/doc/lolcal-authority/00CC,BarnsleyMBC,13/03/2023,5200080933,"4,245.73",CORONA ENERGY,585148,BH,Energy - Gas,210002,
http://statistics.data.gov.uk/doc/lolcal-authority/00CC,BarnsleyMBC,13/03/2023,5200080934,"4,784.21",CORONA ENERGY,585148,BH,Energy - Gas,210002,
http://statistics.data.gov.uk/doc/lolcal-authority/00CC,BarnsleyMBC,13/03/2023,5200080936,"1,806.82",CORONA ENERGY,585148,BH,Energy - Gas,210002,
http://statistics.data.gov.uk/doc/lolcal-authority/00CC,BarnsleyMBC,13/03/2023,5200080910,"6,943.67",CORONA ENERGY,585148,BH,Energy - Gas,210002,
http://statistics.data.gov.uk/doc/lolcal-authority/00CC,BarnsleyMBC,13/03/2023,5200080924,"2,313.80",CORONA ENERGY,585148,BH,Energy - Gas,210002,
http://statistics.data.gov.uk/doc/lolcal-authority/00CC,BarnsleyMBC,13/03/2023,5200080923,"16,060.11",CORONA ENERGY,585148,BH,Energy - Gas,210002,
http://statistics.data.gov.uk/doc/lolcal-authority/00CC,BarnsleyMBC,13/03/2023,5200080922,"6,665.43",CORONA ENERGY,585148,BH,Energy - Gas,210002,
http://statistics.data.gov.uk/doc/lolcal-authority/00CC,BarnsleyMBC,13/03/2023,5200080921,"8,276.32",CORONA ENERGY,585148,BH,Energy - Gas,210002,
http://statistics.data.gov.uk/doc/lolcal-authority/00CC,BarnsleyMBC,13/03/2023,5200080919,571.7,CORONA ENERGY,585148,BH,Energy - Gas,210002,
http://statistics.data.gov.uk/doc/lolcal-authority/00CC,BarnsleyMBC,13/03/2023,5200080917,"3,297.92",CORONA ENERGY,585148,BH,Energy - Gas,210002,
http://statistics.data.gov.uk/doc/lolcal-authority/00CC,BarnsleyMBC,13/03/2023,5200080916,"23,432.04",CORONA ENERGY,585148,BH,Energy - Gas,210002,
http://statistics.data.gov.uk/doc/lolcal-authority/00CC,BarnsleyMBC,13/03/2023,5200080915,660.04,CORONA ENERGY,585148,BH,Energy - Gas,210002,
http://statistics.data.gov.uk/doc/lolcal-authority/00CC,BarnsleyMBC,13/03/2023,5200080914,"8,462.17",CORONA ENERGY,585148,BH,Energy - Gas,210002,
http://statistics.data.gov.uk/doc/lolcal-authority/00CC,BarnsleyMBC,13/03/2023,5200080913,"1,195.71",CORONA ENERGY,585148,BH,Energy - Gas,210002,
http://statistics.data.gov.uk/doc/lolcal-authority/00CC,BarnsleyMBC,13/03/2023,5200080950,"20,022.67",CORONA ENERGY,585148,BH,Energy - Gas,210002,
http://statistics.data.gov.uk/doc/lolcal-authority/00CC,BarnsleyMBC,13/03/2023,5200080952,549.49,CORONA ENERGY,585148,BH,Energy - Gas,210002,
http://statistics.data.gov.uk/doc/lolcal-authority/00CC,BarnsleyMBC,13/03/2023,5200080953,"12,259.51",CORONA ENERGY,585148,BH,Energy - Gas,210002,
http://statistics.data.gov.uk/doc/lolcal-authority/00CC,BarnsleyMBC,13/03/2023,5200080955,"2,970.82",CORONA ENERGY,585148,BH,Energy - Gas,210002,
http://statistics.data.gov.uk/doc/lolcal-authority/00CC,BarnsleyMBC,13/03/2023,5200080956,"1,352.76",CORONA ENERGY,585148,BH,Energy - Gas,210002,
http://statistics.data.gov.uk/doc/lolcal-authority/00CC,BarnsleyMBC,13/03/2023,5200080959,"6,494.81",CORONA ENERGY,585148,BH,Energy - Gas,210002,
http://statistics.data.gov.uk/doc/lolcal-authority/00CC,BarnsleyMBC,13/03/2023,5200080960,"6,142.91",CORONA ENERGY,585148,BH,Energy - Gas,210002,
http://statistics.data.gov.uk/doc/lolcal-authority/00CC,BarnsleyMBC,13/03/2023,5200080961,"1,025.03",CORONA ENERGY,585148,BH,Energy - Gas,210002,
http://statistics.data.gov.uk/doc/lolcal-authority/00CC,BarnsleyMBC,13/03/2023,5200080965,"9,739.00",CORONA ENERGY,585148,BH,Energy - Gas,210002,
http://statistics.data.gov.uk/doc/lolcal-authority/00CC,BarnsleyMBC,13/03/2023,5200080912,"1,956.05",CORONA ENERGY,585148,BH,Energy - Gas,210002,
http://statistics.data.gov.uk/doc/lolcal-authority/00CC,BarnsleyMBC,13/03/2023,5200080911,792.35,CORONA ENERGY,585148,BH,Energy - Gas,210002,
http://statistics.data.gov.uk/doc/lolcal-authority/00CC,BarnsleyMBC,13/03/2023,5200080948,"8,574.73",CORONA ENERGY,585148,BH,Energy - Gas,210002,
http://statistics.data.gov.uk/doc/lolcal-authority/00CC,BarnsleyMBC,13/03/2023,5200080944,"5,546.55",CORONA ENERGY,585148,BH,Energy - Gas,210002,
http://statistics.data.gov.uk/doc/lolcal-authority/00CC,BarnsleyMBC,13/03/2023,5200080940,742.22,CORONA ENERGY,585148,BH,Energy - Gas,210002,
http://statistics.data.gov.uk/doc/lolcal-authority/00CC,BarnsleyMBC,13/03/2023,5200080949,"-19,877.51",CORONA ENERGY,585148,BH,Energy - Gas,210002,
http://statistics.data.gov.uk/doc/lolcal-authority/00CC,BarnsleyMBC,13/03/2023,5200080947,"-8,513.25",CORONA ENERGY,585148,BH,Energy - Gas,210002,
http://statistics.data.gov.uk/doc/lolcal-authority/00CC,BarnsleyMBC,13/03/2023,5200080943,"-5,507.53",CORONA ENERGY,585148,BH,Energy - Gas,210002,
http://statistics.data.gov.uk/doc/lolcal-authority/00CC,BarnsleyMBC,13/03/2023,5200080939,-736.92,CORONA ENERGY,585148,BH,Energy - Gas,210002,
http://statistics.data.gov.uk/doc/lolcal-authority/00CC,BarnsleyMBC,03/01/2023,5100331880,"1,125.40",CT FLOORING,551316,BH,Main contractor,506011,
http://statistics.data.gov.uk/doc/lolcal-authority/00CC,BarnsleyMBC,03/01/2023,5100331879,"2,190.79",CT FLOORING,551316,BH,Main contractor,506011,
http://statistics.data.gov.uk/doc/lolcal-authority/00CC,BarnsleyMBC,10/01/2023,5100331917,"1,819.60",CT FLOORING,551316,BH,Main contractor,506011,
http://statistics.data.gov.uk/doc/lolcal-authority/00CC,BarnsleyMBC,17/01/2023,5100332521,"10,293.16",CT FLOORING,551316,BH,Main contractor,506011,
http://statistics.data.gov.uk/doc/lolcal-authority/00CC,BarnsleyMBC,22/02/2023,5100334183,"1,014.71",CT FLOORING,551316,BH,Main contractor,506011,
http://statistics.data.gov.uk/doc/lolcal-authority/00CC,BarnsleyMBC,23/02/2023,5100334261,"16,242.14",CT FLOORING,551316,BH,Main contractor,506011,
http://statistics.data.gov.uk/doc/lolcal-authority/00CC,BarnsleyMBC,28/02/2023,5100334625,"2,160.00",CT FLOORING,551316,BH,Main contractor,506011,
http://statistics.data.gov.uk/doc/lolcal-authority/00CC,BarnsleyMBC,24/03/2023,5100335819,"15,366.72",CT FLOORING,551316,BH,Main contractor,506011,
http://statistics.data.gov.uk/doc/lolcal-authority/00CC,BarnsleyMBC,29/03/2023,5100335958,"5,500.88",CT FLOORING,551316,BH,Main contractor,506011,
http://statistics.data.gov.uk/doc/lolcal-authority/00CC,BarnsleyMBC,31/03/2023,5100336028,"1,953.07",CT FLOORING,551316,BH,Main contractor,506011,
http://statistics.data.gov.uk/doc/lolcal-authority/00CC,BarnsleyMBC,31/03/2023,5100336029,"1,591.54",CT FLOORING,551316,BH,Main contractor,506011,
http://statistics.data.gov.uk/doc/lolcal-authority/00CC,BarnsleyMBC,20/03/2023,5100335621,900,CURTINS CONSULTING LIMITED,540493,BH,Repair & Maintenance Of Buildings,200003,
http://statistics.data.gov.uk/doc/lolcal-authority/00CC,BarnsleyMBC,01/02/2023,5100333186,600.35,D & I WINDOWS SOLUTIONS LTD,552226,BH,Main contractor,506011,
http://statistics.data.gov.uk/doc/lolcal-authority/00CC,BarnsleyMBC,03/02/2023,5100333423,"36,676.84",D & I WINDOWS SOLUTIONS LTD,552226,BH,Main contractor,506011,
http://statistics.data.gov.uk/doc/lolcal-authority/00CC,BarnsleyMBC,09/02/2023,5100333528,820.8,D & I WINDOWS SOLUTIONS LTD,552226,BH,,
http://statistics.data.gov.uk/doc/lolcal-authority/00CC,BarnsleyMBC,21/02/2023,5100334314,615.6,D & I WINDOWS SOLUTIONS LTD,552226,BH,,
http://statistics.data.gov.uk/doc/lolcal-authority/00CC,BarnsleyMBC,21/02/2023,5100334316,615.64,D & I WINDOWS SOLUTIONS LTD,552226,BH,,
http://statistics.data.gov.uk/doc/lolcal-authority/00CC,BarnsleyMBC,24/02/2023,5100334315,615.64,D & I WINDOWS SOLUTIONS LTD,552226,BH,,
http://statistics.data.gov.uk/doc/lolcal-authority/00CC,BarnsleyMBC,27/02/2023,5100334340,820.82,D & I WINDOWS SOLUTIONS LTD,552226,BH,,
http://statistics.data.gov.uk/doc/lolcal-authority/00CC,BarnsleyMBC,02/03/2023,5100334647,"5,921.63",Devonshires Solicitors LLP,538532,BH,Legal Fees,424011,
http://statistics.data.gov.uk/doc/lolcal-authority/00CC,BarnsleyMBC,08/03/2023,5100335062,"2,986.20",Devonshires Solicitors LLP,538532,BH,Legal Fees,424011,
http://statistics.data.gov.uk/doc/lolcal-authority/00CC,BarnsleyMBC,30/03/2023,5100335063,"2,317.80",Devonshires Solicitors LLP,538532,BH,Legal Fees,424011,
http://statistics.data.gov.uk/doc/lolcal-authority/00CC,BarnsleyMBC,11/01/2023,5100331410,600,DG Truck Training,531384,BH,Training Courses,112001,
http://statistics.data.gov.uk/doc/lolcal-authority/00CC,BarnsleyMBC,03/03/2023,5100334865,600,DG Truck Training,531384,BH,Training Courses,112001,
http://statistics.data.gov.uk/doc/lolcal-authority/00CC,BarnsleyMBC,04/01/2023,5100331891,"1,050.00",DOYLE SECURITY LTD,500865,BH,Security Hire,424009,
http://statistics.data.gov.uk/doc/lolcal-authority/00CC,BarnsleyMBC,03/02/2023,5100333299,"1,050.00",DOYLE SECURITY LTD,500865,BH,Security Hire,424009,
http://statistics.data.gov.uk/doc/lolcal-authority/00CC,BarnsleyMBC,07/03/2023,5100334751,"1,050.00",DOYLE SECURITY LTD,500865,BH,Security Hire,424009,
http://statistics.data.gov.uk/doc/lolcal-authority/00CC,BarnsleyMBC,12/01/2023,5100332266,545.22,DULUX DECORATING CENTRE,505156,BH,,
http://statistics.data.gov.uk/doc/lolcal-authority/00CC,BarnsleyMBC,27/01/2023,5100333045,"1,119.34",DULUX DECORATING CENTRE,505156,BH,,
http://statistics.data.gov.uk/doc/lolcal-authority/00CC,BarnsleyMBC,01/02/2023,5100333342,959.52,DULUX DECORATING CENTRE,505156,BH,,
http://statistics.data.gov.uk/doc/lolcal-authority/00CC,BarnsleyMBC,10/02/2023,5100333768,"1,241.32",DULUX DECORATING CENTRE,505156,BH,,
http://statistics.data.gov.uk/doc/lolcal-authority/00CC,BarnsleyMBC,17/02/2023,5100333978,664.43,DULUX DECORATING CENTRE,505156,BH,,
http://statistics.data.gov.uk/doc/lolcal-authority/00CC,BarnsleyMBC,10/03/2023,5100335004,787.43,DULUX DECORATING CENTRE,505156,BH,,
http://statistics.data.gov.uk/doc/lolcal-authority/00CC,BarnsleyMBC,06/01/2023,5100332016,"1,124.98",EDMUNDSON ELECTRICAL LTD,512393,BH,Equipment - Electrical Goods,400007,
http://statistics.data.gov.uk/doc/lolcal-authority/00CC,BarnsleyMBC,06/01/2023,5100331921,"3,606.96",EDMUNDSON ELECTRICAL LTD,512393,BH,,
http://statistics.data.gov.uk/doc/lolcal-authority/00CC,BarnsleyMBC,11/01/2023,5100331939,"1,778.40",EDMUNDSON ELECTRICAL LTD,512393,BH,,
http://statistics.data.gov.uk/doc/lolcal-authority/00CC,BarnsleyMBC,13/01/2023,5100332162,"1,524.00",EDMUNDSON ELECTRICAL LTD,512393,BH,,
http://statistics.data.gov.uk/doc/lolcal-authority/00CC,BarnsleyMBC,16/01/2023,5100332421,535.22,EDMUNDSON ELECTRICAL LTD,512393,BH,Equipment - Electrical Goods,400007,
http://statistics.data.gov.uk/doc/lolcal-authority/00CC,BarnsleyMBC,17/01/2023,5100332307,538.2,EDMUNDSON ELECTRICAL LTD,512393,BH,,
http://statistics.data.gov.uk/doc/lolcal-authority/00CC,BarnsleyMBC,18/01/2023,5100332309,"5,971.80",EDMUNDSON ELECTRICAL LTD,512393,BH,,
http://statistics.data.gov.uk/doc/lolcal-authority/00CC,BarnsleyMBC,19/01/2023,5100332389,936,EDMUNDSON ELECTRICAL LTD,512393,BH,,
http://statistics.data.gov.uk/doc/lolcal-authority/00CC,BarnsleyMBC,20/01/2023,5100332628,"2,730.00",EDMUNDSON ELECTRICAL LTD,512393,BH,,
http://statistics.data.gov.uk/doc/lolcal-authority/00CC,BarnsleyMBC,25/01/2023,5100332947,"1,902.00",EDMUNDSON ELECTRICAL LTD,512393,BH,,
http://statistics.data.gov.uk/doc/lolcal-authority/00CC,BarnsleyMBC,25/01/2023,5100333015,525,EDMUNDSON ELECTRICAL LTD,512393,BH,Equipment - Electrical Goods,400007,
http://statistics.data.gov.uk/doc/lolcal-authority/00CC,BarnsleyMBC,27/01/2023,5100332951,"4,657.20",EDMUNDSON ELECTRICAL LTD,512393,BH,,
http://statistics.data.gov.uk/doc/lolcal-authority/00CC,BarnsleyMBC,30/01/2023,5100333119,"5,242.20",EDMUNDSON ELECTRICAL LTD,512393,BH,,
http://statistics.data.gov.uk/doc/lolcal-authority/00CC,BarnsleyMBC,01/02/2023,5100333366,630.19,EDMUNDSON ELECTRICAL LTD,512393,BH,Equipment - Electrical Goods,400007,
http://statistics.data.gov.uk/doc/lolcal-authority/00CC,BarnsleyMBC,02/02/2023,5100333279,"2,394.00",EDMUNDSON ELECTRICAL LTD,512393,BH,,
http://statistics.data.gov.uk/doc/lolcal-authority/00CC,BarnsleyMBC,03/02/2023,5100333564,"1,308.00",EDMUNDSON ELECTRICAL LTD,512393,BH,Direct - Tools & Parts,403019,
http://statistics.data.gov.uk/doc/lolcal-authority/00CC,BarnsleyMBC,06/02/2023,5100333563,"2,205.60",EDMUNDSON ELECTRICAL LTD,512393,BH,,
http://statistics.data.gov.uk/doc/lolcal-authority/00CC,BarnsleyMBC,13/02/2023,5100333794,"2,163.00",EDMUNDSON ELECTRICAL LTD,512393,BH,,
http://statistics.data.gov.uk/doc/lolcal-authority/00CC,BarnsleyMBC,14/02/2023,5100333995,"2,162.40",EDMUNDSON ELECTRICAL LTD,512393,BH,,
http://statistics.data.gov.uk/doc/lolcal-authority/00CC,BarnsleyMBC,17/02/2023,5100333967,"4,920.00",EDMUNDSON ELECTRICAL LTD,512393,BH,,
http://statistics.data.gov.uk/doc/lolcal-authority/00CC,BarnsleyMBC,20/02/2023,5100334033,"1,494.00",EDMUNDSON ELECTRICAL LTD,512393,BH,,
http://statistics.data.gov.uk/doc/lolcal-authority/00CC,BarnsleyMBC,22/02/2023,5100334173,"6,552.00",EDMUNDSON ELECTRICAL LTD,512393,BH,,
http://statistics.data.gov.uk/doc/lolcal-authority/00CC,BarnsleyMBC,22/02/2023,5100334166,"6,507.60",EDMUNDSON ELECTRICAL LTD,512393,BH,,
http://statistics.data.gov.uk/doc/lolcal-authority/00CC,BarnsleyMBC,22/02/2023,5100334162,"1,065.60",EDMUNDSON ELECTRICAL LTD,512393,BH,,
http://statistics.data.gov.uk/doc/lolcal-authority/00CC,BarnsleyMBC,27/02/2023,5100334350,"1,260.00",EDMUNDSON ELECTRICAL LTD,512393,BH,,
http://statistics.data.gov.uk/doc/lolcal-authority/00CC,BarnsleyMBC,27/02/2023,5100334349,"2,234.76",EDMUNDSON ELECTRICAL LTD,512393,BH,,
http://statistics.data.gov.uk/doc/lolcal-authority/00CC,BarnsleyMBC,27/02/2023,5100334351,"2,183.82",EDMUNDSON ELECTRICAL LTD,512393,BH,,
http://statistics.data.gov.uk/doc/lolcal-authority/00CC,BarnsleyMBC,27/02/2023,5100334355,"1,596.00",EDMUNDSON ELECTRICAL LTD,512393,BH,,
http://statistics.data.gov.uk/doc/lolcal-authority/00CC,BarnsleyMBC,27/02/2023,5100334410,"1,800.00",EDMUNDSON ELECTRICAL LTD,512393,BH,Equipment - Electrical Goods,400007,
http://statistics.data.gov.uk/doc/lolcal-authority/00CC,BarnsleyMBC,01/03/2023,5100334465,818.64,EDMUNDSON ELECTRICAL LTD,512393,BH,,
http://statistics.data.gov.uk/doc/lolcal-authority/00CC,BarnsleyMBC,01/03/2023,5100334468,"1,008.00",EDMUNDSON ELECTRICAL LTD,512393,BH,,
http://statistics.data.gov.uk/doc/lolcal-authority/00CC,BarnsleyMBC,03/03/2023,5100334629,"4,700.40",EDMUNDSON ELECTRICAL LTD,512393,BH,,
http://statistics.data.gov.uk/doc/lolcal-authority/00CC,BarnsleyMBC,08/03/2023,5100334767,828,EDMUNDSON ELECTRICAL LTD,512393,BH,,
http://statistics.data.gov.uk/doc/lolcal-authority/00CC,BarnsleyMBC,09/03/2023,5100334991,"1,029.00",EDMUNDSON ELECTRICAL LTD,512393,BH,,
http://statistics.data.gov.uk/doc/lolcal-authority/00CC,BarnsleyMBC,13/03/2023,5100334980,"2,235.00",EDMUNDSON ELECTRICAL LTD,512393,BH,,
http://statistics.data.gov.uk/doc/lolcal-authority/00CC,BarnsleyMBC,14/03/2023,5100335112,"1,650.00",EDMUNDSON ELECTRICAL LTD,512393,BH,,
http://statistics.data.gov.uk/doc/lolcal-authority/00CC,BarnsleyMBC,14/03/2023,5100335107,"5,832.00",EDMUNDSON ELECTRICAL LTD,512393,BH,,
http://statistics.data.gov.uk/doc/lolcal-authority/00CC,BarnsleyMBC,14/03/2023,5100335187,"1,524.00",EDMUNDSON ELECTRICAL LTD,512393,BH,,
http://statistics.data.gov.uk/doc/lolcal-authority/00CC,BarnsleyMBC,16/03/2023,5100335403,"1,752.00",EDMUNDSON ELECTRICAL LTD,512393,BH,,
http://statistics.data.gov.uk/doc/lolcal-authority/00CC,BarnsleyMBC,20/03/2023,5100335421,"3,240.00",EDMUNDSON ELECTRICAL LTD,512393,BH,,
http://statistics.data.gov.uk/doc/lolcal-authority/00CC,BarnsleyMBC,22/03/2023,5100335505,681,EDMUNDSON ELECTRICAL LTD,512393,BH,,
http://statistics.data.gov.uk/doc/lolcal-authority/00CC,BarnsleyMBC,23/03/2023,5100335626,"13,392.00",EDMUNDSON ELECTRICAL LTD,512393,BH,,
http://statistics.data.gov.uk/doc/lolcal-authority/00CC,BarnsleyMBC,23/03/2023,5100335627,"1,116.00",EDMUNDSON ELECTRICAL LTD,512393,BH,,
http://statistics.data.gov.uk/doc/lolcal-authority/00CC,BarnsleyMBC,27/03/2023,5100335706,"1,859.40",EDMUNDSON ELECTRICAL LTD,512393,BH,,
http://statistics.data.gov.uk/doc/lolcal-authority/00CC,BarnsleyMBC,27/01/2023,5100333215,"8,377.80",ELMHURST ENERGY SYSTEMS,530328,BH,Training Courses,112001,
http://statistics.data.gov.uk/doc/lolcal-authority/00CC,BarnsleyMBC,07/03/2023,5100335049,"1,325.40",ELMHURST ENERGY SYSTEMS,530328,BH,Training Courses,112001,
http://statistics.data.gov.uk/doc/lolcal-authority/00CC,BarnsleyMBC,07/03/2023,5100335048,"3,741.00",ELMHURST ENERGY SYSTEMS,530328,BH,Training Courses,112001,
http://statistics.data.gov.uk/doc/lolcal-authority/00CC,BarnsleyMBC,30/01/2023,5100333058,"28,209.22",ENERVEO LIMITED,552641,BH,Main contractor,506011,
http://statistics.data.gov.uk/doc/lolcal-authority/00CC,BarnsleyMBC,31/01/2023,5100333088,"46,945.62",ENERVEO LIMITED,552641,BH,Main contractor,506011,
http://statistics.data.gov.uk/doc/lolcal-authority/00CC,BarnsleyMBC,21/02/2023,5100334185,"65,871.78",ENERVEO LIMITED,552641,BH,Main contractor,506011,
http://statistics.data.gov.uk/doc/lolcal-authority/00CC,BarnsleyMBC,22/02/2023,5100334184,"19,866.62",ENERVEO LIMITED,552641,BH,Main contractor,506011,
http://statistics.data.gov.uk/doc/lolcal-authority/00CC,BarnsleyMBC,28/02/2023,5100334434,"9,768.00",ENERVEO LIMITED,552641,BH,Main contractor,506011,
http://statistics.data.gov.uk/doc/lolcal-authority/00CC,BarnsleyMBC,14/03/2023,5100335199,"11,366.40",ENERVEO LIMITED,552641,BH,Main contractor,506011,
http://statistics.data.gov.uk/doc/lolcal-authority/00CC,BarnsleyMBC,14/03/2023,5100335200,"26,145.66",ENERVEO LIMITED,552641,BH,Main contractor,506011,
http://statistics.data.gov.uk/doc/lolcal-authority/00CC,BarnsleyMBC,15/03/2023,5100335377,"9,444.16",ENERVEO LIMITED,552641,BH,Main contractor,506011,
http://statistics.data.gov.uk/doc/lolcal-authority/00CC,BarnsleyMBC,15/03/2023,5100335376,"9,220.57",ENERVEO LIMITED,552641,BH,Main contractor,506011,
http://statistics.data.gov.uk/doc/lolcal-authority/00CC,BarnsleyMBC,24/03/2023,5100335684,"5,860.80",ENERVEO LIMITED,552641,BH,Main contractor,506011,
http://statistics.data.gov.uk/doc/lolcal-authority/00CC,BarnsleyMBC,31/03/2023,5100336054,596.82,ENERVEO LIMITED,552641,BH,Main contractor,506011,
http://statistics.data.gov.uk/doc/lolcal-authority/00CC,BarnsleyMBC,31/03/2023,5100336055,"35,518.52",ENERVEO LIMITED,552641,BH,Main contractor,506011,
http://statistics.data.gov.uk/doc/lolcal-authority/00CC,BarnsleyMBC,21/02/2023,5100334317,"1,224.18",ENVIROVENT LTD,550035,BH,Main contractor,506011,
http://statistics.data.gov.uk/doc/lolcal-authority/00CC,BarnsleyMBC,22/02/2023,5100334429,732,ENVIROVENT LTD,550035,BH,Main contractor,506011,
http://statistics.data.gov.uk/doc/lolcal-authority/00CC,BarnsleyMBC,21/03/2023,5100335685,"1,358.35",ENVIROVENT LTD,550035,BH,Main contractor,506011,
http://statistics.data.gov.uk/doc/lolcal-authority/00CC,BarnsleyMBC,22/03/2023,5100335813,"1,195.32",ENVIROVENT LTD,550035,BH,Main contractor,506011,
http://statistics.data.gov.uk/doc/lolcal-authority/00CC,BarnsleyMBC,22/03/2023,5100335814,"1,032.42",ENVIROVENT LTD,550035,BH,Main contractor,506011,
http://statistics.data.gov.uk/doc/lolcal-authority/00CC,BarnsleyMBC,22/03/2023,5100335812,732,ENVIROVENT LTD,550035,BH,Main contractor,506011,
http://statistics.data.gov.uk/doc/lolcal-authority/00CC,BarnsleyMBC,07/02/2023,5100333642,"1,122.00",EXPRESS BLINDS & CURTAINS LTD,510744,BH,Main contractor,506011,
http://statistics.data.gov.uk/doc/lolcal-authority/00CC,BarnsleyMBC,23/03/2023,5100335935,934.8,EXPRESS BLINDS & CURTAINS LTD,510744,BH,Main contractor,506011,
http://statistics.data.gov.uk/doc/lolcal-authority/00CC,BarnsleyMBC,13/02/2023,5100333976,515.41,FIRST FIX IND. SUPPLIES LTD,510338,BH,Direct - Tools & Parts,403019,
http://statistics.data.gov.uk/doc/lolcal-authority/00CC,BarnsleyMBC,24/01/2023,5100332874,"17,136.00",GATENBY SANDERSON LTD,505736,BH,Basic Pay - Other,100025,
http://statistics.data.gov.uk/doc/lolcal-authority/00CC,BarnsleyMBC,07/02/2023,5100333661,"20,563.20",GATENBY SANDERSON LTD,505736,BH,Basic Pay - Other,100025,
http://statistics.data.gov.uk/doc/lolcal-authority/00CC,BarnsleyMBC,07/03/2023,5100334994,"10,281.60",GATENBY SANDERSON LTD,505736,BH,Basic Pay - Other,100025,
http://statistics.data.gov.uk/doc/lolcal-authority/00CC,BarnsleyMBC,06/01/2023,5100332025,"1,380.00",GLENIS BRAILSFORD,527263,BH,Community Services,505045,
http://statistics.data.gov.uk/doc/lolcal-authority/00CC,BarnsleyMBC,06/01/2023,5100332026,540,GLENIS BRAILSFORD,527263,BH,Community Services,505045,
http://statistics.data.gov.uk/doc/lolcal-authority/00CC,BarnsleyMBC,22/02/2023,5100334418,"1,200.00",GLENIS BRAILSFORD,527263,BH,Community Services,505045,
http://statistics.data.gov.uk/doc/lolcal-authority/00CC,BarnsleyMBC,14/03/2023,5100335407,"1,320.00",GLENIS BRAILSFORD,527263,BH,Community Services,505045,
http://statistics.data.gov.uk/doc/lolcal-authority/00CC,BarnsleyMBC,08/03/2023,5100335121,"1,580.00",GREENER HOMES 4 YOU,529739,BH,Professional fees,424006,
http://statistics.data.gov.uk/doc/lolcal-authority/00CC,BarnsleyMBC,08/03/2023,5100335120,"1,185.00",GREENER HOMES 4 YOU,529739,BH,Professional fees,424006,
http://statistics.data.gov.uk/doc/lolcal-authority/00CC,BarnsleyMBC,21/03/2023,5100335711,"1,975.00",GREENER HOMES 4 YOU,529739,BH,Professional fees,424006,
http://statistics.data.gov.uk/doc/lolcal-authority/00CC,BarnsleyMBC,21/03/2023,5100335710,"-1,580.00",GREENER HOMES 4 YOU,529739,BH,Professional fees,424006,
http://statistics.data.gov.uk/doc/lolcal-authority/00CC,BarnsleyMBC,31/03/2023,5100336067,"1,224.50",GREENER HOMES 4 YOU,529739,BH,Professional fees,424006,
http://statistics.data.gov.uk/doc/lolcal-authority/00CC,BarnsleyMBC,06/01/2023,5100332009,"13,896.00",Halo Service Solutions Ltd,540648,BH,Computer Software -  Licenses,426010,
http://statistics.data.gov.uk/doc/lolcal-authority/00CC,BarnsleyMBC,24/01/2023,5100332878,790.06,Handletrade ltd,533871,BH,,
http://statistics.data.gov.uk/doc/lolcal-authority/00CC,BarnsleyMBC,01/02/2023,5100333141,"2,371.68",Handletrade ltd,533871,BH,,
http://statistics.data.gov.uk/doc/lolcal-authority/00CC,BarnsleyMBC,01/02/2023,5100333399,876.65,Handletrade ltd,533871,BH,,
http://statistics.data.gov.uk/doc/lolcal-authority/00CC,BarnsleyMBC,01/02/2023,5100333148,572.4,Handletrade ltd,533871,BH,,
http://statistics.data.gov.uk/doc/lolcal-authority/00CC,BarnsleyMBC,01/02/2023,5100333145,604.97,Handletrade ltd,533871,BH,,
http://statistics.data.gov.uk/doc/lolcal-authority/00CC,BarnsleyMBC,01/02/2023,5100333142,"1,100.40",Handletrade ltd,533871,BH,,
http://statistics.data.gov.uk/doc/lolcal-authority/00CC,BarnsleyMBC,22/02/2023,5100334176,"1,005.00",Handletrade ltd,533871,BH,,
http://statistics.data.gov.uk/doc/lolcal-authority/00CC,BarnsleyMBC,01/03/2023,5100334564,954,Handletrade ltd,533871,BH,,
http://statistics.data.gov.uk/doc/lolcal-authority/00CC,BarnsleyMBC,01/03/2023,5100334702,818.78,Handletrade ltd,533871,BH,,
http://statistics.data.gov.uk/doc/lolcal-authority/00CC,BarnsleyMBC,01/03/2023,5100334476,574.08,Handletrade ltd,533871,BH,,
http://statistics.data.gov.uk/doc/lolcal-authority/00CC,BarnsleyMBC,03/03/2023,5100334648,"1,089.48",Handletrade ltd,533871,BH,,
http://statistics.data.gov.uk/doc/lolcal-authority/00CC,BarnsleyMBC,03/03/2023,5100334896,763.68,Handletrade ltd,533871,BH,,
http://statistics.data.gov.uk/doc/lolcal-authority/00CC,BarnsleyMBC,03/03/2023,5100334866,597.74,Handletrade ltd,533871,BH,,
http://statistics.data.gov.uk/doc/lolcal-authority/00CC,BarnsleyMBC,13/03/2023,5100335329,"1,005.00",Handletrade ltd,533871,BH,,
http://statistics.data.gov.uk/doc/lolcal-authority/00CC,BarnsleyMBC,15/03/2023,5100335258,"7,369.92",Handletrade ltd,533871,BH,Building Security,200013,
http://statistics.data.gov.uk/doc/lolcal-authority/00CC,BarnsleyMBC,24/03/2023,5100335731,"1,206.00",Handletrade ltd,533871,BH,,
http://statistics.data.gov.uk/doc/lolcal-authority/00CC,BarnsleyMBC,14/03/2023,5100335159,"3,690.00",HAVAS PEOPLE LIMITED,518176,BH,Subscriptions & Contributions,430002,
http://statistics.data.gov.uk/doc/lolcal-authority/00CC,BarnsleyMBC,13/01/2023,5100332364,"60,436.20",HEC Contracting Limited,532267,BH,Main contractor,506011,
http://statistics.data.gov.uk/doc/lolcal-authority/00CC,BarnsleyMBC,17/01/2023,5100332529,"3,160.55",HEC Contracting Limited,532267,BH,Main contractor,506011,
http://statistics.data.gov.uk/doc/lolcal-authority/00CC,BarnsleyMBC,26/01/2023,5100333087,"70,979.46",HEC Contracting Limited,532267,BH,Main contractor,506011,
http://statistics.data.gov.uk/doc/lolcal-authority/00CC,BarnsleyMBC,10/02/2023,5100333901,"67,006.74",HEC Contracting Limited,532267,BH,Main contractor,506011,
http://statistics.data.gov.uk/doc/lolcal-authority/00CC,BarnsleyMBC,20/02/2023,5100334263,"9,206.54",HEC Contracting Limited,532267,BH,Main contractor,506011,
http://statistics.data.gov.uk/doc/lolcal-authority/00CC,BarnsleyMBC,20/02/2023,5100334264,"7,000.44",HEC Contracting Limited,532267,BH,Main contractor,506011,
http://statistics.data.gov.uk/doc/lolcal-authority/00CC,BarnsleyMBC,10/03/2023,5100335296,"27,074.96",HEC Contracting Limited,532267,BH,Main contractor,506011,
http://statistics.data.gov.uk/doc/lolcal-authority/00CC,BarnsleyMBC,10/03/2023,5100335295,"10,572.80",HEC Contracting Limited,532267,BH,Main contractor,506011,
http://statistics.data.gov.uk/doc/lolcal-authority/00CC,BarnsleyMBC,13/03/2023,5100335372,"20,110.14",HEC Contracting Limited,532267,BH,Main contractor,506011,
http://statistics.data.gov.uk/doc/lolcal-authority/00CC,BarnsleyMBC,21/03/2023,5100335689,"6,604.80",HEC Contracting Limited,532267,BH,Main contractor,506011,
http://statistics.data.gov.uk/doc/lolcal-authority/00CC,BarnsleyMBC,24/03/2023,5100335943,"81,809.74",HEC Contracting Limited,532267,BH,Main contractor,506011,
http://statistics.data.gov.uk/doc/lolcal-authority/00CC,BarnsleyMBC,27/03/2023,5100335897,"27,149.98",HEC Contracting Limited,532267,BH,Main contractor,506011,
http://statistics.data.gov.uk/doc/lolcal-authority/00CC,BarnsleyMBC,27/03/2023,5100336040,"4,876.04",HEC Contracting Limited,532267,BH,Main contractor,506011,
http://statistics.data.gov.uk/doc/lolcal-authority/00CC,BarnsleyMBC,28/03/2023,5100335896,"34,954.92",HEC Contracting Limited,532267,BH,Main contractor,506011,
http://statistics.data.gov.uk/doc/lolcal-authority/00CC,BarnsleyMBC,28/03/2023,5100335945,"75,375.91",HEC Contracting Limited,532267,BH,Main contractor,506011,
http://statistics.data.gov.uk/doc/lolcal-authority/00CC,BarnsleyMBC,29/03/2023,5100336099,"58,402.33",HEC Contracting Limited,532267,BH,Main contractor,506011,
http://statistics.data.gov.uk/doc/lolcal-authority/00CC,BarnsleyMBC,29/03/2023,5100335955,"23,015.80",HEC Contracting Limited,532267,BH,Main contractor,506011,
http://statistics.data.gov.uk/doc/lolcal-authority/00CC,BarnsleyMBC,31/03/2023,5100336041,"25,353.16",HEC Contracting Limited,532267,BH,Main contractor,506011,
http://statistics.data.gov.uk/doc/lolcal-authority/00CC,BarnsleyMBC,31/03/2023,5100336030,"17,396.38",HEC Contracting Limited,532267,BH,Main contractor,506011,
http://statistics.data.gov.uk/doc/lolcal-authority/00CC,BarnsleyMBC,08/02/2023,5100333131,930,HODGSON PHYSIOTHERAPY SERVICES LTD,517940,BH,Employee Welfare - Medical Care,115001,
http://statistics.data.gov.uk/doc/lolcal-authority/00CC,BarnsleyMBC,03/03/2023,5100334604,720,HODGSON PHYSIOTHERAPY SERVICES LTD,517940,BH,Employee Welfare - Medical Care,115001,
http://statistics.data.gov.uk/doc/lolcal-authority/00CC,BarnsleyMBC,19/01/2023,5100332668,"7,503.59",HOME UTILITY GROUP LTD,534259,BH,Main contractor,506011,
http://statistics.data.gov.uk/doc/lolcal-authority/00CC,BarnsleyMBC,25/01/2023,5100333084,"3,352.75",HOME UTILITY GROUP LTD,534259,BH,Main contractor,506011,
http://statistics.data.gov.uk/doc/lolcal-authority/00CC,BarnsleyMBC,13/02/2023,5100333988,"7,406.46",HOME UTILITY GROUP LTD,534259,BH,Main contractor,506011,
http://statistics.data.gov.uk/doc/lolcal-authority/00CC,BarnsleyMBC,15/02/2023,5100334069,"10,103.80",HOME UTILITY GROUP LTD,534259,BH,Main contractor,506011,
http://statistics.data.gov.uk/doc/lolcal-authority/00CC,BarnsleyMBC,15/02/2023,5100334054,"10,370.59",HOME UTILITY GROUP LTD,534259,BH,Main contractor,506011,
http://statistics.data.gov.uk/doc/lolcal-authority/00CC,BarnsleyMBC,13/03/2023,5100335357,"6,575.02",HOME UTILITY GROUP LTD,534259,BH,Main contractor,506011,
http://statistics.data.gov.uk/doc/lolcal-authority/00CC,BarnsleyMBC,14/03/2023,5100335446,"18,969.37",HOME UTILITY GROUP LTD,534259,BH,Main contractor,506011,
http://statistics.data.gov.uk/doc/lolcal-authority/00CC,BarnsleyMBC,14/03/2023,5100335447,"6,909.23",HOME UTILITY GROUP LTD,534259,BH,Main contractor,506011,
http://statistics.data.gov.uk/doc/lolcal-authority/00CC,BarnsleyMBC,22/03/2023,5100335640,"6,310.67",HOME UTILITY GROUP LTD,534259,BH,Main contractor,506011,
http://statistics.data.gov.uk/doc/lolcal-authority/00CC,BarnsleyMBC,31/03/2023,5100336031,"5,214.00",HOME UTILITY GROUP LTD,534259,BH,Main contractor,506011,
http://statistics.data.gov.uk/doc/lolcal-authority/00CC,BarnsleyMBC,09/01/2023,5100332060,"3,216.00",HOUSEMARK LTD,506000,BH,Subscriptions & Contributions,430002,
http://statistics.data.gov.uk/doc/lolcal-authority/00CC,BarnsleyMBC,25/01/2023,5100332671,522,HOUSEMARK LTD,506000,BH,Subscriptions & Contributions,430002,
http://statistics.data.gov.uk/doc/lolcal-authority/00CC,BarnsleyMBC,02/02/2023,5100333228,774,HOUSEMARK LTD,506000,BH,Subscriptions & Contributions,430002,
http://statistics.data.gov.uk/doc/lolcal-authority/00CC,BarnsleyMBC,01/03/2023,5100334442,"2,140.80",Housing Diversity Network,537367,BH,Subscriptions & Contributions,430002,
http://statistics.data.gov.uk/doc/lolcal-authority/00CC,BarnsleyMBC,11/01/2023,5100332147,932.98,HOWDEN JOINERY LTD,501434,BH,Direct - Building Items,403013,
http://statistics.data.gov.uk/doc/lolcal-authority/00CC,BarnsleyMBC,16/01/2023,5100332160,575.82,HOWDEN JOINERY LTD,501434,BH,,
http://statistics.data.gov.uk/doc/lolcal-authority/00CC,BarnsleyMBC,01/02/2023,5100333334,855.54,HOWDEN JOINERY LTD,501434,BH,,
http://statistics.data.gov.uk/doc/lolcal-authority/00CC,BarnsleyMBC,02/02/2023,5100333421,"1,391.78",HOWDEN JOINERY LTD,501434,BH,Fixtures and Fittings - Purchase,220001,
http://statistics.data.gov.uk/doc/lolcal-authority/00CC,BarnsleyMBC,02/02/2023,5100333491,940.28,HOWDEN JOINERY LTD,501434,BH,Fixtures and Fittings - Purchase,220001,
http://statistics.data.gov.uk/doc/lolcal-authority/00CC,BarnsleyMBC,07/02/2023,5100333316,791.9,HOWDEN JOINERY LTD,501434,BH,Fixtures and Fittings - Purchase,220001,
http://statistics.data.gov.uk/doc/lolcal-authority/00CC,BarnsleyMBC,23/02/2023,5100334458,"1,214.15",HOWDEN JOINERY LTD,501434,BH,Direct - Building Items,403013,
http://statistics.data.gov.uk/doc/lolcal-authority/00CC,BarnsleyMBC,03/03/2023,5100334655,"1,347.37",HOWDEN JOINERY LTD,501434,BH,Fixtures and Fittings - Purchase,220001,
http://statistics.data.gov.uk/doc/lolcal-authority/00CC,BarnsleyMBC,10/03/2023,5100335248,693.04,HOWDEN JOINERY LTD,501434,BH,Direct - Building Items,403013,
http://statistics.data.gov.uk/doc/lolcal-authority/00CC,BarnsleyMBC,10/03/2023,5100335066,"1,437.62",HOWDEN JOINERY LTD,501434,BH,Fixtures and Fittings - Purchase,220001,
http://statistics.data.gov.uk/doc/lolcal-authority/00CC,BarnsleyMBC,10/03/2023,5100334975,"1,243.55",HOWDEN JOINERY LTD,501434,BH,Fixtures and Fittings - Purchase,220001,
http://statistics.data.gov.uk/doc/lolcal-authority/00CC,BarnsleyMBC,21/03/2023,5100335690,"1,881.76",HOWDEN JOINERY LTD,501434,BH,Direct - Tools & Parts,403019,
http://statistics.data.gov.uk/doc/lolcal-authority/00CC,BarnsleyMBC,21/03/2023,5100335691,"1,143.37",HOWDEN JOINERY LTD,501434,BH,Fixtures and Fittings - Purchase,220001,
http://statistics.data.gov.uk/doc/lolcal-authority/00CC,BarnsleyMBC,22/03/2023,5100335834,"1,285.12",HOWDEN JOINERY LTD,501434,BH,Fixtures and Fittings - Purchase,220001,
http://statistics.data.gov.uk/doc/lolcal-authority/00CC,BarnsleyMBC,04/01/2023,5100331901,"2,218.68",HQN LTD,510400,BH,Consultants Fees,424007,
http://statistics.data.gov.uk/doc/lolcal-authority/00CC,BarnsleyMBC,05/01/2023,5100331935,"3,420.00",HQN LTD,510400,BH,Training Courses,112001,
http://statistics.data.gov.uk/doc/lolcal-authority/00CC,BarnsleyMBC,08/02/2023,5100333646,"1,287.00",Huws Gray Limited,540534,BH,,
http://statistics.data.gov.uk/doc/lolcal-authority/00CC,BarnsleyMBC,17/02/2023,5100334197,639,Huws Gray Limited,540534,BH,,
http://statistics.data.gov.uk/doc/lolcal-authority/00CC,BarnsleyMBC,22/03/2023,5100335743,581.28,Huws Gray Limited,540534,BH,,
http://statistics.data.gov.uk/doc/lolcal-authority/00CC,BarnsleyMBC,16/03/2023,5100335359,561.6,IDEA LOCAL GOVERNMENT ASSOC,526377,BH,Subscriptions & Contributions,430002,
http://statistics.data.gov.uk/doc/lolcal-authority/00CC,BarnsleyMBC,10/02/2023,5100333885,"5,976.00",IDOX SOFTWARE LTD,525373,BH,Computer Software -  Licenses,426010,
http://statistics.data.gov.uk/doc/lolcal-authority/00CC,BarnsleyMBC,01/02/2023,5100333357,"1,068.30",INSIGHT DIRECT (UK) LTD,510460,BH,Materials - Printing,402006,
http://statistics.data.gov.uk/doc/lolcal-authority/00CC,BarnsleyMBC,09/02/2023,5100333639,"1,456.63",INSIGHT DIRECT (UK) LTD,510460,BH,Computer Hardware - Purchase,426006,
http://statistics.data.gov.uk/doc/lolcal-authority/00CC,BarnsleyMBC,24/02/2023,5100334291,"2,690.05",INSIGHT DIRECT (UK) LTD,510460,BH,Computer Hardware - Purchase,426006,
http://statistics.data.gov.uk/doc/lolcal-authority/00CC,BarnsleyMBC,08/03/2023,5100334912,598.76,INSIGHT DIRECT (UK) LTD,510460,BH,Data Communications,426012,
http://statistics.data.gov.uk/doc/lolcal-authority/00CC,BarnsleyMBC,09/03/2023,5100334605,"1,146.52",INSIGHT DIRECT (UK) LTD,510460,BH,Computer Hardware - Purchase,426006,
http://statistics.data.gov.uk/doc/lolcal-authority/00CC,BarnsleyMBC,10/03/2023,5100334993,989.83,INSIGHT DIRECT (UK) LTD,510460,BH,Telephones - Other,426003,
http://statistics.data.gov.uk/doc/lolcal-authority/00CC,BarnsleyMBC,23/03/2023,5100335730,"2,442.70",INSIGHT DIRECT (UK) LTD,510460,BH,Computer Hardware - Purchase,426006,
http://statistics.data.gov.uk/doc/lolcal-authority/00CC,BarnsleyMBC,29/03/2023,5100336004,"1,674.24",INSIGHT DIRECT (UK) LTD,510460,BH,Telephones - Other,426003,
http://statistics.data.gov.uk/doc/lolcal-authority/00CC,BarnsleyMBC,11/01/2023,5100332148,"2,373.96",Interior Panel Systems Ltd,534029,BH,,
http://statistics.data.gov.uk/doc/lolcal-authority/00CC,BarnsleyMBC,17/01/2023,5100332475,"2,163.00",Interior Panel Systems Ltd,534029,BH,,
http://statistics.data.gov.uk/doc/lolcal-authority/00CC,BarnsleyMBC,17/01/2023,5100332476,"2,479.44",Interior Panel Systems Ltd,534029,BH,,
http://statistics.data.gov.uk/doc/lolcal-authority/00CC,BarnsleyMBC,02/02/2023,5100333405,"2,163.00",Interior Panel Systems Ltd,534029,BH,,
http://statistics.data.gov.uk/doc/lolcal-authority/00CC,BarnsleyMBC,27/02/2023,5100334356,"2,163.00",Interior Panel Systems Ltd,534029,BH,,
http://statistics.data.gov.uk/doc/lolcal-authority/00CC,BarnsleyMBC,02/03/2023,5100334585,632.88,Interior Panel Systems Ltd,534029,BH,,
http://statistics.data.gov.uk/doc/lolcal-authority/00CC,BarnsleyMBC,03/01/2023,5100331878,"2,421.34",JEWSON LTD,501339,BH,,
http://statistics.data.gov.uk/doc/lolcal-authority/00CC,BarnsleyMBC,04/01/2023,5100331893,863.94,JEWSON LTD,501339,BH,Direct - Tools & Parts,403019,
http://statistics.data.gov.uk/doc/lolcal-authority/00CC,BarnsleyMBC,10/01/2023,5100332112,"3,117.61",JEWSON LTD,501339,BH,Direct - Building Items,403013,
http://statistics.data.gov.uk/doc/lolcal-authority/00CC,BarnsleyMBC,10/01/2023,5100331961,"2,410.80",JEWSON LTD,501339,BH,Direct - Building Items,403013,
http://statistics.data.gov.uk/doc/lolcal-authority/00CC,BarnsleyMBC,11/01/2023,5100332073,"3,549.53",JEWSON LTD,501339,BH,,
http://statistics.data.gov.uk/doc/lolcal-authority/00CC,BarnsleyMBC,12/01/2023,5100332069,960,JEWSON LTD,501339,BH,Direct - Building Items,403013,
http://statistics.data.gov.uk/doc/lolcal-authority/00CC,BarnsleyMBC,13/01/2023,5100332360,850.08,JEWSON LTD,501339,BH,,
http://statistics.data.gov.uk/doc/lolcal-authority/00CC,BarnsleyMBC,13/01/2023,5100332343,662.1,JEWSON LTD,501339,BH,Direct - Building Items,403013,
http://statistics.data.gov.uk/doc/lolcal-authority/00CC,BarnsleyMBC,13/01/2023,5100332334,"8,786.30",JEWSON LTD,501339,BH,Direct - Building Items,403013,
http://statistics.data.gov.uk/doc/lolcal-authority/00CC,BarnsleyMBC,13/01/2023,5100332355,"2,720.69",JEWSON LTD,501339,BH,Direct - Building Items,403013,
http://statistics.data.gov.uk/doc/lolcal-authority/00CC,BarnsleyMBC,16/01/2023,5100332357,948.64,JEWSON LTD,501339,BH,,
http://statistics.data.gov.uk/doc/lolcal-authority/00CC,BarnsleyMBC,16/01/2023,5100332432,"2,017.01",JEWSON LTD,501339,BH,Direct - Building Items,403013,
http://statistics.data.gov.uk/doc/lolcal-authority/00CC,BarnsleyMBC,17/01/2023,5100332314,540,JEWSON LTD,501339,BH,,
http://statistics.data.gov.uk/doc/lolcal-authority/00CC,BarnsleyMBC,18/01/2023,5100332542,535.86,JEWSON LTD,501339,BH,Direct - Building Items,403013,
http://statistics.data.gov.uk/doc/lolcal-authority/00CC,BarnsleyMBC,18/01/2023,5100332405,"1,496.95",JEWSON LTD,501339,BH,,
http://statistics.data.gov.uk/doc/lolcal-authority/00CC,BarnsleyMBC,18/01/2023,5100332400,"1,632.60",JEWSON LTD,501339,BH,,
http://statistics.data.gov.uk/doc/lolcal-authority/00CC,BarnsleyMBC,18/01/2023,5100332538,589.68,JEWSON LTD,501339,BH,,
http://statistics.data.gov.uk/doc/lolcal-authority/00CC,BarnsleyMBC,18/01/2023,5100332466,"1,370.28",JEWSON LTD,501339,BH,,
http://statistics.data.gov.uk/doc/lolcal-authority/00CC,BarnsleyMBC,19/01/2023,5100332465,"1,116.61",JEWSON LTD,501339,BH,Direct - UPVC Parts,403015,
http://statistics.data.gov.uk/doc/lolcal-authority/00CC,BarnsleyMBC,19/01/2023,5100332605,"3,968.19",JEWSON LTD,501339,BH,,
http://statistics.data.gov.uk/doc/lolcal-authority/00CC,BarnsleyMBC,23/01/2023,5100332070,"1,080.00",JEWSON LTD,501339,BH,Direct - Building Items,403013,
http://statistics.data.gov.uk/doc/lolcal-authority/00CC,BarnsleyMBC,23/01/2023,5100332650,"1,378.75",JEWSON LTD,501339,BH,,
http://statistics.data.gov.uk/doc/lolcal-authority/00CC,BarnsleyMBC,23/01/2023,5100332646,756,JEWSON LTD,501339,BH,,
http://statistics.data.gov.uk/doc/lolcal-authority/00CC,BarnsleyMBC,24/01/2023,5100332672,"1,843.70",JEWSON LTD,501339,BH,Direct - Building Items,403013,
http://statistics.data.gov.uk/doc/lolcal-authority/00CC,BarnsleyMBC,24/01/2023,5100332894,"1,101.81",JEWSON LTD,501339,BH,,
http://statistics.data.gov.uk/doc/lolcal-authority/00CC,BarnsleyMBC,24/01/2023,5100333005,"3,800.48",JEWSON LTD,501339,BH,,
http://statistics.data.gov.uk/doc/lolcal-authority/00CC,BarnsleyMBC,24/01/2023,5100333003,"4,011.92",JEWSON LTD,501339,BH,,
http://statistics.data.gov.uk/doc/lolcal-authority/00CC,BarnsleyMBC,24/01/2023,5100332925,"1,753.93",JEWSON LTD,501339,BH,,
http://statistics.data.gov.uk/doc/lolcal-authority/00CC,BarnsleyMBC,24/01/2023,5100332919,972.5,JEWSON LTD,501339,BH,,
http://statistics.data.gov.uk/doc/lolcal-authority/00CC,BarnsleyMBC,24/01/2023,5100332923,"1,089.90",JEWSON LTD,501339,BH,,
http://statistics.data.gov.uk/doc/lolcal-authority/00CC,BarnsleyMBC,24/01/2023,5100332920,"3,611.13",JEWSON LTD,501339,BH,,
http://statistics.data.gov.uk/doc/lolcal-authority/00CC,BarnsleyMBC,24/01/2023,5100333006,"4,172.97",JEWSON LTD,501339,BH,,
http://statistics.data.gov.uk/doc/lolcal-authority/00CC,BarnsleyMBC,24/01/2023,5100332981,"3,688.97",JEWSON LTD,501339,BH,Direct - Building Items,403013,
http://statistics.data.gov.uk/doc/lolcal-authority/00CC,BarnsleyMBC,24/01/2023,5100332900,538.56,JEWSON LTD,501339,BH,Equipment - Hire,400002,
http://statistics.data.gov.uk/doc/lolcal-authority/00CC,BarnsleyMBC,24/01/2023,5100332901,999.66,JEWSON LTD,501339,BH,,
http://statistics.data.gov.uk/doc/lolcal-authority/00CC,BarnsleyMBC,25/01/2023,5100332828,"2,065.37",JEWSON LTD,501339,BH,,
http://statistics.data.gov.uk/doc/lolcal-authority/00CC,BarnsleyMBC,25/01/2023,5100332831,637.2,JEWSON LTD,501339,BH,,
http://statistics.data.gov.uk/doc/lolcal-authority/00CC,BarnsleyMBC,25/01/2023,5100332827,901.2,JEWSON LTD,501339,BH,,
http://statistics.data.gov.uk/doc/lolcal-authority/00CC,BarnsleyMBC,25/01/2023,5100332837,519.9,JEWSON LTD,501339,BH,,
http://statistics.data.gov.uk/doc/lolcal-authority/00CC,BarnsleyMBC,25/01/2023,5100332845,"1,248.00",JEWSON LTD,501339,BH,,
http://statistics.data.gov.uk/doc/lolcal-authority/00CC,BarnsleyMBC,26/01/2023,5100332865,729.3,JEWSON LTD,501339,BH,,
http://statistics.data.gov.uk/doc/lolcal-authority/00CC,BarnsleyMBC,26/01/2023,5100332869,579.96,JEWSON LTD,501339,BH,,
http://statistics.data.gov.uk/doc/lolcal-authority/00CC,BarnsleyMBC,27/01/2023,5100333203,820.02,JEWSON LTD,501339,BH,,
http://statistics.data.gov.uk/doc/lolcal-authority/00CC,BarnsleyMBC,27/01/2023,5100333158,"7,610.38",JEWSON LTD,501339,BH,Direct - Building Items,403013,
http://statistics.data.gov.uk/doc/lolcal-authority/00CC,BarnsleyMBC,27/01/2023,5100333200,818.82,JEWSON LTD,501339,BH,,
http://statistics.data.gov.uk/doc/lolcal-authority/00CC,BarnsleyMBC,27/01/2023,5100333201,"2,115.07",JEWSON LTD,501339,BH,,
http://statistics.data.gov.uk/doc/lolcal-authority/00CC,BarnsleyMBC,30/01/2023,5100333096,"1,875.96",JEWSON LTD,501339,BH,,
http://statistics.data.gov.uk/doc/lolcal-authority/00CC,BarnsleyMBC,30/01/2023,5100333204,"3,232.56",JEWSON LTD,501339,BH,,
http://statistics.data.gov.uk/doc/lolcal-authority/00CC,BarnsleyMBC,01/02/2023,5100333333,851.04,JEWSON LTD,501339,BH,Direct - Building Items,403013,
http://statistics.data.gov.uk/doc/lolcal-authority/00CC,BarnsleyMBC,01/02/2023,5100333213,716.49,JEWSON LTD,501339,BH,,
http://statistics.data.gov.uk/doc/lolcal-authority/00CC,BarnsleyMBC,01/02/2023,5100333305,724.86,JEWSON LTD,501339,BH,,
http://statistics.data.gov.uk/doc/lolcal-authority/00CC,BarnsleyMBC,01/02/2023,5100333205,596.4,JEWSON LTD,501339,BH,,
http://statistics.data.gov.uk/doc/lolcal-authority/00CC,BarnsleyMBC,01/02/2023,5100333328,"11,242.58",JEWSON LTD,501339,BH,Direct - Building Items,403013,
http://statistics.data.gov.uk/doc/lolcal-authority/00CC,BarnsleyMBC,02/02/2023,5100333285,"1,321.68",JEWSON LTD,501339,BH,,
http://statistics.data.gov.uk/doc/lolcal-authority/00CC,BarnsleyMBC,02/02/2023,5100333268,521.64,JEWSON LTD,501339,BH,Direct - Building Items,403013,
http://statistics.data.gov.uk/doc/lolcal-authority/00CC,BarnsleyMBC,02/02/2023,5100333428,"3,013.07",JEWSON LTD,501339,BH,,
http://statistics.data.gov.uk/doc/lolcal-authority/00CC,BarnsleyMBC,03/02/2023,5100333535,"13,998.43",JEWSON LTD,501339,BH,Direct - Building Items,403013,
http://statistics.data.gov.uk/doc/lolcal-authority/00CC,BarnsleyMBC,03/02/2023,5100333536,675.64,JEWSON LTD,501339,BH,,
http://statistics.data.gov.uk/doc/lolcal-authority/00CC,BarnsleyMBC,03/02/2023,5100333537,"2,261.20",JEWSON LTD,501339,BH,,
http://statistics.data.gov.uk/doc/lolcal-authority/00CC,BarnsleyMBC,06/02/2023,5100333603,"2,009.45",JEWSON LTD,501339,BH,,
http://statistics.data.gov.uk/doc/lolcal-authority/00CC,BarnsleyMBC,06/02/2023,5100333604,"1,707.79",JEWSON LTD,501339,BH,,
http://statistics.data.gov.uk/doc/lolcal-authority/00CC,BarnsleyMBC,07/02/2023,5100333550,998.53,JEWSON LTD,501339,BH,,
http://statistics.data.gov.uk/doc/lolcal-authority/00CC,BarnsleyMBC,07/02/2023,5100333481,721.26,JEWSON LTD,501339,BH,,
http://statistics.data.gov.uk/doc/lolcal-authority/00CC,BarnsleyMBC,08/02/2023,5100333577,652.11,JEWSON LTD,501339,BH,,
http://statistics.data.gov.uk/doc/lolcal-authority/00CC,BarnsleyMBC,08/02/2023,5100333581,933.94,JEWSON LTD,501339,BH,,
http://statistics.data.gov.uk/doc/lolcal-authority/00CC,BarnsleyMBC,08/02/2023,5100333610,"2,033.10",JEWSON LTD,501339,BH,,
http://statistics.data.gov.uk/doc/lolcal-authority/00CC,BarnsleyMBC,08/02/2023,5100333578,646.27,JEWSON LTD,501339,BH,,
http://statistics.data.gov.uk/doc/lolcal-authority/00CC,BarnsleyMBC,09/02/2023,5100333779,810,JEWSON LTD,501339,BH,Direct - Building Items,403013,
http://statistics.data.gov.uk/doc/lolcal-authority/00CC,BarnsleyMBC,13/02/2023,5100333752,883.32,JEWSON LTD,501339,BH,,
http://statistics.data.gov.uk/doc/lolcal-authority/00CC,BarnsleyMBC,13/02/2023,5100333760,"1,354.87",JEWSON LTD,501339,BH,,
http://statistics.data.gov.uk/doc/lolcal-authority/00CC,BarnsleyMBC,13/02/2023,5100333743,624.6,JEWSON LTD,501339,BH,,
http://statistics.data.gov.uk/doc/lolcal-authority/00CC,BarnsleyMBC,13/02/2023,5100333751,"1,740.72",JEWSON LTD,501339,BH,,
http://statistics.data.gov.uk/doc/lolcal-authority/00CC,BarnsleyMBC,13/02/2023,5100333898,"1,589.89",JEWSON LTD,501339,BH,,
http://statistics.data.gov.uk/doc/lolcal-authority/00CC,BarnsleyMBC,14/02/2023,5100333899,"5,021.65",JEWSON LTD,501339,BH,Direct - Building Items,403013,
http://statistics.data.gov.uk/doc/lolcal-authority/00CC,BarnsleyMBC,15/02/2023,5100333947,519.84,JEWSON LTD,501339,BH,,
http://statistics.data.gov.uk/doc/lolcal-authority/00CC,BarnsleyMBC,15/02/2023,5100333954,891.98,JEWSON LTD,501339,BH,,
http://statistics.data.gov.uk/doc/lolcal-authority/00CC,BarnsleyMBC,15/02/2023,5100333952,"3,873.72",JEWSON LTD,501339,BH,,
http://statistics.data.gov.uk/doc/lolcal-authority/00CC,BarnsleyMBC,17/02/2023,5100333984,832.37,JEWSON LTD,501339,BH,Direct - Building Items,403013,
http://statistics.data.gov.uk/doc/lolcal-authority/00CC,BarnsleyMBC,20/02/2023,5100334076,"1,886.10",JEWSON LTD,501339,BH,,
http://statistics.data.gov.uk/doc/lolcal-authority/00CC,BarnsleyMBC,20/02/2023,5100334071,555.78,JEWSON LTD,501339,BH,,
http://statistics.data.gov.uk/doc/lolcal-authority/00CC,BarnsleyMBC,20/02/2023,5100334082,732.96,JEWSON LTD,501339,BH,,
http://statistics.data.gov.uk/doc/lolcal-authority/00CC,BarnsleyMBC,20/02/2023,5100334078,856.36,JEWSON LTD,501339,BH,,
http://statistics.data.gov.uk/doc/lolcal-authority/00CC,BarnsleyMBC,20/02/2023,5100334079,899.52,JEWSON LTD,501339,BH,,
http://statistics.data.gov.uk/doc/lolcal-authority/00CC,BarnsleyMBC,22/02/2023,5100334377,501.6,JEWSON LTD,501339,BH,Direct - Building Items,403013,
http://statistics.data.gov.uk/doc/lolcal-authority/00CC,BarnsleyMBC,22/02/2023,5100334379,506.88,JEWSON LTD,501339,BH,Direct - Building Items,403013,
http://statistics.data.gov.uk/doc/lolcal-authority/00CC,BarnsleyMBC,22/02/2023,5100334390,"3,405.45",JEWSON LTD,501339,BH,,
http://statistics.data.gov.uk/doc/lolcal-authority/00CC,BarnsleyMBC,22/02/2023,5100334222,"1,222.49",JEWSON LTD,501339,BH,,
http://statistics.data.gov.uk/doc/lolcal-authority/00CC,BarnsleyMBC,22/02/2023,5100334392,"1,572.48",JEWSON LTD,501339,BH,,
http://statistics.data.gov.uk/doc/lolcal-authority/00CC,BarnsleyMBC,22/02/2023,5100334389,"1,657.84",JEWSON LTD,501339,BH,Direct - Building Items,403013,
http://statistics.data.gov.uk/doc/lolcal-authority/00CC,BarnsleyMBC,22/02/2023,5100334223,640.37,JEWSON LTD,501339,BH,,
http://statistics.data.gov.uk/doc/lolcal-authority/00CC,BarnsleyMBC,24/02/2023,5100334388,543.84,JEWSON LTD,501339,BH,Direct - Building Items,403013,
http://statistics.data.gov.uk/doc/lolcal-authority/00CC,BarnsleyMBC,27/02/2023,5100334554,655.25,JEWSON LTD,501339,BH,,
http://statistics.data.gov.uk/doc/lolcal-authority/00CC,BarnsleyMBC,27/02/2023,5100334552,"1,540.37",JEWSON LTD,501339,BH,,
http://statistics.data.gov.uk/doc/lolcal-authority/00CC,BarnsleyMBC,27/02/2023,5100334484,"1,708.50",JEWSON LTD,501339,BH,,
http://statistics.data.gov.uk/doc/lolcal-authority/00CC,BarnsleyMBC,27/02/2023,5100334555,850.08,JEWSON LTD,501339,BH,,
http://statistics.data.gov.uk/doc/lolcal-authority/00CC,BarnsleyMBC,28/02/2023,5100334489,846.72,JEWSON LTD,501339,BH,,
http://statistics.data.gov.uk/doc/lolcal-authority/00CC,BarnsleyMBC,28/02/2023,5100334488,594.72,JEWSON LTD,501339,BH,,
http://statistics.data.gov.uk/doc/lolcal-authority/00CC,BarnsleyMBC,28/02/2023,5100334497,"1,320.00",JEWSON LTD,501339,BH,,
http://statistics.data.gov.uk/doc/lolcal-authority/00CC,BarnsleyMBC,01/03/2023,5100334523,662.4,JEWSON LTD,501339,BH,,
http://statistics.data.gov.uk/doc/lolcal-authority/00CC,BarnsleyMBC,01/03/2023,5100334526,"1,155.73",JEWSON LTD,501339,BH,,
http://statistics.data.gov.uk/doc/lolcal-authority/00CC,BarnsleyMBC,02/03/2023,5100334670,"2,606.80",JEWSON LTD,501339,BH,Direct - Building Items,403013,
http://statistics.data.gov.uk/doc/lolcal-authority/00CC,BarnsleyMBC,03/03/2023,5100334651,"1,542.24",JEWSON LTD,501339,BH,,
http://statistics.data.gov.uk/doc/lolcal-authority/00CC,BarnsleyMBC,03/03/2023,5100334725,956.45,JEWSON LTD,501339,BH,,
http://statistics.data.gov.uk/doc/lolcal-authority/00CC,BarnsleyMBC,03/03/2023,5100334733,792,JEWSON LTD,501339,BH,Direct - Building Items,403013,
http://statistics.data.gov.uk/doc/lolcal-authority/00CC,BarnsleyMBC,03/03/2023,5100334724,701.11,JEWSON LTD,501339,BH,,
http://statistics.data.gov.uk/doc/lolcal-authority/00CC,BarnsleyMBC,03/03/2023,5100334734,658.08,JEWSON LTD,501339,BH,,
http://statistics.data.gov.uk/doc/lolcal-authority/00CC,BarnsleyMBC,03/03/2023,5100334728,729.26,JEWSON LTD,501339,BH,,
http://statistics.data.gov.uk/doc/lolcal-authority/00CC,BarnsleyMBC,03/03/2023,5100334727,"1,875.96",JEWSON LTD,501339,BH,,
http://statistics.data.gov.uk/doc/lolcal-authority/00CC,BarnsleyMBC,03/03/2023,5100334729,628.21,JEWSON LTD,501339,BH,,
http://statistics.data.gov.uk/doc/lolcal-authority/00CC,BarnsleyMBC,03/03/2023,5100334726,890.06,JEWSON LTD,501339,BH,,
http://statistics.data.gov.uk/doc/lolcal-authority/00CC,BarnsleyMBC,06/03/2023,5100334914,"2,474.88",JEWSON LTD,501339,BH,,
http://statistics.data.gov.uk/doc/lolcal-authority/00CC,BarnsleyMBC,06/03/2023,5100334922,"1,039.80",JEWSON LTD,501339,BH,,
http://statistics.data.gov.uk/doc/lolcal-authority/00CC,BarnsleyMBC,06/03/2023,5100334921,"2,256.50",JEWSON LTD,501339,BH,,
http://statistics.data.gov.uk/doc/lolcal-authority/00CC,BarnsleyMBC,06/03/2023,5100334918,510.24,JEWSON LTD,501339,BH,,
http://statistics.data.gov.uk/doc/lolcal-authority/00CC,BarnsleyMBC,08/03/2023,5100335028,729.74,JEWSON LTD,501339,BH,,
http://statistics.data.gov.uk/doc/lolcal-authority/00CC,BarnsleyMBC,08/03/2023,5100335026,"1,192.87",JEWSON LTD,501339,BH,,
http://statistics.data.gov.uk/doc/lolcal-authority/00CC,BarnsleyMBC,09/03/2023,5100335202,"2,247.01",JEWSON LTD,501339,BH,,
http://statistics.data.gov.uk/doc/lolcal-authority/00CC,BarnsleyMBC,09/03/2023,5100334141,894.66,JEWSON LTD,501339,BH,Direct - Building Items,403013,
http://statistics.data.gov.uk/doc/lolcal-authority/00CC,BarnsleyMBC,09/03/2023,5100335040,"1,360.80",JEWSON LTD,501339,BH,Direct - Tools & Parts,403019,
http://statistics.data.gov.uk/doc/lolcal-authority/00CC,BarnsleyMBC,09/03/2023,5100335201,"-2,307.01",JEWSON LTD,501339,BH,,
http://statistics.data.gov.uk/doc/lolcal-authority/00CC,BarnsleyMBC,10/03/2023,5100335272,"1,589.89",JEWSON LTD,501339,BH,,
http://statistics.data.gov.uk/doc/lolcal-authority/00CC,BarnsleyMBC,10/03/2023,5100335269,"-1,589.89",JEWSON LTD,501339,BH,,
http://statistics.data.gov.uk/doc/lolcal-authority/00CC,BarnsleyMBC,13/03/2023,5100335328,"1,080.00",JEWSON LTD,501339,BH,Postage,426005,
http://statistics.data.gov.uk/doc/lolcal-authority/00CC,BarnsleyMBC,13/03/2023,5100335178,"6,882.89",JEWSON LTD,501339,BH,Direct - Building Items,403013,
http://statistics.data.gov.uk/doc/lolcal-authority/00CC,BarnsleyMBC,13/03/2023,5100335177,"1,085.50",JEWSON LTD,501339,BH,,
http://statistics.data.gov.uk/doc/lolcal-authority/00CC,BarnsleyMBC,13/03/2023,5100335176,"1,028.61",JEWSON LTD,501339,BH,,
http://statistics.data.gov.uk/doc/lolcal-authority/00CC,BarnsleyMBC,13/03/2023,5100335095,646.85,JEWSON LTD,501339,BH,,
http://statistics.data.gov.uk/doc/lolcal-authority/00CC,BarnsleyMBC,15/03/2023,5100335415,"1,535.62",JEWSON LTD,501339,BH,,
http://statistics.data.gov.uk/doc/lolcal-authority/00CC,BarnsleyMBC,15/03/2023,5100335284,906.04,JEWSON LTD,501339,BH,,
http://statistics.data.gov.uk/doc/lolcal-authority/00CC,BarnsleyMBC,20/03/2023,5100335470,"1,149.79",JEWSON LTD,501339,BH,,
http://statistics.data.gov.uk/doc/lolcal-authority/00CC,BarnsleyMBC,20/03/2023,5100335468,"1,097.88",JEWSON LTD,501339,BH,Direct - Building Items,403013,
http://statistics.data.gov.uk/doc/lolcal-authority/00CC,BarnsleyMBC,20/03/2023,5100335467,554.3,JEWSON LTD,501339,BH,,
http://statistics.data.gov.uk/doc/lolcal-authority/00CC,BarnsleyMBC,21/03/2023,5100335728,607.54,JEWSON LTD,501339,BH,,
http://statistics.data.gov.uk/doc/lolcal-authority/00CC,BarnsleyMBC,21/03/2023,5100335727,"1,101.60",JEWSON LTD,501339,BH,,
http://statistics.data.gov.uk/doc/lolcal-authority/00CC,BarnsleyMBC,21/03/2023,5100335694,"1,375.66",JEWSON LTD,501339,BH,,
http://statistics.data.gov.uk/doc/lolcal-authority/00CC,BarnsleyMBC,21/03/2023,5100335729,965.01,JEWSON LTD,501339,BH,,
http://statistics.data.gov.uk/doc/lolcal-authority/00CC,BarnsleyMBC,22/03/2023,5100335562,"1,851.80",JEWSON LTD,501339,BH,,
http://statistics.data.gov.uk/doc/lolcal-authority/00CC,BarnsleyMBC,22/03/2023,5100335561,"1,001.70",JEWSON LTD,501339,BH,,
http://statistics.data.gov.uk/doc/lolcal-authority/00CC,BarnsleyMBC,22/03/2023,5100335564,"1,632.60",JEWSON LTD,501339,BH,,
http://statistics.data.gov.uk/doc/lolcal-authority/00CC,BarnsleyMBC,22/03/2023,5100335833,"1,365.59",JEWSON LTD,501339,BH,,
http://statistics.data.gov.uk/doc/lolcal-authority/00CC,BarnsleyMBC,22/03/2023,5100335746,"1,868.16",JEWSON LTD,501339,BH,,
http://statistics.data.gov.uk/doc/lolcal-authority/00CC,BarnsleyMBC,22/03/2023,5100335568,"1,236.00",JEWSON LTD,501339,BH,,
http://statistics.data.gov.uk/doc/lolcal-authority/00CC,BarnsleyMBC,22/03/2023,5100335751,"4,142.46",JEWSON LTD,501339,BH,,
http://statistics.data.gov.uk/doc/lolcal-authority/00CC,BarnsleyMBC,22/03/2023,5100335750,"3,477.86",JEWSON LTD,501339,BH,Direct - Building Items,403013,
http://statistics.data.gov.uk/doc/lolcal-authority/00CC,BarnsleyMBC,22/03/2023,5100335752,900.43,JEWSON LTD,501339,BH,Direct - Building Items,403013,
http://statistics.data.gov.uk/doc/lolcal-authority/00CC,BarnsleyMBC,23/03/2023,5100335909,"2,765.95",JEWSON LTD,501339,BH,Direct - Building Items,403013,
http://statistics.data.gov.uk/doc/lolcal-authority/00CC,BarnsleyMBC,27/03/2023,5100335883,528,JEWSON LTD,501339,BH,,
http://statistics.data.gov.uk/doc/lolcal-authority/00CC,BarnsleyMBC,27/03/2023,5100335890,"1,117.88",JEWSON LTD,501339,BH,,
http://statistics.data.gov.uk/doc/lolcal-authority/00CC,BarnsleyMBC,27/03/2023,5100335912,"2,033.42",JEWSON LTD,501339,BH,,
http://statistics.data.gov.uk/doc/lolcal-authority/00CC,BarnsleyMBC,27/03/2023,5100335892,919.21,JEWSON LTD,501339,BH,,
http://statistics.data.gov.uk/doc/lolcal-authority/00CC,BarnsleyMBC,29/03/2023,5100335978,519.84,JEWSON LTD,501339,BH,,
http://statistics.data.gov.uk/doc/lolcal-authority/00CC,BarnsleyMBC,29/03/2023,5100335970,901.07,JEWSON LTD,501339,BH,,
http://statistics.data.gov.uk/doc/lolcal-authority/00CC,BarnsleyMBC,29/03/2023,5100336003,505.86,JEWSON LTD,501339,BH,Plant hire,320002,
http://statistics.data.gov.uk/doc/lolcal-authority/00CC,BarnsleyMBC,31/03/2023,5100336048,866.59,JEWSON LTD,501339,BH,Direct - Building Items,403013,
http://statistics.data.gov.uk/doc/lolcal-authority/00CC,BarnsleyMBC,31/03/2023,5100336077,"2,891.04",JEWSON LTD,501339,BH,,
http://statistics.data.gov.uk/doc/lolcal-authority/00CC,BarnsleyMBC,07/02/2023,5100333678,672.6,KANE INTERNATIONAL LTD,522844,BH,Equipment - Repair and Maintenance,400003,
http://statistics.data.gov.uk/doc/lolcal-authority/00CC,BarnsleyMBC,07/02/2023,5100333679,772.2,KANE INTERNATIONAL LTD,522844,BH,Direct - Tools & Parts,403019,
http://statistics.data.gov.uk/doc/lolcal-authority/00CC,BarnsleyMBC,23/03/2023,5100335919,951.9,KANE INTERNATIONAL LTD,522844,BH,Equipment - Repair and Maintenance,400003,
http://statistics.data.gov.uk/doc/lolcal-authority/00CC,BarnsleyMBC,30/03/2023,5100336182,"1,048.80",KANE INTERNATIONAL LTD,522844,BH,Equipment - Repair and Maintenance,400003,
http://statistics.data.gov.uk/doc/lolcal-authority/00CC,BarnsleyMBC,23/01/2023,5100332853,"1,338.00",KAREN HOUSE ASSOCIATES LTD,523762,BH,Training Courses,112001,
http://statistics.data.gov.uk/doc/lolcal-authority/00CC,BarnsleyMBC,01/02/2023,5100333382,"1,200.00",KAREN HOUSE ASSOCIATES LTD,523762,BH,Training Courses,112001,
http://statistics.data.gov.uk/doc/lolcal-authority/00CC,BarnsleyMBC,31/03/2023,5100336205,"3,141.60",KAREN HOUSE ASSOCIATES LTD,523762,BH,Consultants Fees,424007,
http://statistics.data.gov.uk/doc/lolcal-authority/00CC,BarnsleyMBC,10/01/2023,5100332119,"1,620.00",KATE BETTS MEDIA LTD,521850,BH,Training Courses,112001,
http://statistics.data.gov.uk/doc/lolcal-authority/00CC,BarnsleyMBC,12/01/2023,5100332050,777.63,Kingfisher UPVC Doors and Windows L,535349,BH,Direct - Building Items,403013,
http://statistics.data.gov.uk/doc/lolcal-authority/00CC,BarnsleyMBC,12/01/2023,5100332043,557.78,Kingfisher UPVC Doors and Windows L,535349,BH,Direct - Building Items,403013,
http://statistics.data.gov.uk/doc/lolcal-authority/00CC,BarnsleyMBC,12/01/2023,5100332197,516.82,Kingfisher UPVC Doors and Windows L,535349,BH,Direct - Building Items,403013,
http://statistics.data.gov.uk/doc/lolcal-authority/00CC,BarnsleyMBC,12/01/2023,5100332196,516.71,Kingfisher UPVC Doors and Windows L,535349,BH,Direct - Building Items,403013,
http://statistics.data.gov.uk/doc/lolcal-authority/00CC,BarnsleyMBC,12/01/2023,5100332193,516.75,Kingfisher UPVC Doors and Windows L,535349,BH,Direct - Building Items,403013,
http://statistics.data.gov.uk/doc/lolcal-authority/00CC,BarnsleyMBC,12/01/2023,5100332194,516.63,Kingfisher UPVC Doors and Windows L,535349,BH,Direct - Building Items,403013,
http://statistics.data.gov.uk/doc/lolcal-authority/00CC,BarnsleyMBC,12/01/2023,5100332203,516.82,Kingfisher UPVC Doors and Windows L,535349,BH,Direct - Building Items,403013,
http://statistics.data.gov.uk/doc/lolcal-authority/00CC,BarnsleyMBC,12/01/2023,5100332198,516.68,Kingfisher UPVC Doors and Windows L,535349,BH,Direct - Building Items,403013,
http://statistics.data.gov.uk/doc/lolcal-authority/00CC,BarnsleyMBC,12/01/2023,5100332195,516.68,Kingfisher UPVC Doors and Windows L,535349,BH,Direct - Building Items,403013,
http://statistics.data.gov.uk/doc/lolcal-authority/00CC,BarnsleyMBC,12/01/2023,5100332201,516.68,Kingfisher UPVC Doors and Windows L,535349,BH,Direct - Building Items,403013,
http://statistics.data.gov.uk/doc/lolcal-authority/00CC,BarnsleyMBC,12/01/2023,5100332200,516.68,Kingfisher UPVC Doors and Windows L,535349,BH,Direct - Building Items,403013,
http://statistics.data.gov.uk/doc/lolcal-authority/00CC,BarnsleyMBC,12/01/2023,5100332199,516.66,Kingfisher UPVC Doors and Windows L,535349,BH,Direct - Building Items,403013,
http://statistics.data.gov.uk/doc/lolcal-authority/00CC,BarnsleyMBC,12/01/2023,5100332202,516.68,Kingfisher UPVC Doors and Windows L,535349,BH,Direct - Building Items,403013,
http://statistics.data.gov.uk/doc/lolcal-authority/00CC,BarnsleyMBC,16/01/2023,5100332413,802.96,Kingfisher UPVC Doors and Windows L,535349,BH,Direct - Building Items,403013,
http://statistics.data.gov.uk/doc/lolcal-authority/00CC,BarnsleyMBC,19/01/2023,5100332599,516.66,Kingfisher UPVC Doors and Windows L,535349,BH,Direct - Building Items,403013,
http://statistics.data.gov.uk/doc/lolcal-authority/00CC,BarnsleyMBC,19/01/2023,5100332603,516.75,Kingfisher UPVC Doors and Windows L,535349,BH,Direct - Building Items,403013,
http://statistics.data.gov.uk/doc/lolcal-authority/00CC,BarnsleyMBC,19/01/2023,5100332602,516.68,Kingfisher UPVC Doors and Windows L,535349,BH,Direct - Building Items,403013,
http://statistics.data.gov.uk/doc/lolcal-authority/00CC,BarnsleyMBC,19/01/2023,5100332601,516.68,Kingfisher UPVC Doors and Windows L,535349,BH,Direct - Building Items,403013,
http://statistics.data.gov.uk/doc/lolcal-authority/00CC,BarnsleyMBC,19/01/2023,5100332600,516.68,Kingfisher UPVC Doors and Windows L,535349,BH,Direct - Building Items,403013,
http://statistics.data.gov.uk/doc/lolcal-authority/00CC,BarnsleyMBC,24/01/2023,5100332879,516.71,Kingfisher UPVC Doors and Windows L,535349,BH,Direct - Building Items,403013,
http://statistics.data.gov.uk/doc/lolcal-authority/00CC,BarnsleyMBC,24/01/2023,5100332880,516.71,Kingfisher UPVC Doors and Windows L,535349,BH,Direct - Building Items,403013,
http://statistics.data.gov.uk/doc/lolcal-authority/00CC,BarnsleyMBC,24/01/2023,5100332881,516.68,Kingfisher UPVC Doors and Windows L,535349,BH,Direct - Building Items,403013,
http://statistics.data.gov.uk/doc/lolcal-authority/00CC,BarnsleyMBC,24/01/2023,5100332679,625.73,Kingfisher UPVC Doors and Windows L,535349,BH,Direct - UPVC Parts,403015,
http://statistics.data.gov.uk/doc/lolcal-authority/00CC,BarnsleyMBC,24/01/2023,5100332882,516.68,Kingfisher UPVC Doors and Windows L,535349,BH,Direct - Building Items,403013,
http://statistics.data.gov.uk/doc/lolcal-authority/00CC,BarnsleyMBC,27/02/2023,5100334462,612.77,Kingfisher UPVC Doors and Windows L,535349,BH,Direct - UPVC Parts,403015,
http://statistics.data.gov.uk/doc/lolcal-authority/00CC,BarnsleyMBC,27/02/2023,5100334461,564.22,Kingfisher UPVC Doors and Windows L,535349,BH,Direct - Building Items,403013,
http://statistics.data.gov.uk/doc/lolcal-authority/00CC,BarnsleyMBC,28/02/2023,5100334619,573.73,Kingfisher UPVC Doors and Windows L,535349,BH,Direct - UPVC Parts,403015,
http://statistics.data.gov.uk/doc/lolcal-authority/00CC,BarnsleyMBC,28/02/2023,5100334610,577.9,Kingfisher UPVC Doors and Windows L,535349,BH,Direct - UPVC Parts,403015,
http://statistics.data.gov.uk/doc/lolcal-authority/00CC,BarnsleyMBC,28/02/2023,5100334617,723.33,Kingfisher UPVC Doors and Windows L,535349,BH,Direct - UPVC Parts,403015,
http://statistics.data.gov.uk/doc/lolcal-authority/00CC,BarnsleyMBC,28/02/2023,5100334616,661.88,Kingfisher UPVC Doors and Windows L,535349,BH,Direct - UPVC Parts,403015,
http://statistics.data.gov.uk/doc/lolcal-authority/00CC,BarnsleyMBC,28/02/2023,5100334620,557.63,Kingfisher UPVC Doors and Windows L,535349,BH,Direct - UPVC Parts,403015,
http://statistics.data.gov.uk/doc/lolcal-authority/00CC,BarnsleyMBC,28/02/2023,5100334618,573.73,Kingfisher UPVC Doors and Windows L,535349,BH,Direct - UPVC Parts,403015,
http://statistics.data.gov.uk/doc/lolcal-authority/00CC,BarnsleyMBC,28/02/2023,5100334615,561.38,Kingfisher UPVC Doors and Windows L,535349,BH,Direct - UPVC Parts,403015,
http://statistics.data.gov.uk/doc/lolcal-authority/00CC,BarnsleyMBC,28/02/2023,5100334614,634.38,Kingfisher UPVC Doors and Windows L,535349,BH,Direct - UPVC Parts,403015,
http://statistics.data.gov.uk/doc/lolcal-authority/00CC,BarnsleyMBC,01/03/2023,5100334611,557.78,Kingfisher UPVC Doors and Windows L,535349,BH,Direct - UPVC Parts,403015,
http://statistics.data.gov.uk/doc/lolcal-authority/00CC,BarnsleyMBC,01/03/2023,5100334612,671.34,Kingfisher UPVC Doors and Windows L,535349,BH,Direct - UPVC Parts,403015,
http://statistics.data.gov.uk/doc/lolcal-authority/00CC,BarnsleyMBC,01/03/2023,5100334499,655.29,Kingfisher UPVC Doors and Windows L,535349,BH,Direct - UPVC Parts,403015,
http://statistics.data.gov.uk/doc/lolcal-authority/00CC,BarnsleyMBC,01/03/2023,5100334576,551.09,Kingfisher UPVC Doors and Windows L,535349,BH,Direct - UPVC Parts,403015,
http://statistics.data.gov.uk/doc/lolcal-authority/00CC,BarnsleyMBC,02/03/2023,5100334613,564.22,Kingfisher UPVC Doors and Windows L,535349,BH,Direct - UPVC Parts,403015,
http://statistics.data.gov.uk/doc/lolcal-authority/00CC,BarnsleyMBC,08/03/2023,5100335087,813.8,Kingfisher UPVC Doors and Windows L,535349,BH,Direct - UPVC Parts,403015,
http://statistics.data.gov.uk/doc/lolcal-authority/00CC,BarnsleyMBC,13/03/2023,5100335382,516.77,Kingfisher UPVC Doors and Windows L,535349,BH,Direct - UPVC Parts,403015,
http://statistics.data.gov.uk/doc/lolcal-authority/00CC,BarnsleyMBC,13/03/2023,5100335383,516.61,Kingfisher UPVC Doors and Windows L,535349,BH,Direct - UPVC Parts,403015,
http://statistics.data.gov.uk/doc/lolcal-authority/00CC,BarnsleyMBC,13/03/2023,5100335391,516.8,Kingfisher UPVC Doors and Windows L,535349,BH,Direct - UPVC Parts,403015,
http://statistics.data.gov.uk/doc/lolcal-authority/00CC,BarnsleyMBC,13/03/2023,5100335392,516.75,Kingfisher UPVC Doors and Windows L,535349,BH,Direct - UPVC Parts,403015,
http://statistics.data.gov.uk/doc/lolcal-authority/00CC,BarnsleyMBC,13/03/2023,5100335385,517.13,Kingfisher UPVC Doors and Windows L,535349,BH,Direct - UPVC Parts,403015,
http://statistics.data.gov.uk/doc/lolcal-authority/00CC,BarnsleyMBC,13/03/2023,5100335384,516.71,Kingfisher UPVC Doors and Windows L,535349,BH,Direct - UPVC Parts,403015,
http://statistics.data.gov.uk/doc/lolcal-authority/00CC,BarnsleyMBC,13/03/2023,5100335386,516.8,Kingfisher UPVC Doors and Windows L,535349,BH,Direct - UPVC Parts,403015,
http://statistics.data.gov.uk/doc/lolcal-authority/00CC,BarnsleyMBC,13/03/2023,5100335387,516.8,Kingfisher UPVC Doors and Windows L,535349,BH,Direct - UPVC Parts,403015,
http://statistics.data.gov.uk/doc/lolcal-authority/00CC,BarnsleyMBC,13/03/2023,5100335379,516.85,Kingfisher UPVC Doors and Windows L,535349,BH,Direct - UPVC Parts,403015,
http://statistics.data.gov.uk/doc/lolcal-authority/00CC,BarnsleyMBC,13/03/2023,5100335388,516.75,Kingfisher UPVC Doors and Windows L,535349,BH,Direct - UPVC Parts,403015,
http://statistics.data.gov.uk/doc/lolcal-authority/00CC,BarnsleyMBC,13/03/2023,5100335389,516.8,Kingfisher UPVC Doors and Windows L,535349,BH,Direct - UPVC Parts,403015,
http://statistics.data.gov.uk/doc/lolcal-authority/00CC,BarnsleyMBC,13/03/2023,5100335395,516.68,Kingfisher UPVC Doors and Windows L,535349,BH,Direct - UPVC Parts,403015,
http://statistics.data.gov.uk/doc/lolcal-authority/00CC,BarnsleyMBC,13/03/2023,5100335380,516.85,Kingfisher UPVC Doors and Windows L,535349,BH,Direct - UPVC Parts,403015,
http://statistics.data.gov.uk/doc/lolcal-authority/00CC,BarnsleyMBC,13/03/2023,5100335390,516.8,Kingfisher UPVC Doors and Windows L,535349,BH,Direct - UPVC Parts,403015,
http://statistics.data.gov.uk/doc/lolcal-authority/00CC,BarnsleyMBC,13/03/2023,5100335381,516.85,Kingfisher UPVC Doors and Windows L,535349,BH,Direct - UPVC Parts,403015,
http://statistics.data.gov.uk/doc/lolcal-authority/00CC,BarnsleyMBC,13/03/2023,5100335393,516.71,Kingfisher UPVC Doors and Windows L,535349,BH,Direct - UPVC Parts,403015,
http://statistics.data.gov.uk/doc/lolcal-authority/00CC,BarnsleyMBC,13/03/2023,5100335394,516.66,Kingfisher UPVC Doors and Windows L,535349,BH,Direct - UPVC Parts,403015,
http://statistics.data.gov.uk/doc/lolcal-authority/00CC,BarnsleyMBC,15/03/2023,5100335235,557.97,Kingfisher UPVC Doors and Windows L,535349,BH,Direct - Building Items,403013,
http://statistics.data.gov.uk/doc/lolcal-authority/00CC,BarnsleyMBC,15/03/2023,5100335209,765.47,Kingfisher UPVC Doors and Windows L,535349,BH,Direct - UPVC Parts,403015,
http://statistics.data.gov.uk/doc/lolcal-authority/00CC,BarnsleyMBC,15/03/2023,5100335234,572.35,Kingfisher UPVC Doors and Windows L,535349,BH,Direct - Building Items,403013,
http://statistics.data.gov.uk/doc/lolcal-authority/00CC,BarnsleyMBC,15/03/2023,5100335280,530.57,Kingfisher UPVC Doors and Windows L,535349,BH,Direct - Building Items,403013,
http://statistics.data.gov.uk/doc/lolcal-authority/00CC,BarnsleyMBC,15/03/2023,5100335286,530.57,Kingfisher UPVC Doors and Windows L,535349,BH,Direct - Building Items,403013,
http://statistics.data.gov.uk/doc/lolcal-authority/00CC,BarnsleyMBC,15/03/2023,5100335275,530.57,Kingfisher UPVC Doors and Windows L,535349,BH,Direct - Building Items,403013,
http://statistics.data.gov.uk/doc/lolcal-authority/00CC,BarnsleyMBC,15/03/2023,5100335274,530.57,Kingfisher UPVC Doors and Windows L,535349,BH,Direct - Building Items,403013,
http://statistics.data.gov.uk/doc/lolcal-authority/00CC,BarnsleyMBC,15/03/2023,5100335287,530.57,Kingfisher UPVC Doors and Windows L,535349,BH,Direct - Building Items,403013,
http://statistics.data.gov.uk/doc/lolcal-authority/00CC,BarnsleyMBC,15/03/2023,5100335288,530.57,Kingfisher UPVC Doors and Windows L,535349,BH,Direct - Building Items,403013,
http://statistics.data.gov.uk/doc/lolcal-authority/00CC,BarnsleyMBC,15/03/2023,5100335207,530.86,Kingfisher UPVC Doors and Windows L,535349,BH,Direct - Building Items,403013,
http://statistics.data.gov.uk/doc/lolcal-authority/00CC,BarnsleyMBC,15/03/2023,5100335208,578,Kingfisher UPVC Doors and Windows L,535349,BH,Direct - UPVC Parts,403015,
http://statistics.data.gov.uk/doc/lolcal-authority/00CC,BarnsleyMBC,20/03/2023,5100335587,"1,237.06",Kingfisher UPVC Doors and Windows L,535349,BH,Direct - UPVC Parts,403015,
http://statistics.data.gov.uk/doc/lolcal-authority/00CC,BarnsleyMBC,22/03/2023,5100335798,516.85,Kingfisher UPVC Doors and Windows L,535349,BH,Direct - UPVC Parts,403015,
http://statistics.data.gov.uk/doc/lolcal-authority/00CC,BarnsleyMBC,22/03/2023,5100335810,516.8,Kingfisher UPVC Doors and Windows L,535349,BH,Direct - UPVC Parts,403015,
http://statistics.data.gov.uk/doc/lolcal-authority/00CC,BarnsleyMBC,22/03/2023,5100335811,516.8,Kingfisher UPVC Doors and Windows L,535349,BH,Direct - UPVC Parts,403015,
http://statistics.data.gov.uk/doc/lolcal-authority/00CC,BarnsleyMBC,22/03/2023,5100335809,516.8,Kingfisher UPVC Doors and Windows L,535349,BH,Direct - UPVC Parts,403015,
http://statistics.data.gov.uk/doc/lolcal-authority/00CC,BarnsleyMBC,22/03/2023,5100335796,516.85,Kingfisher UPVC Doors and Windows L,535349,BH,Direct - UPVC Parts,403015,
http://statistics.data.gov.uk/doc/lolcal-authority/00CC,BarnsleyMBC,22/03/2023,5100335808,516.68,Kingfisher UPVC Doors and Windows L,535349,BH,Direct - UPVC Parts,403015,
http://statistics.data.gov.uk/doc/lolcal-authority/00CC,BarnsleyMBC,22/03/2023,5100335807,530.57,Kingfisher UPVC Doors and Windows L,535349,BH,Direct - Building Items,403013,
http://statistics.data.gov.uk/doc/lolcal-authority/00CC,BarnsleyMBC,22/03/2023,5100335795,530.57,Kingfisher UPVC Doors and Windows L,535349,BH,Direct - Building Items,403013,
http://statistics.data.gov.uk/doc/lolcal-authority/00CC,BarnsleyMBC,22/03/2023,5100335794,530.62,Kingfisher UPVC Doors and Windows L,535349,BH,Direct - Building Items,403013,
http://statistics.data.gov.uk/doc/lolcal-authority/00CC,BarnsleyMBC,22/03/2023,5100335793,530.57,Kingfisher UPVC Doors and Windows L,535349,BH,Direct - Building Items,403013,
http://statistics.data.gov.uk/doc/lolcal-authority/00CC,BarnsleyMBC,22/03/2023,5100335802,530.57,Kingfisher UPVC Doors and Windows L,535349,BH,Direct - Building Items,403013,
http://statistics.data.gov.uk/doc/lolcal-authority/00CC,BarnsleyMBC,22/03/2023,5100335801,530.57,Kingfisher UPVC Doors and Windows L,535349,BH,Direct - Building Items,403013,
http://statistics.data.gov.uk/doc/lolcal-authority/00CC,BarnsleyMBC,22/03/2023,5100335800,530.57,Kingfisher UPVC Doors and Windows L,535349,BH,Direct - Building Items,403013,
http://statistics.data.gov.uk/doc/lolcal-authority/00CC,BarnsleyMBC,22/03/2023,5100335803,530.57,Kingfisher UPVC Doors and Windows L,535349,BH,Direct - Building Items,403013,
http://statistics.data.gov.uk/doc/lolcal-authority/00CC,BarnsleyMBC,22/03/2023,5100335799,530.57,Kingfisher UPVC Doors and Windows L,535349,BH,Direct - Building Items,403013,
http://statistics.data.gov.uk/doc/lolcal-authority/00CC,BarnsleyMBC,22/03/2023,5100335804,530.57,Kingfisher UPVC Doors and Windows L,535349,BH,Direct - Building Items,403013,
http://statistics.data.gov.uk/doc/lolcal-authority/00CC,BarnsleyMBC,22/03/2023,5100335806,516.66,Kingfisher UPVC Doors and Windows L,535349,BH,Direct - UPVC Parts,403015,
http://statistics.data.gov.uk/doc/lolcal-authority/00CC,BarnsleyMBC,22/03/2023,5100335805,516.71,Kingfisher UPVC Doors and Windows L,535349,BH,Direct - UPVC Parts,403015,
http://statistics.data.gov.uk/doc/lolcal-authority/00CC,BarnsleyMBC,22/03/2023,5100335797,516.71,Kingfisher UPVC Doors and Windows L,535349,BH,Direct - UPVC Parts,403015,
http://statistics.data.gov.uk/doc/lolcal-authority/00CC,BarnsleyMBC,28/03/2023,5100335857,591.95,Kingfisher UPVC Doors and Windows L,535349,BH,Direct - UPVC Parts,403015,
http://statistics.data.gov.uk/doc/lolcal-authority/00CC,BarnsleyMBC,10/01/2023,5100332115,"8,318.88",LIFETIME DIGITAL PLANNING LIMITED,518192,BH,Subscriptions & Contributions,430002,
http://statistics.data.gov.uk/doc/lolcal-authority/00CC,BarnsleyMBC,07/03/2023,5100334967,"17,023.52",MATTHEWS AND TANNERT LTD,552071,BH,Main contractor,506011,
http://statistics.data.gov.uk/doc/lolcal-authority/00CC,BarnsleyMBC,22/03/2023,5100335824,"15,898.30",MATTHEWS AND TANNERT LTD,552071,BH,Main contractor,506011,
http://statistics.data.gov.uk/doc/lolcal-authority/00CC,BarnsleyMBC,23/03/2023,5100335899,"3,517.96",MATTHEWS AND TANNERT LTD,552071,BH,Main contractor,506011,
http://statistics.data.gov.uk/doc/lolcal-authority/00CC,BarnsleyMBC,31/01/2023,5100333079,"4,603.86",MCP ENVIRONMENTAL LLP,551926,BH,Main contractor,506011,
http://statistics.data.gov.uk/doc/lolcal-authority/00CC,BarnsleyMBC,03/02/2023,5100333424,"11,407.46",MCP ENVIRONMENTAL LLP,551926,BH,Main contractor,506011,
http://statistics.data.gov.uk/doc/lolcal-authority/00CC,BarnsleyMBC,03/03/2023,5100334718,821.16,MCP ENVIRONMENTAL LLP,551926,BH,Main contractor,506011,
http://statistics.data.gov.uk/doc/lolcal-authority/00CC,BarnsleyMBC,07/03/2023,5100334719,"1,683.60",MCP ENVIRONMENTAL LLP,551926,BH,Main contractor,506011,
http://statistics.data.gov.uk/doc/lolcal-authority/00CC,BarnsleyMBC,31/03/2023,5100336038,"10,682.44",MCP ENVIRONMENTAL LLP,551926,BH,Main contractor,506011,
http://statistics.data.gov.uk/doc/lolcal-authority/00CC,BarnsleyMBC,08/03/2023,5100335067,"3,100.80",MICHAEL DYSON ASSOCIATION LTD,505203,BH,Main contractor,506011,
http://statistics.data.gov.uk/doc/lolcal-authority/00CC,BarnsleyMBC,23/03/2023,5100335921,"1,142.40",MICHAEL DYSON ASSOCIATION LTD,505203,BH,Main contractor,506011,
http://statistics.data.gov.uk/doc/lolcal-authority/00CC,BarnsleyMBC,31/01/2023,5100333218,620.52,MIS Conversions Ltd,535595,BH,Main contractor,506011,
http://statistics.data.gov.uk/doc/lolcal-authority/00CC,BarnsleyMBC,31/01/2023,5100333217,620.52,MIS Conversions Ltd,535595,BH,Main contractor,506011,
http://statistics.data.gov.uk/doc/lolcal-authority/00CC,BarnsleyMBC,31/01/2023,5100333216,620.52,MIS Conversions Ltd,535595,BH,Main contractor,506011,
http://statistics.data.gov.uk/doc/lolcal-authority/00CC,BarnsleyMBC,22/02/2023,5100334049,620.52,MIS Conversions Ltd,535595,BH,Main contractor,506011,
http://statistics.data.gov.uk/doc/lolcal-authority/00CC,BarnsleyMBC,22/02/2023,5100334048,620.52,MIS Conversions Ltd,535595,BH,Main contractor,506011,
http://statistics.data.gov.uk/doc/lolcal-authority/00CC,BarnsleyMBC,05/01/2023,5100332004,998.93,MITSUBISHI ELECTRIC EUROPE BV,525543,BH,Direct - Building Items,403013,
http://statistics.data.gov.uk/doc/lolcal-authority/00CC,BarnsleyMBC,05/01/2023,5100331950,"1,921.64",MITSUBISHI ELECTRIC EUROPE BV,525543,BH,,
http://statistics.data.gov.uk/doc/lolcal-authority/00CC,BarnsleyMBC,05/01/2023,5100332002,915.26,MITSUBISHI ELECTRIC EUROPE BV,525543,BH,,
http://statistics.data.gov.uk/doc/lolcal-authority/00CC,BarnsleyMBC,16/01/2023,5100332408,690.48,MITSUBISHI ELECTRIC EUROPE BV,525543,BH,Direct - Building Items,403013,
http://statistics.data.gov.uk/doc/lolcal-authority/00CC,BarnsleyMBC,12/01/2023,5100332302,"1,076.87",MORGAN LAMBERT LTD,521517,BH,Main contractor,506011,
http://statistics.data.gov.uk/doc/lolcal-authority/00CC,BarnsleyMBC,19/01/2023,5100332621,"1,848.53",MORGAN LAMBERT LTD,521517,BH,Main contractor,506011,
http://statistics.data.gov.uk/doc/lolcal-authority/00CC,BarnsleyMBC,10/02/2023,5100333927,"2,053.91",MORGAN LAMBERT LTD,521517,BH,Main contractor,506011,
http://statistics.data.gov.uk/doc/lolcal-authority/00CC,BarnsleyMBC,14/02/2023,5100334026,"3,396.28",MORGAN LAMBERT LTD,521517,BH,Main contractor,506011,
http://statistics.data.gov.uk/doc/lolcal-authority/00CC,BarnsleyMBC,07/03/2023,5100334933,872.91,MORGAN LAMBERT LTD,521517,BH,Main contractor,506011,
http://statistics.data.gov.uk/doc/lolcal-authority/00CC,BarnsleyMBC,22/03/2023,5100335767,"2,319.41",MORGAN LAMBERT LTD,521517,BH,Main contractor,506011,
http://statistics.data.gov.uk/doc/lolcal-authority/00CC,BarnsleyMBC,16/02/2023,1900026564,"1,000.00",N H STORBECK,526790,BH,Property Rents,211002,
http://statistics.data.gov.uk/doc/lolcal-authority/00CC,BarnsleyMBC,03/01/2023,5100331883,"3,960.00",NEC Software Solutions UK Limited,538878,BH,Consultants Fees,424007,
http://statistics.data.gov.uk/doc/lolcal-authority/00CC,BarnsleyMBC,05/01/2023,5100331187,"7,452.00",NEC Software Solutions UK Limited,538878,BH,Consultants Fees,424007,
http://statistics.data.gov.uk/doc/lolcal-authority/00CC,BarnsleyMBC,13/01/2023,5100331932,960,NEC Software Solutions UK Limited,538878,BH,Consultants Fees,424007,
http://statistics.data.gov.uk/doc/lolcal-authority/00CC,BarnsleyMBC,24/01/2023,5100332883,"2,610.00",NEC Software Solutions UK Limited,538878,BH,Consultants Fees,424007,
http://statistics.data.gov.uk/doc/lolcal-authority/00CC,BarnsleyMBC,01/03/2023,5100334683,"323,331.60",NEC Software Solutions UK Limited,538878,BH,Computer Software -  Maintenance,426009,
http://statistics.data.gov.uk/doc/lolcal-authority/00CC,BarnsleyMBC,22/03/2023,5100335775,"6,090.00",NEC Software Solutions UK Limited,538878,BH,Consultants Fees,424007,
http://statistics.data.gov.uk/doc/lolcal-authority/00CC,BarnsleyMBC,11/01/2023,5100332145,"21,105.84",NORSE COMMERCIAL SERVICES LIMITED,552432,BH,Cleaning -  Buildings - External Provide,240001,
http://statistics.data.gov.uk/doc/lolcal-authority/00CC,BarnsleyMBC,07/02/2023,5100333655,"21,105.84",NORSE COMMERCIAL SERVICES LIMITED,552432,BH,Cleaning -  Buildings - External Provide,240001,
http://statistics.data.gov.uk/doc/lolcal-authority/00CC,BarnsleyMBC,22/02/2023,5100334251,"21,105.84",NORSE COMMERCIAL SERVICES LIMITED,552432,BH,Cleaning -  Buildings - External Provide,240001,
http://statistics.data.gov.uk/doc/lolcal-authority/00CC,BarnsleyMBC,23/03/2023,5100335905,"21,105.84",NORSE COMMERCIAL SERVICES LIMITED,552432,BH,Cleaning -  Buildings - External Provide,240001,
http://statistics.data.gov.uk/doc/lolcal-authority/00CC,BarnsleyMBC,15/02/2023,5100334084,"5,128.50",NORTH YORKSHIRE COUNTY COUNCIL,502220,BH,Subscriptions & Contributions,430002,
http://statistics.data.gov.uk/doc/lolcal-authority/00CC,BarnsleyMBC,18/01/2023,1900026417,"1,011.83",NORTHERN POWERGRID (YORKSHIRE) PLC,550790,BH,Main contractor,506011,
http://statistics.data.gov.uk/doc/lolcal-authority/00CC,BarnsleyMBC,16/02/2023,1900026542,"1,011.83",NORTHERN POWERGRID (YORKSHIRE) PLC,550790,BH,Main contractor,506011,
http://statistics.data.gov.uk/doc/lolcal-authority/00CC,BarnsleyMBC,03/02/2023,5200079976,"1,010.52",NPOWER LTD,585003,BH,Energy - Electricity,210001,
http://statistics.data.gov.uk/doc/lolcal-authority/00CC,BarnsleyMBC,03/02/2023,5200079973,"3,097.51",NPOWER LTD,585003,BH,Energy - Electricity,210001,
http://statistics.data.gov.uk/doc/lolcal-authority/00CC,BarnsleyMBC,03/02/2023,5200079910,571.33,NPOWER LTD,585003,BH,Energy - Electricity,210001,
http://statistics.data.gov.uk/doc/lolcal-authority/00CC,BarnsleyMBC,03/02/2023,5200079970,"9,553.28",NPOWER LTD,585003,BH,Energy - Electricity,210001,
http://statistics.data.gov.uk/doc/lolcal-authority/00CC,BarnsleyMBC,03/02/2023,5200079907,"1,023.37",NPOWER LTD,585003,BH,Energy - Electricity,210001,
http://statistics.data.gov.uk/doc/lolcal-authority/00CC,BarnsleyMBC,03/02/2023,5200079967,"1,699.80",NPOWER LTD,585003,BH,Energy - Electricity,210001,
http://statistics.data.gov.uk/doc/lolcal-authority/00CC,BarnsleyMBC,03/02/2023,5200079961,784.4,NPOWER LTD,585003,BH,Energy - Electricity,210001,
http://statistics.data.gov.uk/doc/lolcal-authority/00CC,BarnsleyMBC,03/02/2023,5200079906,"1,696.86",NPOWER LTD,585003,BH,Energy - Electricity,210001,
http://statistics.data.gov.uk/doc/lolcal-authority/00CC,BarnsleyMBC,03/02/2023,5200079887,"1,346.46",NPOWER LTD,585003,BH,Energy - Electricity,210001,
http://statistics.data.gov.uk/doc/lolcal-authority/00CC,BarnsleyMBC,03/02/2023,5200079871,672.85,NPOWER LTD,585003,BH,Energy - Electricity,210001,
http://statistics.data.gov.uk/doc/lolcal-authority/00CC,BarnsleyMBC,03/02/2023,5200079959,"2,475.51",NPOWER LTD,585003,BH,Energy - Electricity,210001,
http://statistics.data.gov.uk/doc/lolcal-authority/00CC,BarnsleyMBC,03/02/2023,5200079860,"1,520.40",NPOWER LTD,585003,BH,Energy - Electricity,210001,
http://statistics.data.gov.uk/doc/lolcal-authority/00CC,BarnsleyMBC,03/02/2023,5200079949,609.84,NPOWER LTD,585003,BH,Energy - Electricity,210001,
http://statistics.data.gov.uk/doc/lolcal-authority/00CC,BarnsleyMBC,03/02/2023,5200079854,596.12,NPOWER LTD,585003,BH,Energy - Electricity,210001,
http://statistics.data.gov.uk/doc/lolcal-authority/00CC,BarnsleyMBC,03/02/2023,5200079943,753.6,NPOWER LTD,585003,BH,Energy - Electricity,210001,
http://statistics.data.gov.uk/doc/lolcal-authority/00CC,BarnsleyMBC,03/02/2023,5200079922,572.21,NPOWER LTD,585003,BH,Energy - Electricity,210001,
http://statistics.data.gov.uk/doc/lolcal-authority/00CC,BarnsleyMBC,03/02/2023,5200079920,669.54,NPOWER LTD,585003,BH,Energy - Electricity,210001,
http://statistics.data.gov.uk/doc/lolcal-authority/00CC,BarnsleyMBC,03/02/2023,5200079911,867.66,NPOWER LTD,585003,BH,Energy - Electricity,210001,
http://statistics.data.gov.uk/doc/lolcal-authority/00CC,BarnsleyMBC,03/02/2023,5200079944,"1,182.64",NPOWER LTD,585003,BH,Energy - Electricity,210001,
http://statistics.data.gov.uk/doc/lolcal-authority/00CC,BarnsleyMBC,03/02/2023,5200079945,"1,208.27",NPOWER LTD,585003,BH,Energy - Electricity,210001,
http://statistics.data.gov.uk/doc/lolcal-authority/00CC,BarnsleyMBC,03/02/2023,5200079948,609.84,NPOWER LTD,585003,BH,Energy - Electricity,210001,
http://statistics.data.gov.uk/doc/lolcal-authority/00CC,BarnsleyMBC,03/02/2023,5200079979,"1,418.51",NPOWER LTD,585003,BH,Energy - Electricity,210001,
http://statistics.data.gov.uk/doc/lolcal-authority/00CC,BarnsleyMBC,03/02/2023,5200079983,"2,900.11",NPOWER LTD,585003,BH,Energy - Electricity,210001,
http://statistics.data.gov.uk/doc/lolcal-authority/00CC,BarnsleyMBC,03/02/2023,5200079986,"3,802.64",NPOWER LTD,585003,BH,Energy - Electricity,210001,
http://statistics.data.gov.uk/doc/lolcal-authority/00CC,BarnsleyMBC,03/02/2023,5200079989,"11,846.68",NPOWER LTD,585003,BH,Energy - Electricity,210001,
http://statistics.data.gov.uk/doc/lolcal-authority/00CC,BarnsleyMBC,08/02/2023,5200080217,622.49,NPOWER LTD,585003,BH,Energy - Electricity,210001,
http://statistics.data.gov.uk/doc/lolcal-authority/00CC,BarnsleyMBC,08/02/2023,5200080216,622.49,NPOWER LTD,585003,BH,Energy - Electricity,210001,
http://statistics.data.gov.uk/doc/lolcal-authority/00CC,BarnsleyMBC,08/02/2023,5200080209,"3,106.03",NPOWER LTD,585003,BH,Energy - Electricity,210001,
http://statistics.data.gov.uk/doc/lolcal-authority/00CC,BarnsleyMBC,08/02/2023,5200080206,875.84,NPOWER LTD,585003,BH,Energy - Electricity,210001,
http://statistics.data.gov.uk/doc/lolcal-authority/00CC,BarnsleyMBC,08/02/2023,5200080178,"2,343.04",NPOWER LTD,585003,BH,Energy - Electricity,210001,
http://statistics.data.gov.uk/doc/lolcal-authority/00CC,BarnsleyMBC,08/02/2023,5200080177,"1,096.48",NPOWER LTD,585003,BH,Energy - Electricity,210001,
http://statistics.data.gov.uk/doc/lolcal-authority/00CC,BarnsleyMBC,08/02/2023,5200080130,"1,408.96",NPOWER LTD,585003,BH,Energy - Electricity,210001,
http://statistics.data.gov.uk/doc/lolcal-authority/00CC,BarnsleyMBC,08/02/2023,5200080135,"1,924.70",NPOWER LTD,585003,BH,Energy - Electricity,210001,
http://statistics.data.gov.uk/doc/lolcal-authority/00CC,BarnsleyMBC,08/02/2023,5200080154,"1,355.78",NPOWER LTD,585003,BH,Energy - Electricity,210001,
http://statistics.data.gov.uk/doc/lolcal-authority/00CC,BarnsleyMBC,08/02/2023,5200080176,891.45,NPOWER LTD,585003,BH,Energy - Electricity,210001,
http://statistics.data.gov.uk/doc/lolcal-authority/00CC,BarnsleyMBC,08/02/2023,5200080174,579.87,NPOWER LTD,585003,BH,Energy - Electricity,210001,
http://statistics.data.gov.uk/doc/lolcal-authority/00CC,BarnsleyMBC,08/02/2023,5200080166,684.18,NPOWER LTD,585003,BH,Energy - Electricity,210001,
http://statistics.data.gov.uk/doc/lolcal-authority/00CC,BarnsleyMBC,08/02/2023,5200080165,647.38,NPOWER LTD,585003,BH,Energy - Electricity,210001,
http://statistics.data.gov.uk/doc/lolcal-authority/00CC,BarnsleyMBC,08/02/2023,5200080164,544.45,NPOWER LTD,585003,BH,Energy - Electricity,210001,
http://statistics.data.gov.uk/doc/lolcal-authority/00CC,BarnsleyMBC,08/02/2023,5200080324,"1,000.16",NPOWER LTD,585003,BH,Energy - Electricity,210001,
http://statistics.data.gov.uk/doc/lolcal-authority/00CC,BarnsleyMBC,08/02/2023,5200080331,780.3,NPOWER LTD,585003,BH,Energy - Electricity,210001,
http://statistics.data.gov.uk/doc/lolcal-authority/00CC,BarnsleyMBC,08/02/2023,5200080333,722.25,NPOWER LTD,585003,BH,Energy - Electricity,210001,
http://statistics.data.gov.uk/doc/lolcal-authority/00CC,BarnsleyMBC,08/02/2023,5200080334,682.5,NPOWER LTD,585003,BH,Energy - Electricity,210001,
http://statistics.data.gov.uk/doc/lolcal-authority/00CC,BarnsleyMBC,08/02/2023,5200080336,"4,128.26",NPOWER LTD,585003,BH,Energy - Electricity,210001,
http://statistics.data.gov.uk/doc/lolcal-authority/00CC,BarnsleyMBC,08/02/2023,5200080338,"7,065.10",NPOWER LTD,585003,BH,Energy - Electricity,210001,
http://statistics.data.gov.uk/doc/lolcal-authority/00CC,BarnsleyMBC,08/02/2023,5200080342,"3,578.72",NPOWER LTD,585003,BH,Energy - Electricity,210001,
http://statistics.data.gov.uk/doc/lolcal-authority/00CC,BarnsleyMBC,08/02/2023,5200080350,"1,385.59",NPOWER LTD,585003,BH,Energy - Electricity,210001,
http://statistics.data.gov.uk/doc/lolcal-authority/00CC,BarnsleyMBC,08/02/2023,5200080361,"1,374.01",NPOWER LTD,585003,BH,Energy - Electricity,210001,
http://statistics.data.gov.uk/doc/lolcal-authority/00CC,BarnsleyMBC,08/02/2023,5200080362,"1,239.41",NPOWER LTD,585003,BH,Energy - Electricity,210001,
http://statistics.data.gov.uk/doc/lolcal-authority/00CC,BarnsleyMBC,08/02/2023,5200080363,646.29,NPOWER LTD,585003,BH,Energy - Electricity,210001,
http://statistics.data.gov.uk/doc/lolcal-authority/00CC,BarnsleyMBC,08/02/2023,5200080367,651.97,NPOWER LTD,585003,BH,Energy - Electricity,210001,
http://statistics.data.gov.uk/doc/lolcal-authority/00CC,BarnsleyMBC,08/02/2023,5200080368,651.96,NPOWER LTD,585003,BH,Energy - Electricity,210001,
http://statistics.data.gov.uk/doc/lolcal-authority/00CC,BarnsleyMBC,08/02/2023,5200080376,917.96,NPOWER LTD,585003,BH,Energy - Electricity,210001,
http://statistics.data.gov.uk/doc/lolcal-authority/00CC,BarnsleyMBC,08/02/2023,5200080384,"1,403.29",NPOWER LTD,585003,BH,Energy - Electricity,210001,
http://statistics.data.gov.uk/doc/lolcal-authority/00CC,BarnsleyMBC,08/02/2023,5200080396,"11,992.74",NPOWER LTD,585003,BH,Energy - Electricity,210001,
http://statistics.data.gov.uk/doc/lolcal-authority/00CC,BarnsleyMBC,08/02/2023,5200080398,"1,460.76",NPOWER LTD,585003,BH,Energy - Electricity,210001,
http://statistics.data.gov.uk/doc/lolcal-authority/00CC,BarnsleyMBC,08/02/2023,5200080400,"3,378.33",NPOWER LTD,585003,BH,Energy - Electricity,210001,
http://statistics.data.gov.uk/doc/lolcal-authority/00CC,BarnsleyMBC,08/02/2023,5200080402,"1,295.27",NPOWER LTD,585003,BH,Energy - Electricity,210001,
http://statistics.data.gov.uk/doc/lolcal-authority/00CC,BarnsleyMBC,08/02/2023,5200080404,"11,899.79",NPOWER LTD,585003,BH,Energy - Electricity,210001,
http://statistics.data.gov.uk/doc/lolcal-authority/00CC,BarnsleyMBC,08/02/2023,5200080406,"5,533.87",NPOWER LTD,585003,BH,Energy - Electricity,210001,
http://statistics.data.gov.uk/doc/lolcal-authority/00CC,BarnsleyMBC,08/02/2023,5200080321,657.94,NPOWER LTD,585003,BH,Energy - Electricity,210001,
http://statistics.data.gov.uk/doc/lolcal-authority/00CC,BarnsleyMBC,08/02/2023,5200080117,691.61,NPOWER LTD,585003,BH,Energy - Electricity,210001,
http://statistics.data.gov.uk/doc/lolcal-authority/00CC,BarnsleyMBC,08/02/2023,5200080158,"4,926.10",NPOWER LTD,585003,BH,Energy - Electricity,210001,
http://statistics.data.gov.uk/doc/lolcal-authority/00CC,BarnsleyMBC,08/02/2023,5200080408,"5,395.43",NPOWER LTD,585003,BH,Energy - Electricity,210001,
http://statistics.data.gov.uk/doc/lolcal-authority/00CC,BarnsleyMBC,08/02/2023,5200080411,"6,277.72",NPOWER LTD,585003,BH,Energy - Electricity,210001,
http://statistics.data.gov.uk/doc/lolcal-authority/00CC,BarnsleyMBC,08/02/2023,5200080413,"12,764.50",NPOWER LTD,585003,BH,Energy - Electricity,210001,
http://statistics.data.gov.uk/doc/lolcal-authority/00CC,BarnsleyMBC,08/02/2023,5200080220,"1,341.02",NPOWER LTD,585003,BH,Energy - Electricity,210001,
http://statistics.data.gov.uk/doc/lolcal-authority/00CC,BarnsleyMBC,08/02/2023,5200080221,"1,316.72",NPOWER LTD,585003,BH,Energy - Electricity,210001,
http://statistics.data.gov.uk/doc/lolcal-authority/00CC,BarnsleyMBC,08/02/2023,5200080222,760.1,NPOWER LTD,585003,BH,Energy - Electricity,210001,
http://statistics.data.gov.uk/doc/lolcal-authority/00CC,BarnsleyMBC,08/02/2023,5200080107,"5,844.40",NPOWER LTD,585003,BH,Energy - Electricity,210001,
http://statistics.data.gov.uk/doc/lolcal-authority/00CC,BarnsleyMBC,08/02/2023,5200080285,964.76,NPOWER LTD,585003,BH,Energy - Electricity,210001,
http://statistics.data.gov.uk/doc/lolcal-authority/00CC,BarnsleyMBC,08/02/2023,5200080098,718.5,NPOWER LTD,585003,BH,Energy - Electricity,210001,
http://statistics.data.gov.uk/doc/lolcal-authority/00CC,BarnsleyMBC,08/02/2023,5200080091,797.59,NPOWER LTD,585003,BH,Energy - Electricity,210001,
http://statistics.data.gov.uk/doc/lolcal-authority/00CC,BarnsleyMBC,08/02/2023,5200080287,"1,467.28",NPOWER LTD,585003,BH,Energy - Electricity,210001,
http://statistics.data.gov.uk/doc/lolcal-authority/00CC,BarnsleyMBC,08/02/2023,5200080302,757.07,NPOWER LTD,585003,BH,Energy - Electricity,210001,
http://statistics.data.gov.uk/doc/lolcal-authority/00CC,BarnsleyMBC,08/02/2023,5200080308,565.12,NPOWER LTD,585003,BH,Energy - Electricity,210001,
http://statistics.data.gov.uk/doc/lolcal-authority/00CC,BarnsleyMBC,08/02/2023,5200080319,"1,159.06",NPOWER LTD,585003,BH,Energy - Electricity,210001,
http://statistics.data.gov.uk/doc/lolcal-authority/00CC,BarnsleyMBC,08/02/2023,5200080317,"2,086.22",NPOWER LTD,585003,BH,Energy - Electricity,210001,
http://statistics.data.gov.uk/doc/lolcal-authority/00CC,BarnsleyMBC,08/02/2023,5200080352,"-1,924.70",NPOWER LTD,585003,BH,Energy - Electricity,210001,
http://statistics.data.gov.uk/doc/lolcal-authority/00CC,BarnsleyMBC,09/02/2023,5200080417,"3,822.44",NPOWER LTD,585003,BH,Energy - Electricity,210001,
http://statistics.data.gov.uk/doc/lolcal-authority/00CC,BarnsleyMBC,09/02/2023,5200080432,"8,030.58",NPOWER LTD,585003,BH,Energy - Electricity,210001,
http://statistics.data.gov.uk/doc/lolcal-authority/00CC,BarnsleyMBC,09/02/2023,5200080414,"9,645.11",NPOWER LTD,585003,BH,Energy - Electricity,210001,
http://statistics.data.gov.uk/doc/lolcal-authority/00CC,BarnsleyMBC,09/02/2023,5200080431,"13,415.26",NPOWER LTD,585003,BH,Energy - Electricity,210001,
http://statistics.data.gov.uk/doc/lolcal-authority/00CC,BarnsleyMBC,09/02/2023,5200080429,"1,345.80",NPOWER LTD,585003,BH,Energy - Electricity,210001,
http://statistics.data.gov.uk/doc/lolcal-authority/00CC,BarnsleyMBC,09/02/2023,5200080427,"3,302.33",NPOWER LTD,585003,BH,Energy - Electricity,210001,
http://statistics.data.gov.uk/doc/lolcal-authority/00CC,BarnsleyMBC,09/02/2023,5200080425,"1,191.95",NPOWER LTD,585003,BH,Energy - Electricity,210001,
http://statistics.data.gov.uk/doc/lolcal-authority/00CC,BarnsleyMBC,09/02/2023,5200080423,"7,047.09",NPOWER LTD,585003,BH,Energy - Electricity,210001,
http://statistics.data.gov.uk/doc/lolcal-authority/00CC,BarnsleyMBC,09/02/2023,5200080421,"5,772.05",NPOWER LTD,585003,BH,Energy - Electricity,210001,
http://statistics.data.gov.uk/doc/lolcal-authority/00CC,BarnsleyMBC,09/02/2023,5200080419,"5,142.57",NPOWER LTD,585003,BH,Energy - Electricity,210001,
http://statistics.data.gov.uk/doc/lolcal-authority/00CC,BarnsleyMBC,09/02/2023,5200080435,"4,244.76",NPOWER LTD,585003,BH,Energy - Electricity,210001,
http://statistics.data.gov.uk/doc/lolcal-authority/00CC,BarnsleyMBC,02/03/2023,5200080717,549.86,NPOWER LTD,585003,BH,Energy - Electricity,210001,
http://statistics.data.gov.uk/doc/lolcal-authority/00CC,BarnsleyMBC,02/03/2023,5200080905,"4,418.06",NPOWER LTD,585003,BH,Energy - Electricity,210001,
http://statistics.data.gov.uk/doc/lolcal-authority/00CC,BarnsleyMBC,02/03/2023,5200080903,924.3,NPOWER LTD,585003,BH,Energy - Electricity,210001,
http://statistics.data.gov.uk/doc/lolcal-authority/00CC,BarnsleyMBC,02/03/2023,5200080896,"3,342.38",NPOWER LTD,585003,BH,Energy - Electricity,210001,
http://statistics.data.gov.uk/doc/lolcal-authority/00CC,BarnsleyMBC,02/03/2023,5200080895,"1,759.85",NPOWER LTD,585003,BH,Energy - Electricity,210001,
http://statistics.data.gov.uk/doc/lolcal-authority/00CC,BarnsleyMBC,02/03/2023,5200080868,"1,025.49",NPOWER LTD,585003,BH,Energy - Electricity,210001,
http://statistics.data.gov.uk/doc/lolcal-authority/00CC,BarnsleyMBC,02/03/2023,5200080864,"1,268.28",NPOWER LTD,585003,BH,Energy - Electricity,210001,
http://statistics.data.gov.uk/doc/lolcal-authority/00CC,BarnsleyMBC,02/03/2023,5200080861,"1,300.04",NPOWER LTD,585003,BH,Energy - Electricity,210001,
http://statistics.data.gov.uk/doc/lolcal-authority/00CC,BarnsleyMBC,02/03/2023,5200080859,"7,500.34",NPOWER LTD,585003,BH,Energy - Electricity,210001,
http://statistics.data.gov.uk/doc/lolcal-authority/00CC,BarnsleyMBC,02/03/2023,5200080856,"11,386.52",NPOWER LTD,585003,BH,Energy - Electricity,210001,
http://statistics.data.gov.uk/doc/lolcal-authority/00CC,BarnsleyMBC,02/03/2023,5200080854,"1,214.36",NPOWER LTD,585003,BH,Energy - Electricity,210001,
http://statistics.data.gov.uk/doc/lolcal-authority/00CC,BarnsleyMBC,02/03/2023,5200080852,"1,294.69",NPOWER LTD,585003,BH,Energy - Electricity,210001,
http://statistics.data.gov.uk/doc/lolcal-authority/00CC,BarnsleyMBC,02/03/2023,5200080850,"12,939.05",NPOWER LTD,585003,BH,Energy - Electricity,210001,
http://statistics.data.gov.uk/doc/lolcal-authority/00CC,BarnsleyMBC,02/03/2023,5200080828,595.41,NPOWER LTD,585003,BH,Energy - Electricity,210001,
http://statistics.data.gov.uk/doc/lolcal-authority/00CC,BarnsleyMBC,02/03/2023,5200080827,613.19,NPOWER LTD,585003,BH,Energy - Electricity,210001,
http://statistics.data.gov.uk/doc/lolcal-authority/00CC,BarnsleyMBC,02/03/2023,5200080825,"2,009.99",NPOWER LTD,585003,BH,Energy - Electricity,210001,
http://statistics.data.gov.uk/doc/lolcal-authority/00CC,BarnsleyMBC,02/03/2023,5200080824,789.39,NPOWER LTD,585003,BH,Energy - Electricity,210001,
http://statistics.data.gov.uk/doc/lolcal-authority/00CC,BarnsleyMBC,02/03/2023,5200080823,"1,155.10",NPOWER LTD,585003,BH,Energy - Electricity,210001,
http://statistics.data.gov.uk/doc/lolcal-authority/00CC,BarnsleyMBC,02/03/2023,5200080822,994.68,NPOWER LTD,585003,BH,Energy - Electricity,210001,
http://statistics.data.gov.uk/doc/lolcal-authority/00CC,BarnsleyMBC,02/03/2023,5200080817,778.44,NPOWER LTD,585003,BH,Energy - Electricity,210001,
http://statistics.data.gov.uk/doc/lolcal-authority/00CC,BarnsleyMBC,02/03/2023,5200080816,"1,222.67",NPOWER LTD,585003,BH,Energy - Electricity,210001,
http://statistics.data.gov.uk/doc/lolcal-authority/00CC,BarnsleyMBC,02/03/2023,5200080814,"7,869.54",NPOWER LTD,585003,BH,Energy - Electricity,210001,
http://statistics.data.gov.uk/doc/lolcal-authority/00CC,BarnsleyMBC,02/03/2023,5200080811,"5,279.33",NPOWER LTD,585003,BH,Energy - Electricity,210001,
http://statistics.data.gov.uk/doc/lolcal-authority/00CC,BarnsleyMBC,02/03/2023,5200080809,"7,575.02",NPOWER LTD,585003,BH,Energy - Electricity,210001,
http://statistics.data.gov.uk/doc/lolcal-authority/00CC,BarnsleyMBC,02/03/2023,5200080725,769.83,NPOWER LTD,585003,BH,Energy - Electricity,210001,
http://statistics.data.gov.uk/doc/lolcal-authority/00CC,BarnsleyMBC,02/03/2023,5200080755,"5,804.86",NPOWER LTD,585003,BH,Energy - Electricity,210001,
http://statistics.data.gov.uk/doc/lolcal-authority/00CC,BarnsleyMBC,02/03/2023,5200080757,"9,638.26",NPOWER LTD,585003,BH,Energy - Electricity,210001,
http://statistics.data.gov.uk/doc/lolcal-authority/00CC,BarnsleyMBC,02/03/2023,5200080759,"7,243.57",NPOWER LTD,585003,BH,Energy - Electricity,210001,
http://statistics.data.gov.uk/doc/lolcal-authority/00CC,BarnsleyMBC,02/03/2023,5200080761,"5,428.60",NPOWER LTD,585003,BH,Energy - Electricity,210001,
http://statistics.data.gov.uk/doc/lolcal-authority/00CC,BarnsleyMBC,02/03/2023,5200080763,"5,294.89",NPOWER LTD,585003,BH,Energy - Electricity,210001,
http://statistics.data.gov.uk/doc/lolcal-authority/00CC,BarnsleyMBC,02/03/2023,5200080764,685.89,NPOWER LTD,585003,BH,Energy - Electricity,210001,
http://statistics.data.gov.uk/doc/lolcal-authority/00CC,BarnsleyMBC,02/03/2023,5200080807,"3,070.85",NPOWER LTD,585003,BH,Energy - Electricity,210001,
http://statistics.data.gov.uk/doc/lolcal-authority/00CC,BarnsleyMBC,02/03/2023,5200080804,"2,722.40",NPOWER LTD,585003,BH,Energy - Electricity,210001,
http://statistics.data.gov.uk/doc/lolcal-authority/00CC,BarnsleyMBC,02/03/2023,5200080800,809.72,NPOWER LTD,585003,BH,Energy - Electricity,210001,
http://statistics.data.gov.uk/doc/lolcal-authority/00CC,BarnsleyMBC,02/03/2023,5200080795,"1,409.48",NPOWER LTD,585003,BH,Energy - Electricity,210001,
http://statistics.data.gov.uk/doc/lolcal-authority/00CC,BarnsleyMBC,02/03/2023,5200080790,"1,389.54",NPOWER LTD,585003,BH,Energy - Electricity,210001,
http://statistics.data.gov.uk/doc/lolcal-authority/00CC,BarnsleyMBC,02/03/2023,5200080772,"4,360.73",NPOWER LTD,585003,BH,Energy - Electricity,210001,
http://statistics.data.gov.uk/doc/lolcal-authority/00CC,BarnsleyMBC,02/03/2023,5200080849,-682.5,NPOWER LTD,585003,BH,Energy - Electricity,210001,
http://statistics.data.gov.uk/doc/lolcal-authority/00CC,BarnsleyMBC,02/03/2023,5200080847,"-9,645.11",NPOWER LTD,585003,BH,Energy - Electricity,210001,
http://statistics.data.gov.uk/doc/lolcal-authority/00CC,BarnsleyMBC,02/03/2023,5200080844,"-8,030.58",NPOWER LTD,585003,BH,Energy - Electricity,210001,
http://statistics.data.gov.uk/doc/lolcal-authority/00CC,BarnsleyMBC,02/03/2023,5200080841,"-4,484.43",NPOWER LTD,585003,BH,Energy - Electricity,210001,
http://statistics.data.gov.uk/doc/lolcal-authority/00CC,BarnsleyMBC,02/03/2023,5200080839,"-5,329.94",NPOWER LTD,585003,BH,Energy - Electricity,210001,
http://statistics.data.gov.uk/doc/lolcal-authority/00CC,BarnsleyMBC,02/03/2023,5200080837,"-7,465.59",NPOWER LTD,585003,BH,Energy - Electricity,210001,
http://statistics.data.gov.uk/doc/lolcal-authority/00CC,BarnsleyMBC,02/03/2023,5200080834,"-5,894.94",NPOWER LTD,585003,BH,Energy - Electricity,210001,
http://statistics.data.gov.uk/doc/lolcal-authority/00CC,BarnsleyMBC,02/03/2023,5200080832,"-2,729.41",NPOWER LTD,585003,BH,Energy - Electricity,210001,
http://statistics.data.gov.uk/doc/lolcal-authority/00CC,BarnsleyMBC,28/03/2023,5200081312,"1,465.03",NPOWER LTD,585003,BH,Energy - Electricity,210001,
http://statistics.data.gov.uk/doc/lolcal-authority/00CC,BarnsleyMBC,28/03/2023,5200081196,745.41,NPOWER LTD,585003,BH,Energy - Electricity,210001,
http://statistics.data.gov.uk/doc/lolcal-authority/00CC,BarnsleyMBC,28/03/2023,5200081296,"1,404.95",NPOWER LTD,585003,BH,Energy - Electricity,210001,
http://statistics.data.gov.uk/doc/lolcal-authority/00CC,BarnsleyMBC,28/03/2023,5200081310,"1,157.36",NPOWER LTD,585003,BH,Energy - Electricity,210001,
http://statistics.data.gov.uk/doc/lolcal-authority/00CC,BarnsleyMBC,28/03/2023,5200081272,"2,519.15",NPOWER LTD,585003,BH,Energy - Electricity,210001,
http://statistics.data.gov.uk/doc/lolcal-authority/00CC,BarnsleyMBC,28/03/2023,5200081269,592.71,NPOWER LTD,585003,BH,Energy - Electricity,210001,
http://statistics.data.gov.uk/doc/lolcal-authority/00CC,BarnsleyMBC,28/03/2023,5200081267,"4,559.32",NPOWER LTD,585003,BH,Energy - Electricity,210001,
http://statistics.data.gov.uk/doc/lolcal-authority/00CC,BarnsleyMBC,28/03/2023,5200081265,"1,115.80",NPOWER LTD,585003,BH,Energy - Electricity,210001,
http://statistics.data.gov.uk/doc/lolcal-authority/00CC,BarnsleyMBC,28/03/2023,5200081263,"1,230.63",NPOWER LTD,585003,BH,Energy - Electricity,210001,
http://statistics.data.gov.uk/doc/lolcal-authority/00CC,BarnsleyMBC,28/03/2023,5200081261,"4,299.47",NPOWER LTD,585003,BH,Energy - Electricity,210001,
http://statistics.data.gov.uk/doc/lolcal-authority/00CC,BarnsleyMBC,28/03/2023,5200081259,"6,723.37",NPOWER LTD,585003,BH,Energy - Electricity,210001,
http://statistics.data.gov.uk/doc/lolcal-authority/00CC,BarnsleyMBC,28/03/2023,5200081257,"4,552.70",NPOWER LTD,585003,BH,Energy - Electricity,210001,
http://statistics.data.gov.uk/doc/lolcal-authority/00CC,BarnsleyMBC,28/03/2023,5200081255,"12,253.81",NPOWER LTD,585003,BH,Energy - Electricity,210001,
http://statistics.data.gov.uk/doc/lolcal-authority/00CC,BarnsleyMBC,28/03/2023,5200081237,517.43,NPOWER LTD,585003,BH,Energy - Electricity,210001,
http://statistics.data.gov.uk/doc/lolcal-authority/00CC,BarnsleyMBC,28/03/2023,5200081236,"1,758.39",NPOWER LTD,585003,BH,Energy - Electricity,210001,
http://statistics.data.gov.uk/doc/lolcal-authority/00CC,BarnsleyMBC,28/03/2023,5200081234,871.59,NPOWER LTD,585003,BH,Energy - Electricity,210001,
http://statistics.data.gov.uk/doc/lolcal-authority/00CC,BarnsleyMBC,28/03/2023,5200081212,"6,876.60",NPOWER LTD,585003,BH,Energy - Electricity,210001,
http://statistics.data.gov.uk/doc/lolcal-authority/00CC,BarnsleyMBC,28/03/2023,5200081233,881.26,NPOWER LTD,585003,BH,Energy - Electricity,210001,
http://statistics.data.gov.uk/doc/lolcal-authority/00CC,BarnsleyMBC,28/03/2023,5200081228,"1,077.03",NPOWER LTD,585003,BH,Energy - Electricity,210001,
http://statistics.data.gov.uk/doc/lolcal-authority/00CC,BarnsleyMBC,28/03/2023,5200081223,757.3,NPOWER LTD,585003,BH,Energy - Electricity,210001,
http://statistics.data.gov.uk/doc/lolcal-authority/00CC,BarnsleyMBC,28/03/2023,5200081222,639.08,NPOWER LTD,585003,BH,Energy - Electricity,210001,
http://statistics.data.gov.uk/doc/lolcal-authority/00CC,BarnsleyMBC,28/03/2023,5200081214,"12,099.81",NPOWER LTD,585003,BH,Energy - Electricity,210001,
http://statistics.data.gov.uk/doc/lolcal-authority/00CC,BarnsleyMBC,28/03/2023,5200081193,544.77,NPOWER LTD,585003,BH,Energy - Electricity,210001,
http://statistics.data.gov.uk/doc/lolcal-authority/00CC,BarnsleyMBC,28/03/2023,5200081191,825.69,NPOWER LTD,585003,BH,Energy - Electricity,210001,
http://statistics.data.gov.uk/doc/lolcal-authority/00CC,BarnsleyMBC,28/03/2023,5200081313,761.63,NPOWER LTD,585003,BH,Energy - Electricity,210001,
http://statistics.data.gov.uk/doc/lolcal-authority/00CC,BarnsleyMBC,28/03/2023,5200081159,894.42,NPOWER LTD,585003,BH,Energy - Electricity,210001,
http://statistics.data.gov.uk/doc/lolcal-authority/00CC,BarnsleyMBC,28/03/2023,5200081308,"6,424.31",NPOWER LTD,585003,BH,Energy - Electricity,210001,
http://statistics.data.gov.uk/doc/lolcal-authority/00CC,BarnsleyMBC,28/03/2023,5200081297,"2,666.28",NPOWER LTD,585003,BH,Energy - Electricity,210001,
http://statistics.data.gov.uk/doc/lolcal-authority/00CC,BarnsleyMBC,28/03/2023,5200081314,766.27,NPOWER LTD,585003,BH,Energy - Electricity,210001,
http://statistics.data.gov.uk/doc/lolcal-authority/00CC,BarnsleyMBC,28/03/2023,5200081154,"1,222.96",NPOWER LTD,585003,BH,Energy - Electricity,210001,
http://statistics.data.gov.uk/doc/lolcal-authority/00CC,BarnsleyMBC,28/03/2023,5200081145,675.79,NPOWER LTD,585003,BH,Energy - Electricity,210001,
http://statistics.data.gov.uk/doc/lolcal-authority/00CC,BarnsleyMBC,28/03/2023,5200081304,"3,574.38",NPOWER LTD,585003,BH,Energy - Electricity,210001,
http://statistics.data.gov.uk/doc/lolcal-authority/00CC,BarnsleyMBC,22/02/2023,5100334248,"9,020.90",Nu-Build (Barnsley) Ltd,552671,BH,Main contractor,506011,
http://statistics.data.gov.uk/doc/lolcal-authority/00CC,BarnsleyMBC,16/03/2023,5100335378,"46,201.69",Nu-Build (Barnsley) Ltd,552671,BH,Main contractor,506011,
http://statistics.data.gov.uk/doc/lolcal-authority/00CC,BarnsleyMBC,24/03/2023,5100335950,"63,568.80",Nu-Build (Barnsley) Ltd,552671,BH,Main contractor,506011,
http://statistics.data.gov.uk/doc/lolcal-authority/00CC,BarnsleyMBC,27/03/2023,5100335829,"1,646.40",Nu-Build (Barnsley) Ltd,552671,BH,Main contractor,506011,
http://statistics.data.gov.uk/doc/lolcal-authority/00CC,BarnsleyMBC,29/03/2023,5100335960,"25,601.98",Nu-Build (Barnsley) Ltd,552671,BH,Main contractor,506011,
http://statistics.data.gov.uk/doc/lolcal-authority/00CC,BarnsleyMBC,29/03/2023,5100335906,856.8,Nu-Build (Barnsley) Ltd,552671,BH,Main contractor,506011,
http://statistics.data.gov.uk/doc/lolcal-authority/00CC,BarnsleyMBC,05/01/2023,5100331990,"39,851.34",ONE CONSULTING & ASSOCIATES LIMITED,539742,BH,ICT Services and Support,426014,
http://statistics.data.gov.uk/doc/lolcal-authority/00CC,BarnsleyMBC,06/01/2023,5100331991,"33,892.25",ONE CONSULTING & ASSOCIATES LIMITED,539742,BH,ICT Services and Support,426014,
http://statistics.data.gov.uk/doc/lolcal-authority/00CC,BarnsleyMBC,14/02/2023,5100334009,"33,655.23",ONE CONSULTING & ASSOCIATES LIMITED,539742,BH,ICT Services and Support,426014,
http://statistics.data.gov.uk/doc/lolcal-authority/00CC,BarnsleyMBC,08/03/2023,5100335088,"33,812.03",ONE CONSULTING & ASSOCIATES LIMITED,539742,BH,ICT Services and Support,426014,
http://statistics.data.gov.uk/doc/lolcal-authority/00CC,BarnsleyMBC,16/01/2023,1900026404,"3,248.02",One Time Vendor - Creditors,1000001,BH,Equipment - Electrical Goods,400007,
http://statistics.data.gov.uk/doc/lolcal-authority/00CC,BarnsleyMBC,17/01/2023,1900026416,900,One Time Vendor - Creditors,1000001,BH,Expenses - Compensation Payments,460010,
http://statistics.data.gov.uk/doc/lolcal-authority/00CC,BarnsleyMBC,19/01/2023,1900026421,500,One Time Vendor - Creditors,1000001,BH,Expenses - Compensation Payments,460010,
http://statistics.data.gov.uk/doc/lolcal-authority/00CC,BarnsleyMBC,20/02/2023,1900026575,828,One Time Vendor - Creditors,1000001,BH,Expenses - Miscellaneous,460012,
http://statistics.data.gov.uk/doc/lolcal-authority/00CC,BarnsleyMBC,01/03/2023,1900026612,975,One Time Vendor - Creditors,1000001,BH,Expenses - Compensation Payments,460010,
http://statistics.data.gov.uk/doc/lolcal-authority/00CC,BarnsleyMBC,15/03/2023,1900026674,923,One Time Vendor - Creditors,1000001,BH,Expenses - Compensation Payments,460010,
http://statistics.data.gov.uk/doc/lolcal-authority/00CC,BarnsleyMBC,17/03/2023,1900026682,500,One Time Vendor - Creditors,1000001,BH,Expenses - Compensation Payments,460010,
http://statistics.data.gov.uk/doc/lolcal-authority/00CC,BarnsleyMBC,24/03/2023,1900026732,800,One Time Vendor - Creditors,1000001,BH,Expenses - Compensation Payments,460010,
http://statistics.data.gov.uk/doc/lolcal-authority/00CC,BarnsleyMBC,24/03/2023,1900026733,500,One Time Vendor - Creditors,1000001,BH,Tenants allowances,540009,
http://statistics.data.gov.uk/doc/lolcal-authority/00CC,BarnsleyMBC,02/02/2023,1900026484,"1,495.00",ONE TIME VENDORS - COMPANIES,1000025,BH,Training Courses,112001,
http://statistics.data.gov.uk/doc/lolcal-authority/00CC,BarnsleyMBC,29/03/2023,1900026747,840,ONE TIME VENDORS - COMPANIES,1000025,BH,Subscriptions & Contributions,430002,
http://statistics.data.gov.uk/doc/lolcal-authority/00CC,BarnsleyMBC,08/02/2023,5100333538,"105,411.60",P BIDDLESTONE GROUNDWORKS & MAINT,551078,BH,Main contractor,506011,
http://statistics.data.gov.uk/doc/lolcal-authority/00CC,BarnsleyMBC,08/02/2023,5100333631,"6,308.05",P BIDDLESTONE GROUNDWORKS & MAINT,551078,BH,Main contractor,506011,
http://statistics.data.gov.uk/doc/lolcal-authority/00CC,BarnsleyMBC,21/03/2023,5100335696,"5,018.40",P BIDDLESTONE GROUNDWORKS & MAINT,551078,BH,Main contractor,506011,
http://statistics.data.gov.uk/doc/lolcal-authority/00CC,BarnsleyMBC,21/03/2023,5100335484,"62,395.80",P BIDDLESTONE GROUNDWORKS & MAINT,551078,BH,Main contractor,506011,
http://statistics.data.gov.uk/doc/lolcal-authority/00CC,BarnsleyMBC,21/03/2023,5100335697,"4,027.20",P BIDDLESTONE GROUNDWORKS & MAINT,551078,BH,Main contractor,506011,
http://statistics.data.gov.uk/doc/lolcal-authority/00CC,BarnsleyMBC,21/03/2023,5100335695,"1,709.16",P BIDDLESTONE GROUNDWORKS & MAINT,551078,BH,Main contractor,506011,
http://statistics.data.gov.uk/doc/lolcal-authority/00CC,BarnsleyMBC,22/03/2023,5100335698,"10,051.20",P BIDDLESTONE GROUNDWORKS & MAINT,551078,BH,Main contractor,506011,
http://statistics.data.gov.uk/doc/lolcal-authority/00CC,BarnsleyMBC,29/03/2023,5100336069,"17,704.80",P BIDDLESTONE GROUNDWORKS & MAINT,551078,BH,Main contractor,506011,
http://statistics.data.gov.uk/doc/lolcal-authority/00CC,BarnsleyMBC,29/03/2023,5100336070,"24,229.80",P BIDDLESTONE GROUNDWORKS & MAINT,551078,BH,Main contractor,506011,
http://statistics.data.gov.uk/doc/lolcal-authority/00CC,BarnsleyMBC,29/03/2023,5100335956,"18,860.40",P BIDDLESTONE GROUNDWORKS & MAINT,551078,BH,Main contractor,506011,
http://statistics.data.gov.uk/doc/lolcal-authority/00CC,BarnsleyMBC,29/03/2023,5100335957,"15,762.00",P BIDDLESTONE GROUNDWORKS & MAINT,551078,BH,Main contractor,506011,
http://statistics.data.gov.uk/doc/lolcal-authority/00CC,BarnsleyMBC,09/01/2023,5100332057,803.16,PENNINGTON CHOICES LTD,528871,BH,Main contractor,506011,
http://statistics.data.gov.uk/doc/lolcal-authority/00CC,BarnsleyMBC,12/01/2023,5100332217,"2,069.29",PENNINGTON CHOICES LTD,528871,BH,Main contractor,506011,
http://statistics.data.gov.uk/doc/lolcal-authority/00CC,BarnsleyMBC,12/01/2023,5100332294,"4,440.00",PENNINGTON CHOICES LTD,528871,BH,Main contractor,506011,
http://statistics.data.gov.uk/doc/lolcal-authority/00CC,BarnsleyMBC,13/01/2023,5100332377,"4,942.21",PENNINGTON CHOICES LTD,528871,BH,Main contractor,506011,
http://statistics.data.gov.uk/doc/lolcal-authority/00CC,BarnsleyMBC,20/01/2023,5100332714,"7,289.10",PENNINGTON CHOICES LTD,528871,BH,Basic pay - Agency Fees,104001,
http://statistics.data.gov.uk/doc/lolcal-authority/00CC,BarnsleyMBC,20/01/2023,5100332713,"6,407.46",PENNINGTON CHOICES LTD,528871,BH,Basic pay - Agency Fees,104001,
http://statistics.data.gov.uk/doc/lolcal-authority/00CC,BarnsleyMBC,26/01/2023,5100333123,"1,284.29",PENNINGTON CHOICES LTD,528871,BH,Main contractor,506011,
http://statistics.data.gov.uk/doc/lolcal-authority/00CC,BarnsleyMBC,07/02/2023,5100333600,987.88,PENNINGTON CHOICES LTD,528871,BH,Main contractor,506011,
http://statistics.data.gov.uk/doc/lolcal-authority/00CC,BarnsleyMBC,07/02/2023,5100333572,543.73,PENNINGTON CHOICES LTD,528871,BH,Main contractor,506011,
http://statistics.data.gov.uk/doc/lolcal-authority/00CC,BarnsleyMBC,08/02/2023,5100333705,"1,183.02",PENNINGTON CHOICES LTD,528871,BH,Main contractor,506011,
http://statistics.data.gov.uk/doc/lolcal-authority/00CC,BarnsleyMBC,14/02/2023,5100334004,"6,874.74",PENNINGTON CHOICES LTD,528871,BH,Basic pay - Agency Fees,104001,
http://statistics.data.gov.uk/doc/lolcal-authority/00CC,BarnsleyMBC,07/03/2023,5100334765,"3,042.79",PENNINGTON CHOICES LTD,528871,BH,Main contractor,506011,
http://statistics.data.gov.uk/doc/lolcal-authority/00CC,BarnsleyMBC,09/03/2023,5100335206,"2,689.31",PENNINGTON CHOICES LTD,528871,BH,Main contractor,506011,
http://statistics.data.gov.uk/doc/lolcal-authority/00CC,BarnsleyMBC,10/03/2023,5100335232,872.02,PENNINGTON CHOICES LTD,528871,BH,Main contractor,506011,
http://statistics.data.gov.uk/doc/lolcal-authority/00CC,BarnsleyMBC,12/01/2023,5100332287,"2,323.15",POWERTECH INDUSTRIAL LTD,502518,BH,Direct - Tools & Parts,403019,
http://statistics.data.gov.uk/doc/lolcal-authority/00CC,BarnsleyMBC,16/01/2023,5100332319,523.44,POWERTECH INDUSTRIAL LTD,502518,BH,,
http://statistics.data.gov.uk/doc/lolcal-authority/00CC,BarnsleyMBC,18/01/2023,5100332551,895.52,POWERTECH INDUSTRIAL LTD,502518,BH,,
http://statistics.data.gov.uk/doc/lolcal-authority/00CC,BarnsleyMBC,19/01/2023,5100332582,"2,275.14",POWERTECH INDUSTRIAL LTD,502518,BH,Direct - Tools & Parts,403019,
http://statistics.data.gov.uk/doc/lolcal-authority/00CC,BarnsleyMBC,19/01/2023,5100332584,"2,275.14",POWERTECH INDUSTRIAL LTD,502518,BH,Direct - Tools & Parts,403019,
http://statistics.data.gov.uk/doc/lolcal-authority/00CC,BarnsleyMBC,19/01/2023,5100332669,529.1,POWERTECH INDUSTRIAL LTD,502518,BH,Direct - Tools & Parts,403019,
http://statistics.data.gov.uk/doc/lolcal-authority/00CC,BarnsleyMBC,23/01/2023,5100332835,"1,224.00",POWERTECH INDUSTRIAL LTD,502518,BH,Equipment - Hire,400002,
http://statistics.data.gov.uk/doc/lolcal-authority/00CC,BarnsleyMBC,25/01/2023,5100333007,"1,747.39",POWERTECH INDUSTRIAL LTD,502518,BH,,
http://statistics.data.gov.uk/doc/lolcal-authority/00CC,BarnsleyMBC,02/02/2023,5100333465,596.76,POWERTECH INDUSTRIAL LTD,502518,BH,,
http://statistics.data.gov.uk/doc/lolcal-authority/00CC,BarnsleyMBC,16/02/2023,5100334129,661.2,POWERTECH INDUSTRIAL LTD,502518,BH,Direct - Tools & Parts,403019,
http://statistics.data.gov.uk/doc/lolcal-authority/00CC,BarnsleyMBC,17/02/2023,5100333008,665.4,POWERTECH INDUSTRIAL LTD,502518,BH,Direct - Tools & Parts,403019,
http://statistics.data.gov.uk/doc/lolcal-authority/00CC,BarnsleyMBC,20/02/2023,5100334273,649.8,POWERTECH INDUSTRIAL LTD,502518,BH,,
http://statistics.data.gov.uk/doc/lolcal-authority/00CC,BarnsleyMBC,23/02/2023,5100334479,"1,580.40",POWERTECH INDUSTRIAL LTD,502518,BH,,
http://statistics.data.gov.uk/doc/lolcal-authority/00CC,BarnsleyMBC,23/02/2023,5100334473,715.01,POWERTECH INDUSTRIAL LTD,502518,BH,,
http://statistics.data.gov.uk/doc/lolcal-authority/00CC,BarnsleyMBC,02/03/2023,5100334742,531.56,POWERTECH INDUSTRIAL LTD,502518,BH,Direct - Fuel & Gas,403017,
http://statistics.data.gov.uk/doc/lolcal-authority/00CC,BarnsleyMBC,07/03/2023,5100334754,612,POWERTECH INDUSTRIAL LTD,502518,BH,Direct - Tools & Parts,403019,
http://statistics.data.gov.uk/doc/lolcal-authority/00CC,BarnsleyMBC,08/03/2023,5100334753,882,POWERTECH INDUSTRIAL LTD,502518,BH,Direct - Tools & Parts,403019,
http://statistics.data.gov.uk/doc/lolcal-authority/00CC,BarnsleyMBC,09/03/2023,5100335164,"1,433.60",POWERTECH INDUSTRIAL LTD,502518,BH,Direct - Tools & Parts,403019,
http://statistics.data.gov.uk/doc/lolcal-authority/00CC,BarnsleyMBC,23/03/2023,5100335916,515.16,POWERTECH INDUSTRIAL LTD,502518,BH,Direct - Tools & Parts,403019,
http://statistics.data.gov.uk/doc/lolcal-authority/00CC,BarnsleyMBC,24/03/2023,5100335948,"1,185.60",POWERTECH INDUSTRIAL LTD,502518,BH,Direct - Tools & Parts,403019,
http://statistics.data.gov.uk/doc/lolcal-authority/00CC,BarnsleyMBC,27/03/2023,5100335986,756.36,POWERTECH INDUSTRIAL LTD,502518,BH,,
http://statistics.data.gov.uk/doc/lolcal-authority/00CC,BarnsleyMBC,28/03/2023,5100335991,"1,580.40",POWERTECH INDUSTRIAL LTD,502518,BH,,
http://statistics.data.gov.uk/doc/lolcal-authority/00CC,BarnsleyMBC,30/03/2023,5100336186,933,POWERTECH INDUSTRIAL LTD,502518,BH,Direct - Tools & Parts,403019,
http://statistics.data.gov.uk/doc/lolcal-authority/00CC,BarnsleyMBC,19/01/2023,5200079723,553.97,REED SPECIALIST RECRUITMENT LTD,502689,BH,Basic pay - Agency Fees,104001,
http://statistics.data.gov.uk/doc/lolcal-authority/00CC,BarnsleyMBC,19/01/2023,5200079724,864.86,REED SPECIALIST RECRUITMENT LTD,502689,BH,Basic pay - Agency Fees,104001,
http://statistics.data.gov.uk/doc/lolcal-authority/00CC,BarnsleyMBC,19/01/2023,5200079716,"1,177.92",REED SPECIALIST RECRUITMENT LTD,502689,BH,Basic pay - Agency Fees,104001,
http://statistics.data.gov.uk/doc/lolcal-authority/00CC,BarnsleyMBC,19/01/2023,5200079721,645.39,REED SPECIALIST RECRUITMENT LTD,502689,BH,Basic pay - Agency Fees,104001,
http://statistics.data.gov.uk/doc/lolcal-authority/00CC,BarnsleyMBC,19/01/2023,5200079717,553.97,REED SPECIALIST RECRUITMENT LTD,502689,BH,Basic pay - Agency Fees,104001,
http://statistics.data.gov.uk/doc/lolcal-authority/00CC,BarnsleyMBC,19/01/2023,5200079718,730.4,REED SPECIALIST RECRUITMENT LTD,502689,BH,Basic pay - Agency Fees,104001,
http://statistics.data.gov.uk/doc/lolcal-authority/00CC,BarnsleyMBC,19/01/2023,5200079719,"1,577.16",REED SPECIALIST RECRUITMENT LTD,502689,BH,Basic pay - Agency Fees,104001,
http://statistics.data.gov.uk/doc/lolcal-authority/00CC,BarnsleyMBC,19/01/2023,5200079727,716.45,REED SPECIALIST RECRUITMENT LTD,502689,BH,Basic pay - Agency Fees,104001,
http://statistics.data.gov.uk/doc/lolcal-authority/00CC,BarnsleyMBC,19/01/2023,5200079725,725.71,REED SPECIALIST RECRUITMENT LTD,502689,BH,Basic pay - Agency Fees,104001,
http://statistics.data.gov.uk/doc/lolcal-authority/00CC,BarnsleyMBC,19/01/2023,5200079703,686.9,REED SPECIALIST RECRUITMENT LTD,502689,BH,Basic pay - Agency Fees,104001,
http://statistics.data.gov.uk/doc/lolcal-authority/00CC,BarnsleyMBC,19/01/2023,5200079702,958.9,REED SPECIALIST RECRUITMENT LTD,502689,BH,Basic pay - Agency Fees,104001,
http://statistics.data.gov.uk/doc/lolcal-authority/00CC,BarnsleyMBC,19/01/2023,5200079701,756.59,REED SPECIALIST RECRUITMENT LTD,502689,BH,Basic pay - Agency Fees,104001,
http://statistics.data.gov.uk/doc/lolcal-authority/00CC,BarnsleyMBC,19/01/2023,5200079674,838.97,REED SPECIALIST RECRUITMENT LTD,502689,BH,Basic pay - Agency Fees,104001,
http://statistics.data.gov.uk/doc/lolcal-authority/00CC,BarnsleyMBC,19/01/2023,5200079673,635.15,REED SPECIALIST RECRUITMENT LTD,502689,BH,Basic pay - Agency Fees,104001,
http://statistics.data.gov.uk/doc/lolcal-authority/00CC,BarnsleyMBC,19/01/2023,5200079671,506.75,REED SPECIALIST RECRUITMENT LTD,502689,BH,Basic pay - Agency Fees,104001,
http://statistics.data.gov.uk/doc/lolcal-authority/00CC,BarnsleyMBC,19/01/2023,5200079670,635.15,REED SPECIALIST RECRUITMENT LTD,502689,BH,Basic pay - Agency Fees,104001,
http://statistics.data.gov.uk/doc/lolcal-authority/00CC,BarnsleyMBC,19/01/2023,5200079669,"1,601.42",REED SPECIALIST RECRUITMENT LTD,502689,BH,Basic pay - Agency Fees,104001,
